Capital or Revenue,Directorate,Transaction Number,Date,Service Area,Expenses Type,Amount,Supplier Name
Revenue,Childrens Services,5105654394,16.10.2015,LSCB (Local Safeguarding Childrens Board),Consultants Fees,"5,950.00",REDACTED PERSONAL DATA
Revenue,Place,5105654297,14.10.2015,IW Festival of Cycling,Professional Services,100.00,REDACTED PERSONAL DATA
Revenue,Place,5105656581,30.10.2015,Rylstone gardens,Property Services - Planned Maintenance,275.00,REDACTED PERSONAL DATA
Revenue,Childrens Services,5105656737,28.10.2015,Island Learning Centre,Vehicle Maintenance Costs,226.01,ISLANDWIDE WINDSCREENS
Revenue,Childrens Services,5105654117,09.10.2015,Island Futures Careers & Employability,Security of Buildings,50.00,REDACTED PERSONAL DATA
Revenue,Childrens Services,5105654117,09.10.2015,Island Futures Careers & Employability,Security of Buildings,375.00,REDACTED PERSONAL DATA
Revenue,Place,5105654117,09.10.2015,Church View Ventnor,Security of Buildings,100.00,REDACTED PERSONAL DATA
Revenue,Place,5105654117,09.10.2015,Church View Ventnor,Security of Buildings,100.00,REDACTED PERSONAL DATA
Revenue,Place,5105654117,09.10.2015,York Centre E Cowes,Security of Buildings,100.00,REDACTED PERSONAL DATA
Revenue,Place,5105654117,09.10.2015,"Westridge, Ryde",Security of Buildings,25.00,REDACTED PERSONAL DATA
Revenue,Childrens Services,5105654117,09.10.2015,Youth- Ryde  (Well St),Security of Buildings,"1,240.00",REDACTED PERSONAL DATA
Revenue,Place,5105654117,09.10.2015,Victoria Recreation Ground,Security of Buildings,100.00,REDACTED PERSONAL DATA
Revenue,Childrens Services,5105654117,09.10.2015,Island Youth Water Activity Centre,Security of Buildings,100.00,REDACTED PERSONAL DATA
Revenue,Place,5105654117,09.10.2015,"St Thomas Church, Ryde",Security of Buildings,100.00,REDACTED PERSONAL DATA
Revenue,Place,5105654117,09.10.2015,Somerton Industrial Park,Security of Buildings,75.00,REDACTED PERSONAL DATA
Revenue,Childrens Services,5105654117,09.10.2015,Youth- Cowes,Security of Buildings,100.00,REDACTED PERSONAL DATA
Revenue,Place,5105654117,09.10.2015,Carisbrooke Contact Centre,Security of Buildings,100.00,REDACTED PERSONAL DATA
Revenue,Childrens Services,5105655970,21.10.2015,Home to School Transport,Taxis - Contract Hire,429.66,MICK'S TAXI
Revenue,Childrens Services,5105655964,21.10.2015,Home to School Transport,Taxis - Contract Hire,360.57,MICK'S TAXI
Revenue,Childrens Services,5105655967,21.10.2015,Home to School Transport,Taxis - Contract Hire,479.20,MICK'S TAXI
Revenue,Adult Services,5105656141,21.10.2015,Domestic Violence,Public Transport Fares,8.20,REDACTED PERSONAL DATA
Revenue,Adult Services,5105656141,21.10.2015,Domestic Violence,Travel Expenses,48.80,REDACTED PERSONAL DATA
Revenue,Adult Services,5105656141,21.10.2015,Domestic Violence,Travel Expenses,27.00,REDACTED PERSONAL DATA
Revenue,Adult Services,5105656141,21.10.2015,Domestic Violence,Professional Services,400.00,REDACTED PERSONAL DATA
Revenue,Adult Services,5105655893,21.10.2015,31 Carter Avenue,Maintenance of Operational Equipment,185.00,CHRIS' DOMESTIC SERVICES
Revenue,Adult Services,5105654575,14.10.2015,31 Carter Avenue,Maintenance of Operational Equipment,35.00,CHRIS' DOMESTIC SERVICES
Revenue,Adult Services,5105654574,14.10.2015,Seagulls,Maintenance of Operational Equipment,94.99,CHRIS' DOMESTIC SERVICES
Revenue,Childrens Services,5105655941,21.10.2015,Home to School Transport,Taxis - Contract Hire,540.00,CLARES CABS
Revenue,Place,5105654576,14.10.2015,Cycling festival - launch expenses,Professional Services,500.00,GILES WOLFE T/A M.A.D.
Revenue,Place,5105654573,14.10.2015,Cycling festival - launch expenses,Professional Services,500.00,GILES WOLFE T/A M.A.D.
Revenue,Childrens Services,5105656707,23.10.2015,Workforce Development - Early Years,Training,300.00,REDACTED PERSONAL DATA
Revenue,Childrens Services,5105656707,23.10.2015,Workforce Development - Early Years,Training,600.00,REDACTED PERSONAL DATA
Revenue,Childrens Services,5105655667,16.10.2015,Complaints (Children & Families),Professional Services,"1,750.00",REDACTED PERSONAL DATA
Revenue,Childrens Services,5105655667,16.10.2015,Complaints (Children & Families),Professional Services,236.25,REDACTED PERSONAL DATA
Revenue,Childrens Services,5105655667,16.10.2015,Complaints (Children & Families),Professional Services,140.40,REDACTED PERSONAL DATA
Revenue,Childrens Services,5105655667,16.10.2015,Complaints (Children & Families),Professional Services,95.00,REDACTED PERSONAL DATA
Revenue,Resources,5105655517,16.10.2015,ICT Contracts,Computer Maintenance,"1,200.00",REDACTED PERSONAL DATA
Revenue,Childrens Services,5105656991,28.10.2015,Core Programmes,Training,136.40,REDACTED PERSONAL DATA
Revenue,Childrens Services,5105655539,16.10.2015,Short Breaks,Charges from Independent Providers,584.00,REDACTED PERSONAL DATA
Revenue,Childrens Services,5105656733,28.10.2015,Visually Impaired Service,Consultants Fees,70.00,REDACTED PERSONAL DATA
Revenue,Childrens Services,5105653839,14.10.2015,Visually Impaired Service,Consultants Fees,166.25,REDACTED PERSONAL DATA
Revenue,Childrens Services,5105656173,23.10.2015,Adoption Costs,Professional Services,472.00,REDACTED PERSONAL DATA
Revenue,Place,5105657232,28.10.2015,Duke of Edingburgh Award,Professional Services,360.00,REDACTED PERSONAL DATA
Revenue,Childrens Services,5105653692,14.10.2015,Short Breaks,Charges from Independent Providers,488.00,REDACTED PERSONAL DATA
Revenue,Childrens Services,5105656160,21.10.2015,Short Breaks,Charges from Independent Providers,264.00,REDACTED PERSONAL DATA
Revenue,Childrens Services,5105656169,21.10.2015,Island Learning Centre,Bought in Prof Services - Curriculum (Schools),"2,825.00",ISLAND EQUUS
Revenue,Childrens Services,5105654121,09.10.2015,Commissioning ACL,Grants to External Bodies,935.00,REDACTED PERSONAL DATA
Revenue,Childrens Services,5105656901,28.10.2015,Commissioning ACL,Grants to External Bodies,108.00,REDACTED PERSONAL DATA
Revenue,Childrens Services,5105653686,07.10.2015,Short Breaks,Charges from Independent Providers,72.00,REDACTED PERSONAL DATA
Revenue,Place,5105657485,30.10.2015,S106 Agreements  Play/Rec Areas,Payment to Private Contractors,"14,500.00",REDACTED PERSONAL DATA
Capital,Place,5105657150,28.10.2015,Rights Of Way Capital Programme,Payment to Contractors - Capital,"2,450.00",REDACTED PERSONAL DATA
Revenue,Childrens Services,5105654413,14.10.2015,Short Breaks,Charges from Independent Providers,136.00,REDACTED PERSONAL DATA
Revenue,Place,5105654606,14.10.2015,Rights of Way Operations,Payment to Private Contractors,200.00,REDACTED PERSONAL DATA
Capital,Place,5105654439,12.10.2015,Rights Of Way Capital Programme,Payment to Contractors - Capital,-100.00,REDACTED PERSONAL DATA
Capital,Place,5105655928,21.10.2015,Rights Of Way Capital Programme,Payment to Contractors - Capital,100.00,REDACTED PERSONAL DATA
Capital,Place,5105652736,12.10.2015,Rights Of Way Capital Programme,Payment to Contractors - Capital,100.00,REDACTED PERSONAL DATA
Revenue,Childrens Services,5105652536,02.10.2015,Short Breaks,Charges from Independent Providers,50.00,HAVEN FALCONRY
Revenue,Place,5105656314,23.10.2015,Leaseholds by LA,Accommodation Costs - Leaseholder Payments,695.89,REDACTED PERSONAL DATA
Revenue,Place,5105656314,23.10.2015,Leaseholds by LA,Accommodation Costs - Leaseholder Payments,695.89,REDACTED PERSONAL DATA
Revenue,Place,5105656314,23.10.2015,Leaseholds by LA,Accommodation Costs - Leaseholder Payments,695.89,REDACTED PERSONAL DATA
Revenue,Place,5105656314,23.10.2015,Leaseholds by LA,Accommodation Costs - Leaseholder Payments,695.89,REDACTED PERSONAL DATA
Revenue,Place,5105656314,23.10.2015,Leaseholds by LA,Accommodation Costs - Leaseholder Payments,695.89,REDACTED PERSONAL DATA
Capital,Childrens Services,5105652016,14.10.2015,Children Services Early Years,Payment to Contractors - Capital,109.77,REDACTED PERSONAL DATA
Capital,Childrens Services,5105653861,09.10.2015,Children Services Early Years,Payment to Contractors - Capital,42.00,REDACTED PERSONAL DATA
Capital,Childrens Services,5105653861,09.10.2015,Children Services Early Years,Payment to Contractors - Capital,126.00,REDACTED PERSONAL DATA
Revenue,Place,5105656765,28.10.2015,Business Support  - Fire,Prop Svs only - Day to day mtce,60.00,REDACTED PERSONAL DATA
Revenue,Place,5105657530,30.10.2015,Bembridge Library,Prop Svs only - Day to day mtce,90.00,REDACTED PERSONAL DATA
Revenue,Place,5105657215,28.10.2015,Bembridge Library,Prop Svs only - Day to day mtce,45.00,REDACTED PERSONAL DATA
Revenue,Place,5105656766,28.10.2015,Bembridge Library,Prop Svs only - Day to day mtce,60.00,REDACTED PERSONAL DATA
Revenue,Place,5105655949,21.10.2015,Cowes Library,Prop Svs only - Day to day mtce,30.00,REDACTED PERSONAL DATA
Revenue,Place,5105656578,23.10.2015,Medina Leisure Centre,Prop Svs only - Day to day mtce,60.00,REDACTED PERSONAL DATA
Revenue,Place,5105656205,21.10.2015,"Enterprise House, Newport",Prop Svs only - Day to day mtce,72.34,REDACTED PERSONAL DATA
Revenue,Place,5105654241,14.10.2015,"Enterprise House, Newport",Prop Svs only - Day to day mtce,347.00,REDACTED PERSONAL DATA
Revenue,Place,5105654216,09.10.2015,"Enterprise House, Newport",Prop Svs only - Day to day mtce,60.00,REDACTED PERSONAL DATA
Revenue,Adult Services,5105657489,30.10.2015,Gouldings Resource Centre,Prop Svs only - Day to day mtce,60.00,REDACTED PERSONAL DATA
Revenue,Adult Services,5105653856,14.10.2015,Gouldings Resource Centre,Prop Svs only - Day to day mtce,216.50,REDACTED PERSONAL DATA
Revenue,Adult Services,5105657589,30.10.2015,Gouldings Resource Centre,Maintenance of Operational Equipment,90.00,REDACTED PERSONAL DATA
Revenue,Place,5105657532,30.10.2015,"Westridge, Ryde",Prop Svs only - Day to day mtce,247.60,REDACTED PERSONAL DATA
Revenue,Childrens Services,5105654109,09.10.2015,Beaulieu House,Minor Works,150.00,REDACTED PERSONAL DATA
Revenue,Childrens Services,5105657509,30.10.2015,Island Learning Centre,Minor Works,60.00,REDACTED PERSONAL DATA
Revenue,Place,5105657529,30.10.2015,Westridge Squash Courts,Prop Svs only - Day to day mtce,60.00,REDACTED PERSONAL DATA
Revenue,Place,5105656854,28.10.2015,"County Hall,Newport",Prop Svs only - Day to day mtce,45.00,REDACTED PERSONAL DATA
Revenue,Childrens Services,5105657510,30.10.2015,Specialist Service Business Admin,Minor Works,90.00,REDACTED PERSONAL DATA
Revenue,Place,5105656284,28.10.2015,The Heights,Property Services - Planned Maintenance,"4,518.00",REDACTED PERSONAL DATA
Revenue,Place,5105656770,28.10.2015,The Heights,Prop Svs only - Day to day mtce,45.00,REDACTED PERSONAL DATA
Revenue,Place,5105656763,28.10.2015,The Heights,Prop Svs only - Day to day mtce,70.44,REDACTED PERSONAL DATA
Revenue,Adult Services,5105653562,07.10.2015,Mental Health Day Services,Maintenance of Operational Equipment,75.00,REDACTED PERSONAL DATA
Revenue,Adult Services,5105654134,09.10.2015,The Laurels,Minor Works,60.00,REDACTED PERSONAL DATA
Revenue,Place,5105656298,23.10.2015,Downside Community & Learning Centre,Prop Svs only - Day to day mtce,60.00,REDACTED PERSONAL DATA
Revenue,Adult Services,5105654586,28.10.2015,DoLS/MCA,Payments to Voluntary and Other Associations,"1,474.56",REDACTED PERSONAL DATA
Revenue,Childrens Services,5105653635,14.10.2015,LSCB (Local Safeguarding Childrens Board),Training,88.75,REDACTED PERSONAL DATA
Revenue,Childrens Services,5105653635,14.10.2015,LSCB (Local Safeguarding Childrens Board),Training,500.00,REDACTED PERSONAL DATA
Revenue,Childrens Services,5105652742,07.10.2015,Leaving Care Costs,Charges from Independent Providers,"2,142.90",NUMBER5NEWPORT
Revenue,Childrens Services,5105652738,07.10.2015,Leaving Care Costs,Charges from Independent Providers,"5,293.02",NUMBER5NEWPORT
Revenue,Childrens Services,5105652744,07.10.2015,Leaving Care Costs,Charges from Independent Providers,"2,785.80",NUMBER5NEWPORT
Revenue,Childrens Services,5105652741,07.10.2015,Leaving Care Costs,Charges from Independent Providers,"2,142.90",NUMBER5NEWPORT
Revenue,Childrens Services,5105652737,07.10.2015,Leaving Care Costs,Charges from Independent Providers,"2,785.80",NUMBER5NEWPORT
Revenue,Childrens Services,5105656833,28.10.2015,Leaving Care Costs,Charges from Independent Providers,"2,214.33",NUMBER5NEWPORT
Revenue,Childrens Services,5105656826,28.10.2015,Leaving Care Costs,Charges from Independent Providers,"2,878.66",NUMBER5NEWPORT
Revenue,Childrens Services,5105656822,28.10.2015,Leaving Care Costs,Charges from Independent Providers,"2,878.66",NUMBER5NEWPORT
Revenue,Childrens Services,5105656829,28.10.2015,Leaving Care Costs,Charges from Independent Providers,"2,214.33",NUMBER5NEWPORT
Revenue,Childrens Services,5105656831,28.10.2015,Leaving Care Costs,Charges from Independent Providers,"2,878.66",NUMBER5NEWPORT
Revenue,Childrens Services,5105652742,07.10.2015,Leaving Care Costs,Accommodation Costs - Service Users,288.00,NUMBER5NEWPORT
Revenue,Childrens Services,5105652737,07.10.2015,Leaving Care Costs,Accommodation Costs - Service Users,288.00,NUMBER5NEWPORT
Revenue,Childrens Services,5105652741,07.10.2015,Leaving Care Costs,Accommodation Costs - Service Users,288.00,NUMBER5NEWPORT
Revenue,Childrens Services,5105652738,07.10.2015,Leaving Care Costs,Accommodation Costs - Service Users,547.20,NUMBER5NEWPORT
Revenue,Childrens Services,5105652744,07.10.2015,Leaving Care Costs,Accommodation Costs - Service Users,288.00,NUMBER5NEWPORT
Revenue,Childrens Services,5105656833,28.10.2015,Leaving Care Costs,Accommodation Costs - Service Users,297.60,NUMBER5NEWPORT
Revenue,Childrens Services,5105656822,28.10.2015,Leaving Care Costs,Accommodation Costs - Service Users,297.60,NUMBER5NEWPORT
Revenue,Childrens Services,5105656831,28.10.2015,Leaving Care Costs,Accommodation Costs - Service Users,297.60,NUMBER5NEWPORT
Revenue,Childrens Services,5105656829,28.10.2015,Leaving Care Costs,Accommodation Costs - Service Users,297.60,NUMBER5NEWPORT
Revenue,Childrens Services,5105656826,28.10.2015,Leaving Care Costs,Accommodation Costs - Service Users,297.60,NUMBER5NEWPORT
Revenue,Childrens Services,5105656824,28.10.2015,Leaving Care Costs,Accommodation Costs - Service Users,240.00,NUMBER5NEWPORT
Revenue,Childrens Services,5105656824,28.10.2015,Purchased Residential,Charges from Independent Providers,"2,321.50",NUMBER5NEWPORT
Revenue,Childrens Services,5105656730,23.10.2015,Island Learning Centre,Transport of Clients,212.00,LAKE TAXIS
Revenue,Resources,5105656256,21.10.2015,Elections,Rent of Buildings and Rooms,110.00,1ST GODSHILL AND ROOKLEY SCOUTS
Revenue,Place,5105656333,23.10.2015,Leaseholds by LA,Accommodation Costs - Leaseholder Payments,866.67,2K PROPERTY
Revenue,Place,5105653647,09.10.2015,Project Manager Waste Strategy,Computer Software & Consumables,461.25,4 PROJECTS LIMITED
Revenue,Childrens Services,5105655663,16.10.2015,Purchased Fostering,Charges from Independent Providers,"4,114.50",5 FOSTERING
Revenue,Childrens Services,5105655701,16.10.2015,Purchased Fostering,Charges from Independent Providers,"4,114.50",5 FOSTERING
Revenue,Adult Services,5105654174,09.10.2015,Saxonbury,Minor Works,"1,900.00",A & M APPLIANCE CARE
Revenue,Adult Services,5105652530,02.10.2015,Gouldings Resource Centre,Consumable Cleaning Materials,90.00,A & M APPLIANCE CARE
Revenue,Adult Services,5105656096,21.10.2015,Gouldings Resource Centre,Consumable Cleaning Materials,150.00,A & M APPLIANCE CARE
Capital,Adult Services,5105657248,28.10.2015,Adelaide & Gouldings Fixtures & Fittings,"Plant, Equipment & Furniture - Capital","2,650.00",A & M APPLIANCE CARE
Revenue,Adult Services,5105654098,14.10.2015,The Laurels,Minor Works,40.00,A & M APPLIANCE CARE
Revenue,Adult Services,5105654164,09.10.2015,Adelaide Resource Centre,Consumable Cleaning Materials,240.00,A & M APPLIANCE CARE
Revenue,Adult Services,5105654124,09.10.2015,Adelaide Resource Centre,Consumable Cleaning Materials,216.00,A & M APPLIANCE CARE
Revenue,Childrens Services,5105652400,02.10.2015,Special Guardianship Order Costs,Support Children,207.73,REDACTED PERSONAL DATA
Revenue,Childrens Services,5105652400,02.10.2015,Special Guardianship Order Costs,Support Children,168.39,REDACTED PERSONAL DATA
Revenue,Childrens Services,5105656390,23.10.2015,Special Guardianship Order Costs,Support Children,168.39,REDACTED PERSONAL DATA
Revenue,Childrens Services,5105657322,30.10.2015,Special Guardianship Order Costs,Support Children,168.39,REDACTED PERSONAL DATA
Revenue,Childrens Services,5105657322,30.10.2015,Special Guardianship Order Costs,Support Children,207.73,REDACTED PERSONAL DATA
Revenue,Childrens Services,5105656390,23.10.2015,Special Guardianship Order Costs,Support Children,207.73,REDACTED PERSONAL DATA
Revenue,Childrens Services,5105653927,09.10.2015,Special Guardianship Order Costs,Support Children,168.39,REDACTED PERSONAL DATA
Revenue,Childrens Services,5105653927,09.10.2015,Special Guardianship Order Costs,Support Children,207.73,REDACTED PERSONAL DATA
Revenue,Childrens Services,5105655358,16.10.2015,Special Guardianship Order Costs,Support Children,168.39,REDACTED PERSONAL DATA
Revenue,Childrens Services,5105655358,16.10.2015,Special Guardianship Order Costs,Support Children,207.73,REDACTED PERSONAL DATA
Revenue,Childrens Services,5105655421,16.10.2015,Leaving Care Costs,Support Children,120.89,REDACTED PERSONAL DATA
Revenue,Childrens Services,5105656483,23.10.2015,Leaving Care Costs,Support Children,120.89,REDACTED PERSONAL DATA
Revenue,Childrens Services,5105652466,02.10.2015,Leaving Care Costs,Support Children,120.89,REDACTED PERSONAL DATA
Revenue,Childrens Services,5105653992,09.10.2015,Leaving Care Costs,Support Children,120.89,REDACTED PERSONAL DATA
Revenue,Childrens Services,5105657385,30.10.2015,Leaving Care Costs,Support Children,120.89,REDACTED PERSONAL DATA
Revenue,Childrens Services,5105655421,16.10.2015,Leaving Care Costs,Accommodation Costs - Service Users,68.50,REDACTED PERSONAL DATA
Revenue,Childrens Services,5105656483,23.10.2015,Leaving Care Costs,Accommodation Costs - Service Users,68.50,REDACTED PERSONAL DATA
Revenue,Childrens Services,5105657385,30.10.2015,Leaving Care Costs,Accommodation Costs - Service Users,68.50,REDACTED PERSONAL DATA
Revenue,Childrens Services,5105652466,02.10.2015,Leaving Care Costs,Accommodation Costs - Service Users,68.50,REDACTED PERSONAL DATA
Revenue,Childrens Services,5105653992,09.10.2015,Leaving Care Costs,Accommodation Costs - Service Users,68.50,REDACTED PERSONAL DATA
Revenue,Place,5105656328,23.10.2015,Leaseholds by LA,Accommodation Costs - Leaseholder Payments,510.25,REDACTED PERSONAL DATA
Revenue,Place,5105656328,23.10.2015,Leaseholds by LA,Accommodation Costs - Leaseholder Payments,510.25,REDACTED PERSONAL DATA
Revenue,Place,5105656328,23.10.2015,Leaseholds by LA,Accommodation Costs - Leaseholder Payments,510.25,REDACTED PERSONAL DATA
Revenue,Place,5105656328,23.10.2015,Leaseholds by LA,Accommodation Costs - Leaseholder Payments,510.25,REDACTED PERSONAL DATA
Revenue,Place,5105656328,23.10.2015,Leaseholds by LA,Accommodation Costs - Leaseholder Payments,510.25,REDACTED PERSONAL DATA
Revenue,Place,5105656328,23.10.2015,Leaseholds by LA,Accommodation Costs - Leaseholder Payments,510.25,REDACTED PERSONAL DATA
Revenue,Childrens Services,5105656370,23.10.2015,Adoption Costs,Support Children,225.83,REDACTED PERSONAL DATA
Revenue,Childrens Services,5105657303,30.10.2015,Adoption Costs,Support Children,225.83,REDACTED PERSONAL DATA
Revenue,Childrens Services,5105653908,09.10.2015,Adoption Costs,Support Children,225.83,REDACTED PERSONAL DATA
Revenue,Childrens Services,5105652381,02.10.2015,Adoption Costs,Support Children,225.83,REDACTED PERSONAL DATA
Revenue,Childrens Services,5105655338,16.10.2015,Adoption Costs,Support Children,225.83,REDACTED PERSONAL DATA
Revenue,Childrens Services,5105656446,23.10.2015,In-house Fostering,Boarding Out Allowances,162.73,REDACTED PERSONAL DATA
Revenue,Childrens Services,5105657356,30.10.2015,In-house Fostering,Boarding Out Allowances,162.73,REDACTED PERSONAL DATA
Revenue,Childrens Services,5105653962,09.10.2015,In-house Fostering,Boarding Out Allowances,162.73,REDACTED PERSONAL DATA
Revenue,Childrens Services,5105655392,16.10.2015,In-house Fostering,Boarding Out Allowances,162.73,REDACTED PERSONAL DATA
Revenue,Childrens Services,5105652436,02.10.2015,In-house Fostering,Boarding Out Allowances,162.73,REDACTED PERSONAL DATA
Revenue,Place,5105656330,23.10.2015,Leaseholds by LA,Accommodation Costs - Leaseholder Payments,780.00,REDACTED PERSONAL DATA
Revenue,Place,5105653716,07.10.2015,Leaseholds by LA,Accommodation Costs - Leaseholder Payments,700.00,REDACTED PERSONAL DATA
Revenue,Place,5105656318,23.10.2015,Leaseholds by LA,Accommodation Costs - Leaseholder Payments,649.83,REDACTED PERSONAL DATA
Revenue,Place,5105656318,23.10.2015,Leaseholds by LA,Accommodation Costs - Leaseholder Payments,789.01,REDACTED PERSONAL DATA
Revenue,Place,5105656318,23.10.2015,Leaseholds by LA,Accommodation Costs - Leaseholder Payments,835.08,REDACTED PERSONAL DATA
Revenue,Place,5105656318,23.10.2015,Leaseholds by LA,Accommodation Costs - Leaseholder Payments,700.00,REDACTED PERSONAL DATA
Revenue,Place,5105656616,23.10.2015,Supporting People Older Persons,Payment to Private Contractors,442.20,ABBEYFIELD WEST WIGHT SOCIETY
Revenue,Adult Services,5105652934,07.10.2015,Elderly Mentally Ill Residential Care,Charges from Independent Providers,"1,781.36",ACACIA CARE HOME
Revenue,Adult Services,5105657501,30.10.2015,Elderly Frail Residential Care,Charges from Independent Providers,"1,761.17",ACACIA CARE HOME
Revenue,Adult Services,5105657619,30.10.2015,Elderly Frail Residential Care,Charges from Independent Providers,"1,336.06",ACACIA CARE HOME
Revenue,Adult Services,5105652934,07.10.2015,Elderly Frail Residential Care,Charges from Independent Providers,"1,700.44",ACACIA CARE HOME
Revenue,Adult Services,5105652934,07.10.2015,Elderly Frail Residential Care,Charges from Independent Providers,"2,093.84",ACACIA CARE HOME
Revenue,Adult Services,5105652934,07.10.2015,Elderly Frail Residential Care,Charges from Independent Providers,"1,700.44",ACACIA CARE HOME
Revenue,Adult Services,5105652695,07.10.2015,Elderly Frail Residential Care,Charges from Independent Providers,"2,064.82",ACACIA CARE HOME
Revenue,Managing Director,5105656182,21.10.2015,Media,Professional Subscriptions,"3,500.00",ACCESS INTELLIGENCE MEDIA & COMMUNICATIONS LTD
Revenue,Adult Services,5105654465,16.10.2015,Local Safeguarding Adults Board,Interview & recruitment expenses,25.00,ACCESS PERSONAL CHECKING SERVICES LTD
Revenue,Adult Services,5105654465,16.10.2015,Local Safeguarding Adults Board,Interview & recruitment expenses,8.00,ACCESS PERSONAL CHECKING SERVICES LTD
Revenue,Public Health,5105654465,16.10.2015,Local Area Coordinators - Gen Prevention,Interview & recruitment expenses,44.00,ACCESS PERSONAL CHECKING SERVICES LTD
Revenue,Public Health,5105654465,16.10.2015,Local Area Coordinators - Gen Prevention,Interview & recruitment expenses,6.00,ACCESS PERSONAL CHECKING SERVICES LTD
Revenue,Place,5105654465,16.10.2015,School Music Service,Interview & recruitment expenses,44.00,ACCESS PERSONAL CHECKING SERVICES LTD
Revenue,Place,5105654465,16.10.2015,School Music Service,Interview & recruitment expenses,6.00,ACCESS PERSONAL CHECKING SERVICES LTD
Revenue,Childrens Services,5105654465,16.10.2015,Adoption Costs,Interview & recruitment expenses,44.00,ACCESS PERSONAL CHECKING SERVICES LTD
Revenue,Childrens Services,5105654465,16.10.2015,Adoption Costs,Interview & recruitment expenses,6.00,ACCESS PERSONAL CHECKING SERVICES LTD
Revenue,Adult Services,5105654465,16.10.2015,Plean Dene,Interview & recruitment expenses,44.00,ACCESS PERSONAL CHECKING SERVICES LTD
Revenue,Adult Services,5105654465,16.10.2015,Saxonbury,Interview & recruitment expenses,44.00,ACCESS PERSONAL CHECKING SERVICES LTD
Revenue,Adult Services,5105654465,16.10.2015,Saxonbury,Interview & recruitment expenses,6.00,ACCESS PERSONAL CHECKING SERVICES LTD
Revenue,Adult Services,5105654465,16.10.2015,Plean Dene,Interview & recruitment expenses,6.00,ACCESS PERSONAL CHECKING SERVICES LTD
Revenue,Adult Services,5105654465,16.10.2015,Community Outreach,Interview & recruitment expenses,6.00,ACCESS PERSONAL CHECKING SERVICES LTD
Revenue,Adult Services,5105654465,16.10.2015,Community Outreach,Interview & recruitment expenses,44.00,ACCESS PERSONAL CHECKING SERVICES LTD
Revenue,Childrens Services,5105654465,16.10.2015,Support for Looked After Children,Interview & recruitment expenses,12.00,ACCESS PERSONAL CHECKING SERVICES LTD
Revenue,Childrens Services,5105654465,16.10.2015,Children In Need 1,Interview & recruitment expenses,44.00,ACCESS PERSONAL CHECKING SERVICES LTD
Revenue,Childrens Services,5105654465,16.10.2015,Children In Need 1,Interview & recruitment expenses,6.00,ACCESS PERSONAL CHECKING SERVICES LTD
Revenue,Place,5105654465,16.10.2015,Fire Fighters Salaries,Interview & recruitment expenses,44.00,ACCESS PERSONAL CHECKING SERVICES LTD
Revenue,Place,5105654465,16.10.2015,Fire Fighters Salaries,Interview & recruitment expenses,6.00,ACCESS PERSONAL CHECKING SERVICES LTD
Revenue,Place,5105654450,14.10.2015,Licensing Services,Professional Services,352.00,ACCESS PERSONAL CHECKING SERVICES LTD
Revenue,Place,5105654450,14.10.2015,Licensing Services,Professional Services,48.00,ACCESS PERSONAL CHECKING SERVICES LTD
Revenue,Childrens Services,5105654465,16.10.2015,Family Intervention Team,Interview & recruitment expenses,88.00,ACCESS PERSONAL CHECKING SERVICES LTD
Revenue,Childrens Services,5105654465,16.10.2015,Family Intervention Team,Interview & recruitment expenses,18.00,ACCESS PERSONAL CHECKING SERVICES LTD
Revenue,Childrens Services,5105654465,16.10.2015,In-house Fostering,Interview & recruitment expenses,836.00,ACCESS PERSONAL CHECKING SERVICES LTD
Revenue,Childrens Services,5105654465,16.10.2015,In-house Fostering,Interview & recruitment expenses,114.00,ACCESS PERSONAL CHECKING SERVICES LTD
Revenue,Childrens Services,5105654465,16.10.2015,In-house Fostering,Interview & recruitment expenses,6.00,ACCESS PERSONAL CHECKING SERVICES LTD
Revenue,Childrens Services,5105654465,16.10.2015,Youth Offending Team,Interview & recruitment expenses,44.00,ACCESS PERSONAL CHECKING SERVICES LTD
Revenue,Childrens Services,5105654465,16.10.2015,Youth Offending Team,Interview & recruitment expenses,48.00,ACCESS PERSONAL CHECKING SERVICES LTD
Revenue,Place,5105654465,16.10.2015,The Heights,Interview & recruitment expenses,26.00,ACCESS PERSONAL CHECKING SERVICES LTD
Revenue,Place,5105654465,16.10.2015,The Heights,Interview & recruitment expenses,6.00,ACCESS PERSONAL CHECKING SERVICES LTD
Revenue,Place,5105654465,16.10.2015,Sports Development - Admin,Interview & recruitment expenses,25.00,ACCESS PERSONAL CHECKING SERVICES LTD
Revenue,Place,5105654465,16.10.2015,Sports Development - Admin,Interview & recruitment expenses,8.00,ACCESS PERSONAL CHECKING SERVICES LTD
Revenue,Adult Services,5105654465,16.10.2015,Adelaide Resource Centre,Interview & recruitment expenses,44.00,ACCESS PERSONAL CHECKING SERVICES LTD
Revenue,Adult Services,5105654465,16.10.2015,Adelaide Resource Centre,Interview & recruitment expenses,6.00,ACCESS PERSONAL CHECKING SERVICES LTD
Revenue,Resources,5105654465,16.10.2015,Council Tax,Interview & recruitment expenses,25.00,ACCESS PERSONAL CHECKING SERVICES LTD
Revenue,Resources,5105654465,16.10.2015,Council Tax,Interview & recruitment expenses,8.00,ACCESS PERSONAL CHECKING SERVICES LTD
Revenue,Place,5105657127,28.10.2015,Fire Technical Support,Vehicle Maintenance Costs,14.00,ACCLAIM LOGISTICS LTD
Revenue,Adult Services,5105653784,07.10.2015,S75 Integrated Community Equipment Store,Operational Equipment,"1,330.00",ACCORA  LIMITED
Revenue,Adult Services,5105642787,09.10.2015,S75 Integrated Community Equipment Store,Operational Equipment,102.00,ACCORA  LIMITED
Revenue,Adult Services,5105653789,07.10.2015,S75 Integrated Community Equipment Store,Operational Equipment,-102.00,ACCORA  LIMITED
Revenue,Adult Services,5105654740,14.10.2015,Elderly Frail Homecare,Charges from Independent Providers,641.76,ACORN CARE SERVICE LTD
Revenue,Adult Services,5105654738,14.10.2015,Elderly Frail Homecare,Charges from Independent Providers,641.76,ACORN CARE SERVICE LTD
Revenue,Adult Services,5105654744,14.10.2015,Elderly Frail Homecare,Charges from Independent Providers,427.84,ACORN CARE SERVICE LTD
Revenue,Adult Services,5105654745,14.10.2015,Elderly Frail Homecare,Charges from Independent Providers,366.72,ACORN CARE SERVICE LTD
Revenue,Adult Services,5105654742,14.10.2015,Elderly Frail Homecare,Charges from Independent Providers,183.36,ACORN CARE SERVICE LTD
Revenue,Adult Services,5105654741,14.10.2015,Elderly Frail Homecare,Charges from Independent Providers,84.04,ACORN CARE SERVICE LTD
Revenue,Adult Services,5105654739,14.10.2015,Elderly Frail Homecare,Charges from Independent Providers,"1,039.04",ACORN CARE SERVICE LTD
Revenue,Adult Services,5105654718,14.10.2015,Elderly Frail Homecare,Regular Respite Care,91.68,ACORN CARE SERVICE LTD
Revenue,Adult Services,5105654720,14.10.2015,Elderly Frail Homecare,Regular Respite Care,122.24,ACORN CARE SERVICE LTD
Revenue,Adult Services,5105654721,14.10.2015,Elderly Frail Homecare,Regular Respite Care,122.24,ACORN CARE SERVICE LTD
Revenue,Adult Services,5105655565,16.10.2015,Elderly Frail Homecare,Charges from Independent Providers,191.00,ACORN CARE SERVICE LTD
Revenue,Adult Services,5105655565,16.10.2015,Elderly Frail Homecare,Charges from Independent Providers,53.48,ACORN CARE SERVICE LTD
Revenue,Adult Services,5105654727,14.10.2015,Elderly Frail Homecare,Charges from Independent Providers,305.60,ACORN CARE SERVICE LTD
Revenue,Adult Services,5105654715,14.10.2015,Elderly Frail Homecare,Charges from Independent Providers,741.08,ACORN CARE SERVICE LTD
Revenue,Adult Services,5105654724,14.10.2015,Elderly Frail Homecare,Charges from Independent Providers,412.56,ACORN CARE SERVICE LTD
Revenue,Adult Services,5105654723,14.10.2015,Elderly Frail Homecare,Regular Respite Care,122.24,ACORN CARE SERVICE LTD
Revenue,Adult Services,5105654732,14.10.2015,Elderly Frail Homecare,Regular Respite Care,366.72,ACORN CARE SERVICE LTD
Revenue,Adult Services,5105654737,14.10.2015,Elderly Frail Homecare,Charges from Independent Providers,607.38,ACORN CARE SERVICE LTD
Revenue,Adult Services,5105654731,14.10.2015,Elderly Frail Homecare,Charges from Independent Providers,61.12,ACORN CARE SERVICE LTD
Revenue,Adult Services,5105654711,14.10.2015,Elderly Frail Homecare,Charges from Independent Providers,"1,191.84",ACORN CARE SERVICE LTD
Revenue,Adult Services,5105654710,14.10.2015,Elderly Frail Homecare,Charges from Independent Providers,"1,191.84",ACORN CARE SERVICE LTD
Revenue,Adult Services,5105654730,14.10.2015,Elderly Frail Homecare,Charges from Independent Providers,542.44,ACORN CARE SERVICE LTD
Revenue,Adult Services,5105654709,14.10.2015,Elderly Frail Homecare,Charges from Independent Providers,"1,455.42",ACORN CARE SERVICE LTD
Revenue,Adult Services,5105654713,14.10.2015,Elderly Frail Homecare,Charges from Independent Providers,61.12,ACORN CARE SERVICE LTD
Revenue,Adult Services,5105654712,14.10.2015,Elderly Frail Homecare,Charges from Independent Providers,"1,084.88",ACORN CARE SERVICE LTD
Revenue,Adult Services,5105654719,14.10.2015,Elderly Frail Homecare,Charges from Independent Providers,"2,780.96",ACORN CARE SERVICE LTD
Revenue,Adult Services,5105654717,14.10.2015,Elderly Frail Homecare,Charges from Independent Providers,870.96,ACORN CARE SERVICE LTD
Revenue,Adult Services,5105654728,14.10.2015,Elderly Frail Homecare,Charges from Independent Providers,634.12,ACORN CARE SERVICE LTD
Revenue,Adult Services,5105654726,14.10.2015,Elderly Frail Homecare,Charges from Independent Providers,213.92,ACORN CARE SERVICE LTD
Revenue,Adult Services,5105654743,14.10.2015,Elderly Frail Homecare,Charges from Independent Providers,"1,073.42",ACORN CARE SERVICE LTD
Revenue,Adult Services,5105654736,14.10.2015,Elderly Frail Homecare,Charges from Independent Providers,427.84,ACORN CARE SERVICE LTD
Revenue,Adult Services,5105654733,14.10.2015,Elderly Frail Homecare,Charges from Independent Providers,641.76,ACORN CARE SERVICE LTD
Revenue,Adult Services,5105654729,14.10.2015,Elderly Frail Homecare,Charges from Independent Providers,"2,567.04",ACORN CARE SERVICE LTD
Revenue,Adult Services,5105654734,14.10.2015,Elderly Frail Homecare,Charges from Independent Providers,523.34,ACORN CARE SERVICE LTD
Revenue,Adult Services,5105654725,14.10.2015,Elderly Frail Homecare,Charges from Independent Providers,718.16,ACORN CARE SERVICE LTD
Revenue,Adult Services,5105654707,14.10.2015,Elderly Frail Homecare,Charges from Independent Providers,259.76,ACORN CARE SERVICE LTD
Revenue,Adult Services,5105654708,14.10.2015,Elderly Frail Homecare,Charges from Independent Providers,"2,032.24",ACORN CARE SERVICE LTD
Revenue,Adult Services,5105654714,14.10.2015,Elderly Frail Homecare,Charges from Independent Providers,687.60,ACORN CARE SERVICE LTD
Revenue,Adult Services,5105654716,14.10.2015,Elderly Frail Homecare,Charges from Independent Providers,427.84,ACORN CARE SERVICE LTD
Revenue,Adult Services,5105654722,14.10.2015,Elderly Frail Homecare,Charges from Independent Providers,534.80,ACORN CARE SERVICE LTD
Revenue,Adult Services,5105654706,14.10.2015,Elderly Frail Homecare,Charges from Independent Providers,"2,139.20",ACORN CARE SERVICE LTD
Revenue,Adult Services,5105654735,14.10.2015,Elderly Mentally Ill Homecare,Charges from Independent Providers,427.84,ACORN CARE SERVICE LTD
Revenue,Childrens Services,5105655511,16.10.2015,Purchased Fostering,Charges from Independent Providers,"10,185.71",ACTION FOR CHILDREN
Revenue,Place,5105655146,14.10.2015,Diversity & Workforce,Training,112.80,ACTIVE LEARNING AND DEVELOPMENT LTD
Revenue,Place,5105654268,14.10.2015,Diversity & Workforce,Training,"1,970.00",ACTIVE LEARNING AND DEVELOPMENT LTD
Revenue,Place,5105654268,14.10.2015,Diversity & Workforce,Training,180.00,ACTIVE LEARNING AND DEVELOPMENT LTD
Revenue,Resources,5105656011,21.10.2015,Litigation Costs,Legal Fees - Other Parties,"2,040.00","COLLEGE CHAMBERS, BARRISTERS"
Revenue,Place,5105657180,28.10.2015,Fire Technical Support,Vehicle Maintenance Costs,410.10,ADAMS MOREY LTD
Revenue,Place,5105657130,28.10.2015,Fire Technical Support,Vehicle Maintenance Costs,14.50,ADAMS MOREY LTD
Revenue,Place,5105653844,09.10.2015,Fire Technical Support,Vehicle Maintenance Costs,14.50,ADAMS MOREY LTD
Revenue,Place,5105653846,09.10.2015,Fire Technical Support,Vehicle Maintenance Costs,14.50,ADAMS MOREY LTD
Revenue,Place,5105653643,07.10.2015,Fire Technical Support,Vehicle Maintenance Costs,21.75,ADAMS MOREY LTD
Revenue,Place,5105652781,07.10.2015,Fire Technical Support,Vehicle Maintenance Costs,11.96,ADAMS MOREY LTD
Revenue,Place,5105652781,07.10.2015,Fire Technical Support,Vehicle Maintenance Costs,15.71,ADAMS MOREY LTD
Revenue,Place,5105652782,07.10.2015,Fire Technical Support,Vehicle Maintenance Costs,169.06,ADAMS MOREY LTD
Revenue,Place,5105652782,07.10.2015,Fire Technical Support,Vehicle Maintenance Costs,3.94,ADAMS MOREY LTD
Revenue,Place,5105652782,07.10.2015,Fire Technical Support,Vehicle Maintenance Costs,6.99,ADAMS MOREY LTD
Revenue,Place,5105652782,07.10.2015,Fire Technical Support,Vehicle Maintenance Costs,3.00,ADAMS MOREY LTD
Revenue,Place,5105652782,07.10.2015,Fire Technical Support,Vehicle Maintenance Costs,11.54,ADAMS MOREY LTD
Revenue,Place,5105652780,07.10.2015,Fire Technical Support,Vehicle Maintenance Costs,195.97,ADAMS MOREY LTD
Revenue,Place,5105652781,07.10.2015,Fire Technical Support,Vehicle Maintenance Costs,6.29,ADAMS MOREY LTD
Revenue,Place,5105652781,07.10.2015,Fire Technical Support,Vehicle Maintenance Costs,42.00,ADAMS MOREY LTD
Revenue,Place,5105652781,07.10.2015,Fire Technical Support,Vehicle Maintenance Costs,10.28,ADAMS MOREY LTD
Revenue,Place,5105652781,07.10.2015,Fire Technical Support,Vehicle Maintenance Costs,10.65,ADAMS MOREY LTD
Revenue,Place,5105652781,07.10.2015,Fire Technical Support,Vehicle Maintenance Costs,10.00,ADAMS MOREY LTD
Revenue,Place,5105652770,07.10.2015,Fire Technical Support,Vehicle Maintenance Costs,40.00,ADAMS MOREY LTD
Revenue,Place,5105652782,07.10.2015,Fire Technical Support,Vehicle Maintenance Costs,1.63,ADAMS MOREY LTD
Revenue,Place,5105652755,07.10.2015,Fire Technical Support,Vehicle Maintenance Costs,161.00,ADAMS MOREY LTD
Revenue,Place,5105657096,28.10.2015,Fire Technical Support,Vehicle Maintenance Costs,15.80,ADAMS MOREY LTD
Revenue,Place,5105657096,28.10.2015,Fire Technical Support,Vehicle Maintenance Costs,33.62,ADAMS MOREY LTD
Revenue,Place,5105657096,28.10.2015,Fire Technical Support,Vehicle Maintenance Costs,5.64,ADAMS MOREY LTD
Revenue,Place,5105657167,28.10.2015,Fire Technical Support,Vehicle Maintenance Costs,48.00,ADAMS MOREY LTD
Revenue,Place,5105657140,28.10.2015,Fire Technical Support,Vehicle Maintenance Costs,15.69,ADAMS MOREY LTD
Revenue,Place,5105657140,28.10.2015,Fire Technical Support,Vehicle Maintenance Costs,5.00,ADAMS MOREY LTD
Revenue,Place,5105657140,28.10.2015,Fire Technical Support,Vehicle Maintenance Costs,9.97,ADAMS MOREY LTD
Revenue,Place,5105657096,28.10.2015,Fire Technical Support,Vehicle Maintenance Costs,16.36,ADAMS MOREY LTD
Revenue,Place,5105657096,28.10.2015,Fire Technical Support,Vehicle Maintenance Costs,6.82,ADAMS MOREY LTD
Revenue,Place,5105657096,28.10.2015,Fire Technical Support,Vehicle Maintenance Costs,7.48,ADAMS MOREY LTD
Revenue,Place,5105657096,28.10.2015,Fire Technical Support,Vehicle Maintenance Costs,20.00,ADAMS MOREY LTD
Revenue,Place,5105657096,28.10.2015,Fire Technical Support,Vehicle Maintenance Costs,12.50,ADAMS MOREY LTD
Revenue,Place,5105657096,28.10.2015,Fire Technical Support,Vehicle Maintenance Costs,2.94,ADAMS MOREY LTD
Revenue,Place,5105657096,28.10.2015,Fire Technical Support,Vehicle Maintenance Costs,1.05,ADAMS MOREY LTD
Revenue,Place,5105657096,28.10.2015,Fire Technical Support,Vehicle Maintenance Costs,0.80,ADAMS MOREY LTD
Revenue,Place,5105657096,28.10.2015,Fire Technical Support,Vehicle Maintenance Costs,8.50,ADAMS MOREY LTD
Revenue,Place,5105657164,28.10.2015,Fire Technical Support,Vehicle Maintenance Costs,14.50,ADAMS MOREY LTD
Revenue,Place,5105657169,28.10.2015,Fire Technical Support,Vehicle Maintenance Costs,21.75,ADAMS MOREY LTD
Revenue,Childrens Services,5105656181,21.10.2015,Island Learning Centre,Agency staff,430.00,A-DAY CONSULTANTS LTD
Revenue,Childrens Services,5105656082,21.10.2015,Island Learning Centre,Agency staff,330.00,A-DAY CONSULTANTS LTD
Revenue,Childrens Services,5105656179,21.10.2015,Island Learning Centre,Agency staff,215.00,A-DAY CONSULTANTS LTD
Revenue,Childrens Services,5105655678,23.10.2015,LSCB (Local Safeguarding Childrens Board),Printing Costs,198.00,ADGIFTDISCOUNTS LTD
Revenue,Adult Services,5105652816,07.10.2015,Elderly Frail Residential Care,Charges from Independent Providers,"1,812.44",ADIEMUS CARE LTD
Revenue,Childrens Services,5105651454,14.10.2015,Adoption Reform Grant,Charges from Independent Providers,262.15,ADOPTION MATTERS NORTHWEST
Revenue,Childrens Services,5105652287,14.10.2015,Adoption Reform Grant,Charges from Independent Providers,120.00,ADOPTION MATTERS NORTHWEST
Revenue,Place,5105653792,16.10.2015,17 Fairlee Road,Security of Buildings,785.00,ADT FIRE AND SECURITY PLC
Revenue,Place,5105652552,07.10.2015,"County Hall,Newport",Security of Buildings,828.00,ADT FIRE AND SECURITY PLC
Revenue,Place,5105654567,14.10.2015,Coroner,Training,"1,700.00",ADVANCED LEGAL SOLOUTIONS LTD
Revenue,Place,5105656093,28.10.2015,Dinosaur Isle Museum (Sandown Geology),Operational Equipment,"1,013.75",AEP LTD
Revenue,Place,5105656091,20.10.2015,Dinosaur Isle Museum (Sandown Geology),Operational Equipment,"-1,013.75",AEP LTD
Revenue,Place,5105656090,20.10.2015,Dinosaur Isle Museum (Sandown Geology),Operational Equipment,"1,013.75",AEP LTD
Revenue,Place,5105652728,07.10.2015,Renewal & Enforcement,Payments to Voluntary and Other Associations,"6,665.00",AGE CONCERN T/A AGE UK
Revenue,Adult Services,5105652727,07.10.2015,Vanguard Set-Up,Employee Subsistence Expenses,137.00,AGE CONCERN T/A AGE UK
Revenue,Place,5105656571,28.10.2015,Medina Leisure Centre,Prop Svs only - Day to day mtce,585.00,AIRTEK SERVICES
Revenue,Adult Services,5105653748,14.10.2015,Gouldings Resource Centre,Maintenance of Operational Equipment,"3,735.00",AIRTEK SERVICES
Revenue,Place,5105656868,28.10.2015,Fire Technical Support,Maintenance of Operational Equipment,98.75,ALBANY FARM & G MACHINERY LTD
Revenue,Place,5105656870,28.10.2015,Crematorium,Operational Equipment,33.33,ALBANY FARM & G MACHINERY LTD
Revenue,Childrens Services,5105656777,28.10.2015,Court Work & Consultancy Services,Legal Fees - Other Parties,237.00,ALERE TOXICOLOGY PLC
Revenue,Childrens Services,5105656301,23.10.2015,Workforce Development - Early Years,Training,725.00,ALISON BOTHA T/A ADVANCE TRAINING
Revenue,Childrens Services,5105654476,14.10.2015,Special Educational Needs Transport,Taxis - Contract Hire,40.00,ALPHA (IOW) LTD
Revenue,Childrens Services,5105654472,14.10.2015,Special Educational Needs Transport,Taxis - Contract Hire,100.00,ALPHA (IOW) LTD
Revenue,Childrens Services,5105654484,14.10.2015,Special Educational Needs Transport,Taxis - Contract Hire,200.00,ALPHA (IOW) LTD
Revenue,Childrens Services,5105654483,14.10.2015,Special Educational Needs Transport,Taxis - Contract Hire,200.00,ALPHA (IOW) LTD
Revenue,Childrens Services,5105654476,14.10.2015,Special Educational Needs Transport,Taxis - Contract Hire,80.00,ALPHA (IOW) LTD
Revenue,Childrens Services,5105654472,14.10.2015,Special Educational Needs Transport,Taxis - Contract Hire,200.00,ALPHA (IOW) LTD
Revenue,Childrens Services,5105654476,14.10.2015,Special Educational Needs Transport,Taxis - Contract Hire,282.80,ALPHA (IOW) LTD
Revenue,Childrens Services,5105654483,14.10.2015,Special Educational Needs Transport,Taxis - Contract Hire,282.80,ALPHA (IOW) LTD
Revenue,Childrens Services,5105654474,14.10.2015,Special Educational Needs Transport,Taxis - Contract Hire,226.24,ALPHA (IOW) LTD
Revenue,Childrens Services,5105654484,14.10.2015,Special Educational Needs Transport,Taxis - Contract Hire,282.80,ALPHA (IOW) LTD
Revenue,Childrens Services,5105654472,14.10.2015,Special Educational Needs Transport,Taxis - Contract Hire,282.80,ALPHA (IOW) LTD
Revenue,Childrens Services,5105654474,14.10.2015,Special Educational Needs Transport,Taxis - Contract Hire,123.14,ALPHA (IOW) LTD
Revenue,Childrens Services,5105654484,14.10.2015,Special Educational Needs Transport,Taxis - Contract Hire,307.85,ALPHA (IOW) LTD
Revenue,Childrens Services,5105654483,14.10.2015,Special Educational Needs Transport,Taxis - Contract Hire,307.85,ALPHA (IOW) LTD
Revenue,Childrens Services,5105654476,14.10.2015,Special Educational Needs Transport,Taxis - Contract Hire,307.85,ALPHA (IOW) LTD
Revenue,Childrens Services,5105654472,14.10.2015,Special Educational Needs Transport,Taxis - Contract Hire,307.85,ALPHA (IOW) LTD
Revenue,Childrens Services,5105654476,14.10.2015,Special Educational Needs Transport,Taxis - Contract Hire,461.75,ALPHA (IOW) LTD
Revenue,Childrens Services,5105654472,14.10.2015,Special Educational Needs Transport,Taxis - Contract Hire,461.75,ALPHA (IOW) LTD
Revenue,Childrens Services,5105654484,14.10.2015,Special Educational Needs Transport,Taxis - Contract Hire,461.75,ALPHA (IOW) LTD
Revenue,Childrens Services,5105654483,14.10.2015,Special Educational Needs Transport,Taxis - Contract Hire,461.75,ALPHA (IOW) LTD
Revenue,Childrens Services,5105654474,14.10.2015,Special Educational Needs Transport,Taxis - Contract Hire,277.05,ALPHA (IOW) LTD
Revenue,Childrens Services,5105656259,21.10.2015,Special Educational Needs Transport,Taxis - Contract Hire,210.00,ALPHA (IOW) LTD
Revenue,Childrens Services,5105656259,21.10.2015,Special Educational Needs Transport,Taxis - Contract Hire,101.00,ALPHA (IOW) LTD
Revenue,Childrens Services,5105656259,21.10.2015,Special Educational Needs Transport,Taxis - Contract Hire,100.00,ALPHA (IOW) LTD
Revenue,Childrens Services,5105656920,28.10.2015,Special Educational Needs Transport,Taxis - Contract Hire,100.00,ALPHA (IOW) LTD
Revenue,Childrens Services,5105656920,28.10.2015,Special Educational Needs Transport,Taxis - Contract Hire,210.00,ALPHA (IOW) LTD
Revenue,Childrens Services,5105656920,28.10.2015,Special Educational Needs Transport,Taxis - Contract Hire,101.00,ALPHA (IOW) LTD
Revenue,Childrens Services,5105656920,28.10.2015,Special Educational Needs Transport,Taxis - Contract Hire,135.30,ALPHA (IOW) LTD
Revenue,Childrens Services,5105656920,28.10.2015,Special Educational Needs Transport,Taxis - Contract Hire,307.85,ALPHA (IOW) LTD
Revenue,Childrens Services,5105656920,28.10.2015,Special Educational Needs Transport,Taxis - Contract Hire,461.75,ALPHA (IOW) LTD
Revenue,Childrens Services,5105654484,14.10.2015,Special Educational Needs Transport,Taxis - Contract Hire,64.64,ALPHA (IOW) LTD
Revenue,Childrens Services,5105654474,14.10.2015,Special Educational Needs Transport,Taxis - Contract Hire,129.28,ALPHA (IOW) LTD
Revenue,Childrens Services,5105654472,14.10.2015,Special Educational Needs Transport,Taxis - Contract Hire,193.92,ALPHA (IOW) LTD
Revenue,Childrens Services,5105654476,14.10.2015,Special Educational Needs Transport,Taxis - Contract Hire,323.20,ALPHA (IOW) LTD
Revenue,Childrens Services,5105654472,14.10.2015,Special Educational Needs Transport,Taxis - Contract Hire,84.00,ALPHA (IOW) LTD
Revenue,Childrens Services,5105654483,14.10.2015,Special Educational Needs Transport,Taxis - Contract Hire,210.00,ALPHA (IOW) LTD
Revenue,Childrens Services,5105654484,14.10.2015,Special Educational Needs Transport,Taxis - Contract Hire,210.00,ALPHA (IOW) LTD
Revenue,Childrens Services,5105654484,14.10.2015,Special Educational Needs Transport,Taxis - Contract Hire,101.00,ALPHA (IOW) LTD
Revenue,Childrens Services,5105654483,14.10.2015,Special Educational Needs Transport,Taxis - Contract Hire,101.00,ALPHA (IOW) LTD
Revenue,Childrens Services,5105654476,14.10.2015,Special Educational Needs Transport,Taxis - Contract Hire,101.00,ALPHA (IOW) LTD
Revenue,Childrens Services,5105654474,14.10.2015,Special Educational Needs Transport,Taxis - Contract Hire,50.50,ALPHA (IOW) LTD
Revenue,Childrens Services,5105654472,14.10.2015,Special Educational Needs Transport,Taxis - Contract Hire,101.00,ALPHA (IOW) LTD
Revenue,Childrens Services,5105654474,14.10.2015,Special Educational Needs Transport,Taxis - Contract Hire,180.00,ALPHA (IOW) LTD
Revenue,Childrens Services,5105654476,14.10.2015,Special Educational Needs Transport,Taxis - Contract Hire,450.00,ALPHA (IOW) LTD
Revenue,Childrens Services,5105654483,14.10.2015,Special Educational Needs Transport,Taxis - Contract Hire,450.00,ALPHA (IOW) LTD
Revenue,Childrens Services,5105654484,14.10.2015,Special Educational Needs Transport,Taxis - Contract Hire,450.00,ALPHA (IOW) LTD
Revenue,Childrens Services,5105654472,14.10.2015,Special Educational Needs Transport,Taxis - Contract Hire,450.00,ALPHA (IOW) LTD
Revenue,Childrens Services,5105654472,14.10.2015,Special Educational Needs Transport,Taxis - Contract Hire,450.00,ALPHA (IOW) LTD
Revenue,Childrens Services,5105654483,14.10.2015,Special Educational Needs Transport,Taxis - Contract Hire,450.00,ALPHA (IOW) LTD
Revenue,Childrens Services,5105654484,14.10.2015,Special Educational Needs Transport,Taxis - Contract Hire,450.00,ALPHA (IOW) LTD
Revenue,Childrens Services,5105654476,14.10.2015,Special Educational Needs Transport,Taxis - Contract Hire,450.00,ALPHA (IOW) LTD
Revenue,Childrens Services,5105654474,14.10.2015,Special Educational Needs Transport,Taxis - Contract Hire,180.00,ALPHA (IOW) LTD
Revenue,Childrens Services,5105654476,14.10.2015,Special Educational Needs Transport,Taxis - Contract Hire,400.85,ALPHA (IOW) LTD
Revenue,Childrens Services,5105654474,14.10.2015,Special Educational Needs Transport,Taxis - Contract Hire,160.34,ALPHA (IOW) LTD
Revenue,Childrens Services,5105654484,14.10.2015,Special Educational Needs Transport,Taxis - Contract Hire,400.85,ALPHA (IOW) LTD
Revenue,Childrens Services,5105654483,14.10.2015,Special Educational Needs Transport,Taxis - Contract Hire,400.85,ALPHA (IOW) LTD
Revenue,Childrens Services,5105654472,14.10.2015,Special Educational Needs Transport,Taxis - Contract Hire,400.85,ALPHA (IOW) LTD
Revenue,Childrens Services,5105654472,14.10.2015,Special Educational Needs Transport,Taxis - Contract Hire,314.45,ALPHA (IOW) LTD
Revenue,Childrens Services,5105654483,14.10.2015,Special Educational Needs Transport,Taxis - Contract Hire,314.45,ALPHA (IOW) LTD
Revenue,Childrens Services,5105654484,14.10.2015,Special Educational Needs Transport,Taxis - Contract Hire,314.45,ALPHA (IOW) LTD
Revenue,Childrens Services,5105654474,14.10.2015,Special Educational Needs Transport,Taxis - Contract Hire,125.78,ALPHA (IOW) LTD
Revenue,Childrens Services,5105654476,14.10.2015,Special Educational Needs Transport,Taxis - Contract Hire,314.45,ALPHA (IOW) LTD
Revenue,Childrens Services,5105656920,28.10.2015,Special Educational Needs Transport,Taxis - Contract Hire,200.00,ALPHA (IOW) LTD
Revenue,Childrens Services,5105656920,28.10.2015,Special Educational Needs Transport,Taxis - Contract Hire,282.80,ALPHA (IOW) LTD
Revenue,Childrens Services,5105656920,28.10.2015,Special Educational Needs Transport,Taxis - Contract Hire,450.00,ALPHA (IOW) LTD
Revenue,Childrens Services,5105656920,28.10.2015,Special Educational Needs Transport,Taxis - Contract Hire,450.00,ALPHA (IOW) LTD
Revenue,Childrens Services,5105656920,28.10.2015,Special Educational Needs Transport,Taxis - Contract Hire,400.85,ALPHA (IOW) LTD
Revenue,Childrens Services,5105656920,28.10.2015,Special Educational Needs Transport,Taxis - Contract Hire,314.45,ALPHA (IOW) LTD
Revenue,Childrens Services,5105656259,21.10.2015,Special Educational Needs Transport,Taxis - Contract Hire,135.30,ALPHA (IOW) LTD
Revenue,Childrens Services,5105656259,21.10.2015,Special Educational Needs Transport,Taxis - Contract Hire,307.85,ALPHA (IOW) LTD
Revenue,Childrens Services,5105656259,21.10.2015,Special Educational Needs Transport,Taxis - Contract Hire,461.75,ALPHA (IOW) LTD
Revenue,Childrens Services,5105656259,21.10.2015,Special Educational Needs Transport,Taxis - Contract Hire,200.00,ALPHA (IOW) LTD
Revenue,Childrens Services,5105656259,21.10.2015,Special Educational Needs Transport,Taxis - Contract Hire,282.80,ALPHA (IOW) LTD
Revenue,Childrens Services,5105656259,21.10.2015,Special Educational Needs Transport,Taxis - Contract Hire,450.00,ALPHA (IOW) LTD
Revenue,Childrens Services,5105656259,21.10.2015,Special Educational Needs Transport,Taxis - Contract Hire,450.00,ALPHA (IOW) LTD
Revenue,Childrens Services,5105656259,21.10.2015,Special Educational Needs Transport,Taxis - Contract Hire,400.85,ALPHA (IOW) LTD
Revenue,Childrens Services,5105656259,21.10.2015,Special Educational Needs Transport,Taxis - Contract Hire,314.45,ALPHA (IOW) LTD
Revenue,Childrens Services,5105654474,14.10.2015,Special Educational Needs Transport,Taxis - Contract Hire,54.12,ALPHA (IOW) LTD
Revenue,Childrens Services,5105654483,14.10.2015,Special Educational Needs Transport,Taxis - Contract Hire,135.30,ALPHA (IOW) LTD
Revenue,Childrens Services,5105654484,14.10.2015,Special Educational Needs Transport,Taxis - Contract Hire,135.30,ALPHA (IOW) LTD
Revenue,Childrens Services,5105654472,14.10.2015,Special Educational Needs Transport,Taxis - Contract Hire,135.30,ALPHA (IOW) LTD
Revenue,Childrens Services,5105654476,14.10.2015,Special Educational Needs Transport,Taxis - Contract Hire,135.30,ALPHA (IOW) LTD
Revenue,Childrens Services,5105654484,14.10.2015,Special Educational Needs Transport,Taxis - Contract Hire,100.00,ALPHA (IOW) LTD
Revenue,Childrens Services,5105654483,14.10.2015,Special Educational Needs Transport,Taxis - Contract Hire,100.00,ALPHA (IOW) LTD
Revenue,Childrens Services,5105652644,07.10.2015,Disabled Childrens Team,Transport of Clients,15.60,ALPHA (IOW) LTD
Revenue,Childrens Services,5105656920,28.10.2015,"Speech, Language and Communication",Transport of Clients,135.30,ALPHA (IOW) LTD
Revenue,Childrens Services,5105656920,28.10.2015,"Speech, Language and Communication",Transport of Clients,140.00,ALPHA (IOW) LTD
Revenue,Childrens Services,5105656920,28.10.2015,"Speech, Language and Communication",Transport of Clients,420.00,ALPHA (IOW) LTD
Revenue,Childrens Services,5105656259,21.10.2015,"Speech, Language and Communication",Transport of Clients,135.30,ALPHA (IOW) LTD
Revenue,Childrens Services,5105656259,21.10.2015,"Speech, Language and Communication",Transport of Clients,140.00,ALPHA (IOW) LTD
Revenue,Childrens Services,5105656259,21.10.2015,"Speech, Language and Communication",Transport of Clients,380.00,ALPHA (IOW) LTD
Revenue,Childrens Services,5105656078,21.10.2015,"Speech, Language and Communication",Transport of Clients,40.00,ALPHA (IOW) LTD
Revenue,Childrens Services,5105654476,14.10.2015,"Speech, Language and Communication",Transport of Clients,135.30,ALPHA (IOW) LTD
Revenue,Childrens Services,5105654472,14.10.2015,"Speech, Language and Communication",Transport of Clients,135.30,ALPHA (IOW) LTD
Revenue,Childrens Services,5105654484,14.10.2015,"Speech, Language and Communication",Transport of Clients,135.30,ALPHA (IOW) LTD
Revenue,Childrens Services,5105654483,14.10.2015,"Speech, Language and Communication",Transport of Clients,135.30,ALPHA (IOW) LTD
Revenue,Childrens Services,5105654474,14.10.2015,"Speech, Language and Communication",Transport of Clients,54.12,ALPHA (IOW) LTD
Revenue,Childrens Services,5105654474,14.10.2015,"Speech, Language and Communication",Transport of Clients,56.00,ALPHA (IOW) LTD
Revenue,Childrens Services,5105654484,14.10.2015,"Speech, Language and Communication",Transport of Clients,140.00,ALPHA (IOW) LTD
Revenue,Childrens Services,5105654483,14.10.2015,"Speech, Language and Communication",Transport of Clients,140.00,ALPHA (IOW) LTD
Revenue,Childrens Services,5105654472,14.10.2015,"Speech, Language and Communication",Transport of Clients,140.00,ALPHA (IOW) LTD
Revenue,Childrens Services,5105654476,14.10.2015,"Speech, Language and Communication",Transport of Clients,140.00,ALPHA (IOW) LTD
Revenue,Childrens Services,5105654472,14.10.2015,"Speech, Language and Communication",Transport of Clients,380.00,ALPHA (IOW) LTD
Revenue,Childrens Services,5105654474,14.10.2015,"Speech, Language and Communication",Transport of Clients,152.00,ALPHA (IOW) LTD
Revenue,Childrens Services,5105654476,14.10.2015,"Speech, Language and Communication",Transport of Clients,380.00,ALPHA (IOW) LTD
Revenue,Childrens Services,5105654483,14.10.2015,"Speech, Language and Communication",Transport of Clients,380.00,ALPHA (IOW) LTD
Revenue,Childrens Services,5105654484,14.10.2015,"Speech, Language and Communication",Transport of Clients,380.00,ALPHA (IOW) LTD
Revenue,Childrens Services,5105654476,14.10.2015,Home to School Transport,Taxis - Contract Hire,432.55,ALPHA (IOW) LTD
Revenue,Childrens Services,5105654474,14.10.2015,Home to School Transport,Taxis - Contract Hire,259.53,ALPHA (IOW) LTD
Revenue,Childrens Services,5105654472,14.10.2015,Home to School Transport,Taxis - Contract Hire,432.55,ALPHA (IOW) LTD
Revenue,Childrens Services,5105654484,14.10.2015,Home to School Transport,Taxis - Contract Hire,432.55,ALPHA (IOW) LTD
Revenue,Childrens Services,5105654483,14.10.2015,Home to School Transport,Taxis - Contract Hire,432.55,ALPHA (IOW) LTD
Revenue,Childrens Services,5105654476,14.10.2015,Home to School Transport,Taxis - Contract Hire,303.00,ALPHA (IOW) LTD
Revenue,Childrens Services,5105654472,14.10.2015,Home to School Transport,Taxis - Contract Hire,303.00,ALPHA (IOW) LTD
Revenue,Childrens Services,5105654474,14.10.2015,Home to School Transport,Taxis - Contract Hire,121.20,ALPHA (IOW) LTD
Revenue,Childrens Services,5105654484,14.10.2015,Home to School Transport,Taxis - Contract Hire,303.00,ALPHA (IOW) LTD
Revenue,Childrens Services,5105654483,14.10.2015,Home to School Transport,Taxis - Contract Hire,303.00,ALPHA (IOW) LTD
Revenue,Childrens Services,5105654474,14.10.2015,Home to School Transport,Taxis - Contract Hire,167.86,ALPHA (IOW) LTD
Revenue,Childrens Services,5105654472,14.10.2015,Home to School Transport,Taxis - Contract Hire,419.65,ALPHA (IOW) LTD
Revenue,Childrens Services,5105654476,14.10.2015,Home to School Transport,Taxis - Contract Hire,419.65,ALPHA (IOW) LTD
Revenue,Childrens Services,5105654483,14.10.2015,Home to School Transport,Taxis - Contract Hire,419.65,ALPHA (IOW) LTD
Revenue,Childrens Services,5105654484,14.10.2015,Home to School Transport,Taxis - Contract Hire,419.65,ALPHA (IOW) LTD
Revenue,Childrens Services,5105654476,14.10.2015,Home to School Transport,Taxis - Contract Hire,431.15,ALPHA (IOW) LTD
Revenue,Childrens Services,5105654472,14.10.2015,Home to School Transport,Taxis - Contract Hire,431.15,ALPHA (IOW) LTD
Revenue,Childrens Services,5105654484,14.10.2015,Home to School Transport,Taxis - Contract Hire,431.15,ALPHA (IOW) LTD
Revenue,Childrens Services,5105654483,14.10.2015,Home to School Transport,Taxis - Contract Hire,431.15,ALPHA (IOW) LTD
Revenue,Childrens Services,5105654474,14.10.2015,Home to School Transport,Taxis - Contract Hire,172.46,ALPHA (IOW) LTD
Revenue,Childrens Services,5105656920,28.10.2015,Home to School Transport,Taxis - Contract Hire,140.00,ALPHA (IOW) LTD
Revenue,Childrens Services,5105656920,28.10.2015,Home to School Transport,Taxis - Contract Hire,466.35,ALPHA (IOW) LTD
Revenue,Childrens Services,5105656259,21.10.2015,Home to School Transport,Taxis - Contract Hire,466.35,ALPHA (IOW) LTD
Revenue,Childrens Services,5105654476,14.10.2015,Home to School Transport,Taxis - Contract Hire,140.00,ALPHA (IOW) LTD
Revenue,Childrens Services,5105654472,14.10.2015,Home to School Transport,Taxis - Contract Hire,140.00,ALPHA (IOW) LTD
Revenue,Childrens Services,5105654483,14.10.2015,Home to School Transport,Taxis - Contract Hire,140.00,ALPHA (IOW) LTD
Revenue,Childrens Services,5105654484,14.10.2015,Home to School Transport,Taxis - Contract Hire,140.00,ALPHA (IOW) LTD
Revenue,Childrens Services,5105654474,14.10.2015,Home to School Transport,Taxis - Contract Hire,56.00,ALPHA (IOW) LTD
Revenue,Childrens Services,5105654472,14.10.2015,Home to School Transport,Taxis - Contract Hire,466.35,ALPHA (IOW) LTD
Revenue,Childrens Services,5105654476,14.10.2015,Home to School Transport,Taxis - Contract Hire,466.35,ALPHA (IOW) LTD
Revenue,Childrens Services,5105654483,14.10.2015,Home to School Transport,Taxis - Contract Hire,466.35,ALPHA (IOW) LTD
Revenue,Childrens Services,5105654474,14.10.2015,Home to School Transport,Taxis - Contract Hire,186.54,ALPHA (IOW) LTD
Revenue,Childrens Services,5105654484,14.10.2015,Home to School Transport,Taxis - Contract Hire,466.35,ALPHA (IOW) LTD
Revenue,Childrens Services,5105656259,21.10.2015,Home to School Transport,Taxis - Contract Hire,432.55,ALPHA (IOW) LTD
Revenue,Childrens Services,5105656259,21.10.2015,Home to School Transport,Taxis - Contract Hire,303.00,ALPHA (IOW) LTD
Revenue,Childrens Services,5105656259,21.10.2015,Home to School Transport,Taxis - Contract Hire,419.65,ALPHA (IOW) LTD
Revenue,Childrens Services,5105656259,21.10.2015,Home to School Transport,Taxis - Contract Hire,431.15,ALPHA (IOW) LTD
Revenue,Childrens Services,5105656259,21.10.2015,Home to School Transport,Taxis - Contract Hire,140.00,ALPHA (IOW) LTD
Revenue,Childrens Services,5105656920,28.10.2015,Home to School Transport,Taxis - Contract Hire,432.55,ALPHA (IOW) LTD
Revenue,Childrens Services,5105656920,28.10.2015,Home to School Transport,Taxis - Contract Hire,303.00,ALPHA (IOW) LTD
Revenue,Childrens Services,5105656920,28.10.2015,Home to School Transport,Taxis - Contract Hire,419.65,ALPHA (IOW) LTD
Revenue,Childrens Services,5105656920,28.10.2015,Home to School Transport,Taxis - Contract Hire,431.15,ALPHA (IOW) LTD
Revenue,Childrens Services,5105652644,07.10.2015,S17 Disabled Children,Transport of Clients,72.00,ALPHA (IOW) LTD
Revenue,Childrens Services,5105654225,14.10.2015,Island Learning Centre,Travel Expenses,60.45,ALPHA (IOW) LTD
Revenue,Childrens Services,5105656905,28.10.2015,Island Learning Centre,Taxis - Contract Hire,303.90,ALPHA (IOW) LTD
Revenue,Adult Services,5105652855,07.10.2015,Learning Disability Residential Care,Charges from Independent Providers,"3,836.84",ALPHAGRANGE LTD
Revenue,Place,5105652291,07.10.2015,Project Manager Waste Strategy,Consultants Fees,"11,503.21",AMEC ENVIRONMENT AND INFRASTRUCTURE UK LTD
Revenue,Resources,5105652571,02.10.2015,Litigation Costs,Legal Fees - Other Parties,763.80,"COLLEGE CHAMBERS, BARRISTERS"
Revenue,Adult Services,5105652857,07.10.2015,Elderly Mentally Ill Residential Care,Charges from Independent Providers,"1,781.36",ANCONA CARE HOME
Revenue,Adult Services,5105656355,23.10.2015,Elderly Frail Residential Care,Charges from Independent Providers,"1,794.72",ANCONA CARE HOME
Revenue,Adult Services,5105652857,07.10.2015,Elderly Frail Residential Care,Charges from Independent Providers,"1,700.44",ANCONA CARE HOME
Revenue,Adult Services,5105652857,07.10.2015,Elderly Frail Residential Care,Charges from Independent Providers,"2,093.84",ANCONA CARE HOME
Revenue,Adult Services,5105652857,07.10.2015,Elderly Frail Residential Care,Charges from Independent Providers,"1,700.44",ANCONA CARE HOME
Revenue,Place,5105656683,23.10.2015,Fire Technical Support,Vehicle Maintenance Costs,"2,872.78",ANGLOCO LTD
Revenue,Place,5105656684,23.10.2015,Fire Technical Support,Vehicle Maintenance Costs,"1,895.39",ANGLOCO LTD
Revenue,Place,5105655168,14.10.2015,Fire Technical Support,Vehicle Maintenance Costs,12.50,ANGLOCO LTD
Revenue,Place,5105655171,14.10.2015,Fire Technical Support,Vehicle Maintenance Costs,97.44,ANGLOCO LTD
Revenue,Place,5105655171,14.10.2015,Fire Technical Support,Vehicle Maintenance Costs,12.50,ANGLOCO LTD
Revenue,Place,5105655132,14.10.2015,Fire Technical Support,Vehicle Maintenance Costs,93.44,ANGLOCO LTD
Revenue,Place,5105655132,14.10.2015,Fire Technical Support,Vehicle Maintenance Costs,6.00,ANGLOCO LTD
Revenue,Place,5105655132,14.10.2015,Fire Technical Support,Vehicle Maintenance Costs,14.24,ANGLOCO LTD
Revenue,Place,5105655132,14.10.2015,Fire Technical Support,Vehicle Maintenance Costs,10.34,ANGLOCO LTD
Revenue,Place,5105655132,14.10.2015,Fire Technical Support,Vehicle Maintenance Costs,12.50,ANGLOCO LTD
Revenue,Place,5105655170,14.10.2015,Fire Technical Support,Vehicle Maintenance Costs,61.50,ANGLOCO LTD
Revenue,Place,5105655170,14.10.2015,Fire Technical Support,Vehicle Maintenance Costs,12.50,ANGLOCO LTD
Revenue,Place,5105655168,14.10.2015,Fire Technical Support,Vehicle Maintenance Costs,128.26,ANGLOCO LTD
Revenue,Place,5105653814,07.10.2015,Fire Technical Support,Vehicle Maintenance Costs,12.50,ANGLOCO LTD
Revenue,Place,5105653814,07.10.2015,Fire Technical Support,Vehicle Maintenance Costs,128.26,ANGLOCO LTD
Revenue,Childrens Services,5105656127,28.10.2015,Dyslexia Support,General Educational Materials,16.50,ANN ARBOR PUBLISHERS LTD
Revenue,Childrens Services,5105656127,28.10.2015,Dyslexia Support,General Educational Materials,40.00,ANN ARBOR PUBLISHERS LTD
Revenue,Childrens Services,5105656127,28.10.2015,Dyslexia Support,General Educational Materials,38.00,ANN ARBOR PUBLISHERS LTD
Revenue,Childrens Services,5105656127,28.10.2015,Dyslexia Support,General Educational Materials,38.00,ANN ARBOR PUBLISHERS LTD
Revenue,Resources,5105656522,23.10.2015,Staff Benefits,Payment to Private Contractors,225.00,REDACTED PERSONAL DATA
Revenue,Place,5105653652,07.10.2015,Print Unit,Printing Costs,69.90,ANTALIS MCNAUGHTON
Revenue,Place,5105653652,07.10.2015,Print Unit,Printing Costs,31.74,ANTALIS MCNAUGHTON
Revenue,Place,5105654357,14.10.2015,Print Unit,Printing Costs,58.40,ANTALIS MCNAUGHTON
Revenue,Place,5105654356,14.10.2015,Print Unit,Printing Costs,49.32,ANTALIS MCNAUGHTON
Revenue,Place,5105655731,21.10.2015,Print Unit,Printing Costs,140.16,ANTALIS MCNAUGHTON
Revenue,Place,5105656679,23.10.2015,Print Unit,Printing Costs,30.10,ANTALIS MCNAUGHTON
Revenue,Place,5105656679,23.10.2015,Print Unit,Printing Costs,61.80,ANTALIS MCNAUGHTON
Revenue,Place,5105656679,23.10.2015,Print Unit,Printing Costs,32.70,ANTALIS MCNAUGHTON
Revenue,Place,5105656679,23.10.2015,Print Unit,Printing Costs,48.60,ANTALIS MCNAUGHTON
Revenue,Childrens Services,5105655197,16.10.2015,#N/A,General Materials,336.52,AQUALICITY LTD
Revenue,Childrens Services,5105655197,16.10.2015,Island Learning Centre,Schools Catering Contract,102.66,AQUALICITY LTD
Revenue,Place,5105653691,30.10.2015,Parks Mtce Miscellaneous,Operational Equipment,84.00,AQUAM WATER SERVICES LTD
Revenue,Place,5105656013,21.10.2015,Parks Mtce Miscellaneous,Operational Equipment,84.00,AQUAM WATER SERVICES LTD
Capital,Place,5105656221,21.10.2015,Coastal Capital Schemes,Payment to Contractors - Capital,"6,000.00",ARC CONSULTING LTD
Revenue,Place,5105657152,28.10.2015,Newco initiative - pump priming,Consultants Fees,"3,628.60",ARCHEMYS LTD
Revenue,Place,5105657153,28.10.2015,Newco initiative - pump priming,Consultants Fees,"3,200.00",ARCHEMYS LTD
Revenue,Resources,5105657559,30.10.2015,County Hall Central Mail Room,Clothing & Laundry,10.98,ARCO LTD
Revenue,Place,5105655918,21.10.2015,Fire Technical Support,Stock Purchases,246.12,ARCO LTD
Revenue,Place,5105655165,14.10.2015,Fire Technical Support,Stock Purchases,77.22,ARCO LTD
Revenue,Place,5105655919,21.10.2015,Fire Technical Support,Stock Purchases,17.97,ARCO LTD
Revenue,Place,5105655918,21.10.2015,Fire Technical Support,Stock Purchases,1.72,ARCO LTD
Revenue,Place,5105655918,21.10.2015,Fire Technical Support,Stock Purchases,24.70,ARCO LTD
Revenue,Place,5105655918,21.10.2015,Fire Technical Support,Stock Purchases,23.99,ARCO LTD
Revenue,Place,5105655918,21.10.2015,Fire Technical Support,Stock Purchases,9.50,ARCO LTD
Revenue,Place,5105655165,14.10.2015,Fire Technical Support,General Materials,37.48,ARCO LTD
Revenue,Place,5105654064,14.10.2015,Environment officers,Clothing & Laundry,38.24,ARCO LTD
Revenue,Place,5105655167,14.10.2015,Environment officers,Clothing & Laundry,20.64,ARCO LTD
Revenue,Place,5105656280,23.10.2015,Environment officers,Clothing & Laundry,13.54,ARCO LTD
Revenue,Place,5105652721,07.10.2015,Ferry Operation,Clothing & Laundry,35.56,ARCO LTD
Revenue,Place,5105653790,07.10.2015,The Heights,Professional Services,16.58,ARCO LTD
Revenue,Place,5105652810,07.10.2015,The Heights,Clothing & Laundry,394.20,ARCO LTD
Revenue,Resources,5105655161,16.10.2015,Corporate Stores,Clothing & Laundry,30.58,ARCO LTD
Revenue,Resources,5105657249,28.10.2015,Corporate Stores,Clothing & Laundry,9.66,ARCO LTD
Revenue,Resources,5105657249,28.10.2015,Corporate Stores,Clothing & Laundry,11.51,ARCO LTD
Revenue,Resources,5105657249,28.10.2015,Corporate Stores,Clothing & Laundry,18.87,ARCO LTD
Revenue,Resources,5105657249,28.10.2015,Corporate Stores,Clothing & Laundry,20.84,ARCO LTD
Revenue,Resources,5105657230,28.10.2015,Corporate Stores,Clothing & Laundry,22.46,ARCO LTD
Revenue,Resources,5105657249,28.10.2015,Corporate Stores,Clothing & Laundry,22.46,ARCO LTD
Revenue,Resources,5105657249,28.10.2015,Corporate Stores,Clothing & Laundry,10.42,ARCO LTD
Revenue,Resources,5105657230,28.10.2015,Corporate Stores,Clothing & Laundry,11.23,ARCO LTD
Revenue,Resources,5105657249,28.10.2015,Corporate Stores,Clothing & Laundry,20.84,ARCO LTD
Revenue,Resources,5105657249,28.10.2015,Corporate Stores,Clothing & Laundry,9.66,ARCO LTD
Revenue,Public Health,5105657280,30.10.2015,Contraception,Payment to Private Contractors,290.00,ARGYLL HOUSE SURGERY
Revenue,Adult Services,5105652058,07.10.2015,Saxonbury,Maintenance of Operational Equipment,604.52,ARJO MED AB LTD
Revenue,Adult Services,5105653544,07.10.2015,S75 Integrated Community Equipment Store,Operational Equipment,75.00,ARJO MED AB LTD
Revenue,Adult Services,5105653544,07.10.2015,S75 Integrated Community Equipment Store,Operational Equipment,240.00,ARJO MED AB LTD
Revenue,Adult Services,5105653544,07.10.2015,S75 Integrated Community Equipment Store,Operational Equipment,"5,814.00",ARJO MED AB LTD
Revenue,Adult Services,5105656020,21.10.2015,S75 Integrated Community Equipment Store,Operational Equipment,213.00,ARJO MED AB LTD
Revenue,Adult Services,5105655966,21.10.2015,S75 Integrated Community Equipment Store,Operational Equipment,11.00,ARJO MED AB LTD
Revenue,Adult Services,5105652159,21.10.2015,Gouldings Resource Centre,Maintenance of Operational Equipment,262.40,ARJO MED AB LTD
Revenue,Adult Services,5105656217,28.10.2015,Highmead,Maintenance of Operational Equipment,710.40,ARJO MED AB LTD
Revenue,Adult Services,5105652306,07.10.2015,40 Venner Avenue,Maintenance of Operational Equipment,244.00,ARJO MED AB LTD
Revenue,Place,5105654395,14.10.2015,Medina Leisure Centre,Prop Svs only - Day to day mtce,53.10,ASSA ABLOY ENTRANCE SYSTEMS LTD
Revenue,Place,5105655198,16.10.2015,Medina Leisure Centre,Prop Svs only - Day to day mtce,56.50,ASSA ABLOY ENTRANCE SYSTEMS LTD
Revenue,Place,5105654377,14.10.2015,"Seaclose Offices, Newport",Prop Svs only - Day to day mtce,25.74,ASSA ABLOY ENTRANCE SYSTEMS LTD
Revenue,Place,5105652664,07.10.2015,"Westridge, Ryde",Property Services - Planned Maintenance,429.00,ASSA ABLOY ENTRANCE SYSTEMS LTD
Revenue,Place,5105654380,14.10.2015,Freshwater West Wight Library,Prop Svs only - Day to day mtce,45.71,ASSA ABLOY ENTRANCE SYSTEMS LTD
Revenue,Place,5105653687,14.10.2015,Public Libraries Central,Fixtures and Fittings,327.00,ASSA ABLOY ENTRANCE SYSTEMS LTD
Revenue,Place,5105654379,14.10.2015,"County Hall,Newport",Prop Svs only - Day to day mtce,29.95,ASSA ABLOY ENTRANCE SYSTEMS LTD
Revenue,Place,5105653592,07.10.2015,"County Hall,Newport",Prop Svs only - Day to day mtce,26.55,ASSA ABLOY ENTRANCE SYSTEMS LTD
Revenue,Adult Services,5105653599,23.10.2015,Mental Health Day Services,Property Services - Planned Maintenance,445.00,ASSA ABLOY ENTRANCE SYSTEMS LTD
Revenue,Childrens Services,5105657451,30.10.2015,Island Learning Centre,Schools Examination Fees,399.00,ASSESSMENT & QUALIFICATION ALLIANCE
Revenue,Resources,5105656747,30.10.2015,Organisational Development � Leadership,Professional Services,"3,000.00",ASTRID DAVIES CONSULTING LTD
Revenue,Place,5105654231,14.10.2015,R&E grant (Resilience & Efficiency Grant,Computer Software Licencing,"3,875.00",ASTRIUM LTD
Revenue,Place,5105654231,14.10.2015,R&E grant (Resilience & Efficiency Grant,Computer Software Licencing,285.00,ASTRIUM LTD
Revenue,Place,5105654093,09.10.2015,Economic Development Projects,Consultants Fees,"15,000.00",ATKINS LIMITED
Revenue,Place,5105654542,14.10.2015,Fire Technical Support,Vehicle Maintenance Costs,178.24,ATS EUROMASTER LTD
Revenue,Place,5105654542,14.10.2015,Fire Technical Support,Vehicle Maintenance Costs,120.82,ATS EUROMASTER LTD
Revenue,Place,5105654542,14.10.2015,Fire Technical Support,Vehicle Maintenance Costs,128.88,ATS EUROMASTER LTD
Revenue,Place,5105654542,14.10.2015,Fire Technical Support,Vehicle Maintenance Costs,110.17,ATS EUROMASTER LTD
Revenue,Place,5105654542,14.10.2015,Fire Technical Support,Vehicle Maintenance Costs,8.70,ATS EUROMASTER LTD
Revenue,Place,5105654542,14.10.2015,Fire Technical Support,Vehicle Maintenance Costs,2.32,ATS EUROMASTER LTD
Revenue,Place,5105654542,14.10.2015,Fire Technical Support,Vehicle Maintenance Costs,3.72,ATS EUROMASTER LTD
Revenue,Place,5105654542,14.10.2015,Fire Technical Support,Vehicle Maintenance Costs,83.02,ATS EUROMASTER LTD
Revenue,Childrens Services,5105653815,21.10.2015,NHS Funded Placements,Charges from Independent Providers,814.43,AUTISM WESSEX
Revenue,Childrens Services,5105653815,21.10.2015,Post 16 Independ. & Non-Maint. Special Schls & Independ. Specialist Provision,Charges from Independent Providers,"3,719.56",AUTISM WESSEX
Revenue,Childrens Services,5105653815,21.10.2015,Purchased Residential,Charges from Independent Providers,"7,338.20",AUTISM WESSEX
Revenue,Resources,5105653700,07.10.2015,Housing Benefit,Stationery,429.60,AUTOMAIL ENVELOPES LTD
Revenue,Adult Services,5105655318,16.10.2015,Elderly Mentally Ill Residential Care,Charges from Independent Providers,"3,589.44",AUTUMN HOUSE CARE LTD
Revenue,Adult Services,5105654361,14.10.2015,Elderly Mentally Ill Residential Care,Crisis Support for Carers,74.78,AUTUMN HOUSE CARE LTD
Revenue,Adult Services,5105655318,16.10.2015,Elderly Mentally Ill Residential Care,Crisis Support for Carers,"1,121.70",AUTUMN HOUSE CARE LTD
Revenue,Adult Services,5105652830,07.10.2015,Elderly Mentally Ill Residential Care,Charges from Independent Providers,"2,093.84",AUTUMN HOUSE CARE LTD
Revenue,Adult Services,5105652830,07.10.2015,Elderly Mentally Ill Residential Care,Charges from Independent Providers,"2,093.84",AUTUMN HOUSE CARE LTD
Revenue,Adult Services,5105652830,07.10.2015,Elderly Mentally Ill Residential Care,Charges from Independent Providers,"2,093.84",AUTUMN HOUSE CARE LTD
Revenue,Adult Services,5105652830,07.10.2015,Elderly Mentally Ill Residential Care,Charges from Independent Providers,"1,781.36",AUTUMN HOUSE CARE LTD
Revenue,Adult Services,5105652830,07.10.2015,Elderly Mentally Ill Residential Care,Charges from Independent Providers,"2,093.84",AUTUMN HOUSE CARE LTD
Revenue,Adult Services,5105652830,07.10.2015,Elderly Mentally Ill Residential Care,Charges from Independent Providers,"2,093.84",AUTUMN HOUSE CARE LTD
Revenue,Adult Services,5105652830,07.10.2015,Elderly Mentally Ill Residential Care,Charges from Independent Providers,"2,093.84",AUTUMN HOUSE CARE LTD
Revenue,Adult Services,5105652830,07.10.2015,Elderly Mentally Ill Residential Care,Charges from Independent Providers,"2,093.84",AUTUMN HOUSE CARE LTD
Revenue,Adult Services,5105652830,07.10.2015,Elderly Mentally Ill Residential Care,Charges from Independent Providers,"2,093.84",AUTUMN HOUSE CARE LTD
Revenue,Adult Services,5105652830,07.10.2015,Elderly Mentally Ill Residential Care,Charges from Independent Providers,"2,093.84",AUTUMN HOUSE CARE LTD
Revenue,Adult Services,5105652830,07.10.2015,Elderly Mentally Ill Residential Care,Charges from Independent Providers,"2,093.84",AUTUMN HOUSE CARE LTD
Revenue,Adult Services,5105652830,07.10.2015,Elderly Mentally Ill Residential Care,Charges from Independent Providers,"2,093.84",AUTUMN HOUSE CARE LTD
Revenue,Adult Services,5105652830,07.10.2015,Elderly Mentally Ill Residential Care,Charges from Independent Providers,"2,093.84",AUTUMN HOUSE CARE LTD
Revenue,Adult Services,5105652830,07.10.2015,Elderly Mentally Ill Residential Care,Charges from Independent Providers,"2,093.84",AUTUMN HOUSE CARE LTD
Revenue,Adult Services,5105652830,07.10.2015,Elderly Mentally Ill Residential Care,Charges from Independent Providers,"1,781.36",AUTUMN HOUSE CARE LTD
Revenue,Adult Services,5105652830,07.10.2015,Elderly Mentally Ill Residential Care,Charges from Independent Providers,"2,093.84",AUTUMN HOUSE CARE LTD
Revenue,Adult Services,5105652830,07.10.2015,Elderly Mentally Ill Residential Care,Charges from Independent Providers,"2,093.84",AUTUMN HOUSE CARE LTD
Revenue,Adult Services,5105652830,07.10.2015,Elderly Mentally Ill Residential Care,Charges from Independent Providers,"1,781.36",AUTUMN HOUSE CARE LTD
Revenue,Adult Services,5105652830,07.10.2015,Elderly Mentally Ill Residential Care,Charges from Independent Providers,"1,781.36",AUTUMN HOUSE CARE LTD
Revenue,Adult Services,5105652830,07.10.2015,Elderly Mentally Ill Residential Care,Charges from Independent Providers,"1,781.36",AUTUMN HOUSE CARE LTD
Revenue,Adult Services,5105652830,07.10.2015,Elderly Mentally Ill Residential Care,Charges from Independent Providers,"1,781.36",AUTUMN HOUSE CARE LTD
Revenue,Adult Services,5105652830,07.10.2015,Elderly Mentally Ill Residential Care,Charges from Independent Providers,"2,093.84",AUTUMN HOUSE CARE LTD
Revenue,Adult Services,5105652830,07.10.2015,Elderly Mentally Ill Residential Care,Charges from Independent Providers,"2,093.84",AUTUMN HOUSE CARE LTD
Revenue,Adult Services,5105654495,14.10.2015,Elderly Frail Residential Care,Charges from Independent Providers,"2,841.64",AUTUMN HOUSE CARE LTD
Revenue,Adult Services,5105652830,07.10.2015,Elderly Frail Residential Care,Charges from Independent Providers,"2,093.84",AUTUMN HOUSE CARE LTD
Revenue,Adult Services,5105652830,07.10.2015,Elderly Frail Residential Care,Charges from Independent Providers,"2,093.84",AUTUMN HOUSE CARE LTD
Revenue,Adult Services,5105653875,09.10.2015,Elderly Mentally Ill Daycare,Charges from Independent Providers,50.70,AUTUMN HOUSE CARE LTD
Revenue,Place,5105652637,02.10.2015,Duke of Edingburgh Award,General Materials,6.25,AWARD SCHEME LTD
Revenue,Place,5105652637,02.10.2015,Duke of Edingburgh Award,General Materials,68.90,AWARD SCHEME LTD
Revenue,Childrens Services,5105655350,16.10.2015,Leaving Care Costs,Support Children,50.00,REDACTED PERSONAL DATA
Revenue,Childrens Services,5105656382,23.10.2015,Leaving Care Costs,Support Children,50.00,REDACTED PERSONAL DATA
Revenue,Childrens Services,5105652393,02.10.2015,Leaving Care Costs,Support Children,50.00,REDACTED PERSONAL DATA
Revenue,Childrens Services,5105653920,09.10.2015,Leaving Care Costs,Support Children,50.00,REDACTED PERSONAL DATA
Revenue,Childrens Services,5105657315,30.10.2015,Leaving Care Costs,Support Children,50.00,REDACTED PERSONAL DATA
Revenue,Childrens Services,5105652393,02.10.2015,Leaving Care Costs,Accommodation Costs - Service Users,500.00,REDACTED PERSONAL DATA
Revenue,Childrens Services,5105657315,30.10.2015,In-house Fostering,Boarding Out Allowances,162.73,REDACTED PERSONAL DATA
Revenue,Childrens Services,5105657315,30.10.2015,In-house Fostering,Boarding Out Allowances,10.00,REDACTED PERSONAL DATA
Revenue,Childrens Services,5105657315,30.10.2015,In-house Fostering,Boarding Out Allowances,150.00,REDACTED PERSONAL DATA
Revenue,Childrens Services,5105656382,23.10.2015,In-house Fostering,Boarding Out Allowances,162.73,REDACTED PERSONAL DATA
Revenue,Childrens Services,5105656382,23.10.2015,In-house Fostering,Boarding Out Allowances,10.00,REDACTED PERSONAL DATA
Revenue,Childrens Services,5105656382,23.10.2015,In-house Fostering,Boarding Out Allowances,150.00,REDACTED PERSONAL DATA
Revenue,Childrens Services,5105655350,16.10.2015,In-house Fostering,Boarding Out Allowances,162.73,REDACTED PERSONAL DATA
Revenue,Childrens Services,5105655350,16.10.2015,In-house Fostering,Boarding Out Allowances,10.00,REDACTED PERSONAL DATA
Revenue,Childrens Services,5105655350,16.10.2015,In-house Fostering,Boarding Out Allowances,150.00,REDACTED PERSONAL DATA
Revenue,Childrens Services,5105653920,09.10.2015,In-house Fostering,Boarding Out Allowances,162.73,REDACTED PERSONAL DATA
Revenue,Childrens Services,5105653920,09.10.2015,In-house Fostering,Boarding Out Allowances,10.00,REDACTED PERSONAL DATA
Revenue,Childrens Services,5105653920,09.10.2015,In-house Fostering,Boarding Out Allowances,150.00,REDACTED PERSONAL DATA
Revenue,Childrens Services,5105652393,02.10.2015,In-house Fostering,Boarding Out Allowances,150.00,REDACTED PERSONAL DATA
Revenue,Childrens Services,5105652393,02.10.2015,In-house Fostering,Boarding Out Allowances,10.00,REDACTED PERSONAL DATA
Revenue,Childrens Services,5105652393,02.10.2015,In-house Fostering,Boarding Out Allowances,162.73,REDACTED PERSONAL DATA
Revenue,Childrens Services,5105654303,14.10.2015,Branstone Farm Studies Centre,General Materials,70.00,REDACTED PERSONAL DATA
Revenue,Childrens Services,5105654303,14.10.2015,Branstone Farm Studies Centre,General Materials,65.00,REDACTED PERSONAL DATA
Revenue,Adult Services,5105652843,07.10.2015,Learning Disability Residential Care,Charges from Independent Providers,"2,745.40",REDACTED PERSONAL DATA
Revenue,Adult Services,5105652843,07.10.2015,Learning Disability Residential Care,Charges from Independent Providers,"1,894.76",REDACTED PERSONAL DATA
Revenue,Adult Services,5105652843,07.10.2015,Learning Disability Residential Care,Charges from Independent Providers,"1,894.76",REDACTED PERSONAL DATA
Revenue,Place,5105656315,23.10.2015,Leaseholds by LA,Accommodation Costs - Leaseholder Payments,815.49,REDACTED PERSONAL DATA
Revenue,Resources,5105656441,23.10.2015,Staff Benefits,Payment to Private Contractors,100.00,REDACTED PERSONAL DATA
Revenue,Resources,5105656441,23.10.2015,Staff Benefits,Payment to Private Contractors,100.00,REDACTED PERSONAL DATA
Revenue,Resources,5105656441,23.10.2015,Staff Benefits,Payment to Private Contractors,100.00,REDACTED PERSONAL DATA
Revenue,Place,5105656321,23.10.2015,Leaseholds by LA,Accommodation Costs - Leaseholder Payments,799.50,REDACTED PERSONAL DATA
Revenue,Place,5105656321,23.10.2015,Leaseholds by LA,Accommodation Costs - Leaseholder Payments,888.33,REDACTED PERSONAL DATA
Revenue,Place,5105656321,23.10.2015,Leaseholds by LA,Accommodation Costs - Leaseholder Payments,866.67,REDACTED PERSONAL DATA
Revenue,Place,5105656321,23.10.2015,Leaseholds by LA,Accommodation Costs - Leaseholder Payments,866.67,REDACTED PERSONAL DATA
Revenue,Place,5105656321,23.10.2015,Leaseholds by LA,Accommodation Costs - Leaseholder Payments,799.50,REDACTED PERSONAL DATA
Revenue,Place,5105654378,14.10.2015,Cycling festival - launch expenses,Professional Services,850.00,B1KE LTD
Revenue,Place,5105654378,14.10.2015,Cycling festival - launch expenses,Professional Services,50.00,B1KE LTD
Revenue,Childrens Services,5105653565,07.10.2015,Children's Services Strategic Management,Minor Works,68.95,BALFOUR BEATTY
Capital,Childrens Services,5105655953,21.10.2015,Administration and Inspection Schemes,Payment to Contractors - Capital,145.62,BALFOUR BEATTY
Revenue,Place,5105653563,07.10.2015,Public Conveniences - General,Minor Works,199.53,BALFOUR BEATTY
Revenue,Place,5105656996,28.10.2015,Public Conveniences - General,Prop Svs only - Day to day mtce,131.25,BALFOUR BEATTY
Revenue,Place,5105653545,07.10.2015,Public Conveniences - General,Prop Svs only - Day to day mtce,114.55,BALFOUR BEATTY
Revenue,Place,5105653602,14.10.2015,Public Conveniences - General,Prop Svs only - Day to day mtce,167.66,BALFOUR BEATTY
Revenue,Place,5105652629,02.10.2015,Public Conveniences - General,Prop Svs only - Day to day mtce,149.72,BALFOUR BEATTY
Revenue,Place,5105652688,07.10.2015,Public Conveniences - General,Prop Svs only - Day to day mtce,72.00,BALFOUR BEATTY
Revenue,Place,5105653842,28.10.2015,Public Conveniences - General,Prop Svs only - Day to day mtce,81.06,BALFOUR BEATTY
Revenue,Place,5105653588,07.10.2015,Public Conveniences - General,Prop Svs only - Day to day mtce,364.61,BALFOUR BEATTY
Revenue,Place,5105656104,21.10.2015,Public Conveniences - General,Prop Svs only - Day to day mtce,205.55,BALFOUR BEATTY
Revenue,Childrens Services,5105655197,16.10.2015,Island Learning Centre,Payment to Private Contractors,"245,891.12",BALFOUR BEATTY
Revenue,Place,5105656024,21.10.2015,Public Conveniences - General,Prop Svs only - Day to day mtce,48.33,BALFOUR BEATTY
Revenue,Place,5105653853,09.10.2015,Business Support  - Fire,Prop Svs only - Day to day mtce,150.58,BALFOUR BEATTY
Revenue,Place,5105652321,02.10.2015,Cowes Library,Minor Works,164.60,BALFOUR BEATTY
Revenue,Childrens Services,5105653835,09.10.2015,Learning & Development Running Costs,Minor Works,279.36,BALFOUR BEATTY
Revenue,Childrens Services,5105652686,28.10.2015,Learning & Development Running Costs,Prop Svs only - Day to day mtce,139.08,BALFOUR BEATTY
Revenue,Place,5105652679,07.10.2015,Archives,Minor Works,21.60,BALFOUR BEATTY
Revenue,Place,5105654120,14.10.2015,Medina Leisure Centre,Prop Svs only - Day to day mtce,71.60,BALFOUR BEATTY
Revenue,Place,5105655954,21.10.2015,"Enterprise House, Newport",Prop Svs only - Day to day mtce,618.00,BALFOUR BEATTY
Revenue,Adult Services,5105652639,02.10.2015,Highmead,Minor Works,78.75,BALFOUR BEATTY
Revenue,Adult Services,5105657586,30.10.2015,Wightcare,Operational Equipment,213.70,BALFOUR BEATTY
Revenue,Place,5105656194,21.10.2015,"Westridge, Ryde",Prop Svs only - Day to day mtce,120.29,BALFOUR BEATTY
Revenue,Place,5105653586,07.10.2015,"24 Daish Way, Newport (WISE)",Prop Svs only - Day to day mtce,49.20,BALFOUR BEATTY
Revenue,Childrens Services,5105652670,07.10.2015,Beaulieu House,Minor Works,24.27,BALFOUR BEATTY
Revenue,Childrens Services,5105652682,07.10.2015,Beaulieu House,Minor Works,132.37,BALFOUR BEATTY
Revenue,Childrens Services,5105652684,07.10.2015,Beaulieu House,Minor Works,59.10,BALFOUR BEATTY
Revenue,Childrens Services,5105652638,02.10.2015,Island Learning Centre,Property Services - Planned Maintenance,"1,084.38",BALFOUR BEATTY
Revenue,Place,5105653857,09.10.2015,Sandown Library,Prop Svs only - Day to day mtce,533.80,BALFOUR BEATTY
Revenue,Place,5105653859,09.10.2015,"County Hall,Newport",Property Services - Planned Maintenance,276.73,BALFOUR BEATTY
Revenue,Place,5105652668,07.10.2015,"Bugle House,Newport",Minor Works,39.40,BALFOUR BEATTY
Revenue,Childrens Services,5105652676,07.10.2015,Youth- Newport,Prop Svs only - Day to day mtce,111.55,BALFOUR BEATTY
Revenue,Childrens Services,5105656163,21.10.2015,HCC Property Services SLA,Minor Works,356.50,BALFOUR BEATTY
Revenue,Childrens Services,5105656165,21.10.2015,HCC Property Services SLA,Minor Works,317.60,BALFOUR BEATTY
Revenue,Childrens Services,5105654441,14.10.2015,Youth Offending Team,Minor Works,329.77,BALFOUR BEATTY
Revenue,Place,5105656026,21.10.2015,Dinosaur Isle Museum (Sandown Geology),Operational Equipment,294.00,BALFOUR BEATTY
Revenue,Place,5105647936,02.10.2015,The Heights,Property Services - Planned Maintenance,855.00,BALFOUR BEATTY
Revenue,Place,5105652572,02.10.2015,The Heights,Property Services - Planned Maintenance,-855.00,BALFOUR BEATTY
Revenue,Place,5105652573,02.10.2015,The Heights,Property Services - Planned Maintenance,855.00,BALFOUR BEATTY
Revenue,Place,5105656177,21.10.2015,"Civic Centre,Sandown",Prop Svs only - Day to day mtce,139.61,BALFOUR BEATTY
Revenue,Place,5105652674,07.10.2015,"Civic Centre,Sandown",Prop Svs only - Day to day mtce,132.65,BALFOUR BEATTY
Revenue,Place,5105653837,09.10.2015,Fire Technical Support,Payment to Private Contractors,845.89,BALLYCLARE LTD
Revenue,Place,5105654132,09.10.2015,Fire Technical Support,Payment to Private Contractors,"6,751.39",BALLYCLARE LTD
Revenue,Childrens Services,5105654160,28.10.2015,LSCB (Local Safeguarding Childrens Board),Training,766.00,BARNARDOS
Revenue,Place,5105656175,21.10.2015,Road Safety,Operational Equipment,180.00,BARTLETTS SERVICE STATION
Revenue,Place,5105652809,07.10.2015,Diversity & Workforce,Operational Equipment,525.00,BARTLETTS SERVICE STATION
Revenue,Place,5105652809,07.10.2015,Diversity & Workforce,Operational Equipment,90.00,BARTLETTS SERVICE STATION
Revenue,Resources,5105656422,23.10.2015,Staff Benefits,Payment to Private Contractors,11.67,BARTON PRIMARY & EARLY YEARS
Revenue,Adult Services,5105657524,30.10.2015,S75 Integrated Community Equipment Store,Maintenance of Operational Equipment,6.50,BARTRAM ASSOCIATES LTD
Revenue,Adult Services,5105657524,30.10.2015,S75 Integrated Community Equipment Store,Maintenance of Operational Equipment,30.00,BARTRAM ASSOCIATES LTD
Revenue,Childrens Services,5105655197,16.10.2015,Island Learning Centre,General Materials,96.00,LAKE CLEANING & CATERING SUPPLIES
Revenue,Childrens Services,5105655197,16.10.2015,Island Learning Centre,General Materials,10.96,LAKE CLEANING & CATERING SUPPLIES
Revenue,Childrens Services,5105655197,16.10.2015,Island Learning Centre,General Materials,14.41,LAKE CLEANING & CATERING SUPPLIES
Revenue,Childrens Services,5105655197,16.10.2015,Island Learning Centre,General Materials,28.59,LAKE CLEANING & CATERING SUPPLIES
Revenue,Childrens Services,5105655197,16.10.2015,Island Learning Centre,General Materials,35.00,LAKE CLEANING & CATERING SUPPLIES
Revenue,Place,5105654414,14.10.2015,Medina Leisure Centre,Operational Equipment,36.15,LAKE CLEANING & CATERING SUPPLIES
Revenue,Place,5105656827,28.10.2015,Medina Leisure Centre,Consumable Cleaning Materials,25.94,LAKE CLEANING & CATERING SUPPLIES
Revenue,Place,5105656827,28.10.2015,Medina Leisure Centre,Consumable Cleaning Materials,13.44,LAKE CLEANING & CATERING SUPPLIES
Revenue,Place,5105656827,28.10.2015,Medina Leisure Centre,Consumable Cleaning Materials,20.76,LAKE CLEANING & CATERING SUPPLIES
Revenue,Place,5105656827,28.10.2015,Medina Leisure Centre,Consumable Cleaning Materials,7.14,LAKE CLEANING & CATERING SUPPLIES
Revenue,Place,5105656827,28.10.2015,Medina Leisure Centre,Consumable Cleaning Materials,117.50,LAKE CLEANING & CATERING SUPPLIES
Revenue,Place,5105656827,28.10.2015,Medina Leisure Centre,Consumable Cleaning Materials,21.84,LAKE CLEANING & CATERING SUPPLIES
Revenue,Place,5105656827,28.10.2015,Medina Leisure Centre,Consumable Cleaning Materials,7.28,LAKE CLEANING & CATERING SUPPLIES
Revenue,Place,5105654414,14.10.2015,Medina Leisure Centre,Consumable Cleaning Materials,45.96,LAKE CLEANING & CATERING SUPPLIES
Revenue,Place,5105654414,14.10.2015,Medina Leisure Centre,Consumable Cleaning Materials,10.92,LAKE CLEANING & CATERING SUPPLIES
Revenue,Place,5105654414,14.10.2015,Medina Leisure Centre,Consumable Cleaning Materials,11.82,LAKE CLEANING & CATERING SUPPLIES
Revenue,Place,5105654414,14.10.2015,Medina Leisure Centre,Consumable Cleaning Materials,29.12,LAKE CLEANING & CATERING SUPPLIES
Revenue,Place,5105654414,14.10.2015,Medina Leisure Centre,Consumable Cleaning Materials,17.64,LAKE CLEANING & CATERING SUPPLIES
Revenue,Place,5105654414,14.10.2015,Medina Leisure Centre,Consumable Cleaning Materials,6.76,LAKE CLEANING & CATERING SUPPLIES
Revenue,Place,5105654217,09.10.2015,Medina Leisure Centre,Consumable Cleaning Materials,10.20,LAKE CLEANING & CATERING SUPPLIES
Revenue,Place,5105654217,09.10.2015,Medina Leisure Centre,Consumable Cleaning Materials,10.92,LAKE CLEANING & CATERING SUPPLIES
Revenue,Place,5105654217,09.10.2015,Medina Leisure Centre,Consumable Cleaning Materials,47.00,LAKE CLEANING & CATERING SUPPLIES
Revenue,Place,5105654217,09.10.2015,Medina Leisure Centre,Consumable Cleaning Materials,21.92,LAKE CLEANING & CATERING SUPPLIES
Revenue,Place,5105654217,09.10.2015,Medina Leisure Centre,Consumable Cleaning Materials,10.42,LAKE CLEANING & CATERING SUPPLIES
Revenue,Place,5105654217,09.10.2015,Medina Leisure Centre,Consumable Cleaning Materials,31.78,LAKE CLEANING & CATERING SUPPLIES
Revenue,Adult Services,5105655892,21.10.2015,Plean Dene,Operational Equipment,44.94,LAKE CLEANING & CATERING SUPPLIES
Revenue,Adult Services,5105654244,14.10.2015,Plean Dene,Operational Equipment,36.32,LAKE CLEANING & CATERING SUPPLIES
Revenue,Place,5105656834,28.10.2015,"Barrack Block, Sandown",Consumable Cleaning Materials,9.15,LAKE CLEANING & CATERING SUPPLIES
Revenue,Place,5105656125,21.10.2015,Fire Technical Support,Stock Purchases,41.34,LAKE CLEANING & CATERING SUPPLIES
Revenue,Place,5105656125,21.10.2015,Fire Technical Support,Stock Purchases,107.16,LAKE CLEANING & CATERING SUPPLIES
Revenue,Place,5105656125,21.10.2015,Fire Technical Support,Stock Purchases,28.90,LAKE CLEANING & CATERING SUPPLIES
Revenue,Place,5105656125,21.10.2015,Fire Technical Support,Stock Purchases,99.36,LAKE CLEANING & CATERING SUPPLIES
Revenue,Place,5105656125,21.10.2015,Fire Technical Support,Stock Purchases,8.32,LAKE CLEANING & CATERING SUPPLIES
Revenue,Place,5105656125,21.10.2015,Fire Technical Support,Stock Purchases,15.90,LAKE CLEANING & CATERING SUPPLIES
Revenue,Place,5105656125,21.10.2015,Fire Technical Support,Stock Purchases,62.50,LAKE CLEANING & CATERING SUPPLIES
Revenue,Place,5105656125,21.10.2015,Fire Technical Support,Stock Purchases,32.88,LAKE CLEANING & CATERING SUPPLIES
Revenue,Childrens Services,5105654242,14.10.2015,Beaulieu House,General Materials,102.80,LAKE CLEANING & CATERING SUPPLIES
Revenue,Childrens Services,5105654251,14.10.2015,Beaulieu House,General Materials,51.50,LAKE CLEANING & CATERING SUPPLIES
Revenue,Childrens Services,5105656835,28.10.2015,Beaulieu House,General Materials,40.61,LAKE CLEANING & CATERING SUPPLIES
Revenue,Childrens Services,5105656836,28.10.2015,Beaulieu House,General Materials,64.22,LAKE CLEANING & CATERING SUPPLIES
Revenue,Childrens Services,5105656846,28.10.2015,Beaulieu House,General Materials,112.27,LAKE CLEANING & CATERING SUPPLIES
Revenue,Childrens Services,5105656828,28.10.2015,Beaulieu House,General Materials,41.22,LAKE CLEANING & CATERING SUPPLIES
Revenue,Childrens Services,5105656837,28.10.2015,Beaulieu House,General Materials,26.01,LAKE CLEANING & CATERING SUPPLIES
Revenue,Childrens Services,5105657121,28.10.2015,Beaulieu House,Professional Services,194.59,LAKE CLEANING & CATERING SUPPLIES
Revenue,Place,5105655922,21.10.2015,Dinosaur Isle Museum (Sandown Geology),General Materials,5.25,LAKE CLEANING & CATERING SUPPLIES
Revenue,Place,5105652621,02.10.2015,The Heights,Consumable Cleaning Materials,298.81,LAKE CLEANING & CATERING SUPPLIES
Revenue,Place,5105654249,14.10.2015,The Heights,Consumable Cleaning Materials,123.48,LAKE CLEANING & CATERING SUPPLIES
Revenue,Place,5105654466,14.10.2015,The Heights,Consumable Cleaning Materials,75.01,LAKE CLEANING & CATERING SUPPLIES
Revenue,Place,5105653787,07.10.2015,The Heights,Consumable Cleaning Materials,79.31,LAKE CLEANING & CATERING SUPPLIES
Revenue,Place,5105654253,14.10.2015,The Heights,Consumable Cleaning Materials,131.35,LAKE CLEANING & CATERING SUPPLIES
Revenue,Place,5105654247,14.10.2015,The Heights,Consumable Cleaning Materials,29.37,LAKE CLEANING & CATERING SUPPLIES
Revenue,Place,5105654256,14.10.2015,The Heights,Consumable Cleaning Materials,115.91,LAKE CLEANING & CATERING SUPPLIES
Revenue,Place,5105656825,28.10.2015,The Heights,Consumable Cleaning Materials,273.30,LAKE CLEANING & CATERING SUPPLIES
Revenue,Place,5105656570,23.10.2015,The Heights,Consumable Cleaning Materials,66.93,LAKE CLEANING & CATERING SUPPLIES
Revenue,Place,5105653787,07.10.2015,The Heights,Catering Equipment,72.11,LAKE CLEANING & CATERING SUPPLIES
Revenue,Place,5105654466,14.10.2015,The Heights,Catering Equipment,26.33,LAKE CLEANING & CATERING SUPPLIES
Revenue,Place,5105656825,28.10.2015,The Heights,Catering Equipment,56.76,LAKE CLEANING & CATERING SUPPLIES
Revenue,Place,5105656265,21.10.2015,Fairway Sports Complex,Consumable Cleaning Materials,164.07,LAKE CLEANING & CATERING SUPPLIES
Revenue,Place,5105656135,21.10.2015,Fairway Sports Complex,Consumable Cleaning Materials,12.54,LAKE CLEANING & CATERING SUPPLIES
Revenue,Place,5105656834,28.10.2015,"Civic Centre,Sandown",Consumable Cleaning Materials,9.15,LAKE CLEANING & CATERING SUPPLIES
Revenue,Place,5105657216,28.10.2015,Medina Theatre,Payment to Private Contractors,"3,500.00",BATON PRODUCTIONS LIMITED
Revenue,Place,5105655965,21.10.2015,October Walking Festival,Advertising & Publicity,90.00,BAUER CONSUMER MEDIA LTD
Revenue,Childrens Services,5105656137,21.10.2015,Pre 16 Independ. & Non-Maint. Special Schls & Independ. Specialist Provision,Transport of Clients,660.00,BEACON TAXIS
Revenue,Adult Services,5105653042,07.10.2015,Elderly Mentally Ill Nursing Mainland,Charges from Independent Providers,"2,269.40",BEAUMONT LODGE LTD
Revenue,Place,5105656283,23.10.2015,Environmental Health - Geographical Team,Clothing & Laundry,42.32,BERENDSEN
Revenue,Place,5105656282,23.10.2015,Environmental Health - Geographical Team,Clothing & Laundry,7.56,BERENDSEN
Revenue,Place,5105656128,21.10.2015,Environmental Health - Geographical Team,Clothing & Laundry,7.04,BERENDSEN
Revenue,Adult Services,5105655995,28.10.2015,Community Laundry Service,Clothing & Laundry,13.74,BERENDSEN
Revenue,Adult Services,5105655860,28.10.2015,Community Laundry Service,Clothing & Laundry,13.74,BERENDSEN
Revenue,Adult Services,5105655533,16.10.2015,Elderly Frail Other Care,Charges from Independent Providers,415.00,BERRY ELECTRICAL LTD
Revenue,Place,5105654307,14.10.2015,B&B Properties,Accommodation Costs - Bed & Breakfast,"5,588.00",BERTRAM LODGE
Revenue,Childrens Services,5105655197,16.10.2015,Island Learning Centre,General Materials,5.79,BETA PAK LTD
Revenue,Childrens Services,5105655197,16.10.2015,Island Learning Centre,General Materials,3.32,BETA PAK LTD
Revenue,Childrens Services,5105655197,16.10.2015,Island Learning Centre,General Materials,13.28,BETA PAK LTD
Revenue,Childrens Services,5105655197,16.10.2015,Island Learning Centre,General Materials,3.72,BETA PAK LTD
Revenue,Childrens Services,5105655197,16.10.2015,Island Learning Centre,General Materials,7.44,BETA PAK LTD
Revenue,Childrens Services,5105655197,16.10.2015,Island Learning Centre,General Materials,29.67,BETA PAK LTD
Revenue,Childrens Services,5105655197,16.10.2015,Island Learning Centre,General Materials,21.99,BETA PAK LTD
Revenue,Childrens Services,5105655197,16.10.2015,Island Learning Centre,General Materials,15.38,BETA PAK LTD
Revenue,Adult Services,5105655749,21.10.2015,Plean Dene,Operational Equipment,25.67,BETA PAK LTD
Revenue,Adult Services,5105655536,16.10.2015,Plean Dene,Operational Equipment,8.16,BETA PAK LTD
Revenue,Adult Services,5105656120,21.10.2015,Plean Dene,Operational Equipment,19.33,BETA PAK LTD
Revenue,Adult Services,5105656121,21.10.2015,Plean Dene,Operational Equipment,3.45,BETA PAK LTD
Revenue,Adult Services,5105654144,21.10.2015,Plean Dene,Operational Equipment,11.20,BETA PAK LTD
Revenue,Adult Services,5105654118,09.10.2015,Plean Dene,Operational Equipment,87.99,BETA PAK LTD
Revenue,Adult Services,5105654122,09.10.2015,Plean Dene,Operational Equipment,5.49,BETA PAK LTD
Revenue,Adult Services,5105654237,21.10.2015,Plean Dene,Operational Equipment,29.28,BETA PAK LTD
Revenue,Adult Services,5105656569,23.10.2015,Plean Dene,Operational Equipment,5.50,BETA PAK LTD
Revenue,Adult Services,5105656593,23.10.2015,Plean Dene,Operational Equipment,112.00,BETA PAK LTD
Revenue,Adult Services,5105652749,07.10.2015,Plean Dene,Operational Equipment,45.96,BETA PAK LTD
Revenue,Adult Services,5105652534,02.10.2015,Plean Dene,Operational Equipment,158.58,BETA PAK LTD
Revenue,Adult Services,5105652749,07.10.2015,Plean Dene,Operational Equipment,37.75,BETA PAK LTD
Revenue,Adult Services,5105652747,07.10.2015,Plean Dene,Operational Equipment,1.75,BETA PAK LTD
Revenue,Adult Services,5105652745,07.10.2015,Plean Dene,Operational Equipment,31.17,BETA PAK LTD
Revenue,Adult Services,5400002054,17.04.2015,Plean Dene,Operational Equipment,0.02,BETA PAK LTD
Revenue,Adult Services,5105657490,30.10.2015,Westminster House,Consumable Cleaning Materials,26.00,BETA PAK LTD
Revenue,Adult Services,5105656598,23.10.2015,Westminster House,Consumable Cleaning Materials,41.00,BETA PAK LTD
Revenue,Adult Services,5105657201,28.10.2015,Westminster House,Operational Equipment,7.64,BETA PAK LTD
Revenue,Adult Services,5105657200,28.10.2015,Westminster House,Operational Equipment,23.43,BETA PAK LTD
Revenue,Adult Services,5105657092,28.10.2015,Westminster House,Operational Equipment,76.26,BETA PAK LTD
Revenue,Adult Services,5105657197,28.10.2015,Westminster House,Catering Purchases,28.47,BETA PAK LTD
Revenue,Adult Services,5105657191,28.10.2015,Westminster House,Catering Purchases,28.92,BETA PAK LTD
Revenue,Adult Services,5105657095,28.10.2015,Westminster House,Clothing & Laundry,64.53,BETA PAK LTD
Revenue,Adult Services,5105657196,28.10.2015,Westminster House,Clothing & Laundry,64.53,BETA PAK LTD
Revenue,Adult Services,5105657198,28.10.2015,Westminster House,Clothing & Laundry,21.51,BETA PAK LTD
Revenue,Adult Services,5105653625,07.10.2015,Saxonbury,Operational Equipment,138.55,BETA PAK LTD
Revenue,Adult Services,5105653681,07.10.2015,Saxonbury,Operational Equipment,11.14,BETA PAK LTD
Revenue,Adult Services,5105653869,09.10.2015,Saxonbury,Operational Equipment,11.00,BETA PAK LTD
Revenue,Adult Services,5105652654,07.10.2015,Saxonbury,Operational Equipment,7.72,BETA PAK LTD
Revenue,Adult Services,5105652587,02.10.2015,Saxonbury,Operational Equipment,5.79,BETA PAK LTD
Revenue,Adult Services,5105656735,28.10.2015,Saxonbury,Operational Equipment,214.79,BETA PAK LTD
Revenue,Adult Services,5105654228,14.10.2015,Saxonbury,Operational Equipment,198.30,BETA PAK LTD
Revenue,Adult Services,5105652724,07.10.2015,Gouldings Resource Centre,Consumable Cleaning Materials,553.72,BETA PAK LTD
Revenue,Adult Services,5105653659,07.10.2015,Gouldings Resource Centre,Consumable Cleaning Materials,9.13,BETA PAK LTD
Revenue,Adult Services,5105654543,14.10.2015,Gouldings Resource Centre,Consumable Cleaning Materials,16.16,BETA PAK LTD
Revenue,Adult Services,5105655732,21.10.2015,Gouldings Resource Centre,Consumable Cleaning Materials,30.84,BETA PAK LTD
Revenue,Adult Services,5105657600,30.10.2015,Gouldings Resource Centre,Consumable Cleaning Materials,39.76,BETA PAK LTD
Revenue,Adult Services,5105655695,16.10.2015,Gouldings Resource Centre,Consumable Cleaning Materials,315.30,BETA PAK LTD
Revenue,Adult Services,5105657601,30.10.2015,Gouldings Resource Centre,Consumable Cleaning Materials,407.20,BETA PAK LTD
Revenue,Adult Services,5105657204,28.10.2015,Westminster House,Consumable Cleaning Materials,63.44,BETA PAK LTD
Revenue,Adult Services,5105657202,28.10.2015,Westminster House,Consumable Cleaning Materials,33.60,BETA PAK LTD
Revenue,Adult Services,5105657203,28.10.2015,Westminster House,Consumable Cleaning Materials,9.36,BETA PAK LTD
Revenue,Adult Services,5105657190,28.10.2015,Westminster House,Consumable Cleaning Materials,77.10,BETA PAK LTD
Revenue,Adult Services,5105657189,28.10.2015,Westminster House,Consumable Cleaning Materials,77.90,BETA PAK LTD
Revenue,Adult Services,5105657192,28.10.2015,Westminster House,Consumable Cleaning Materials,90.28,BETA PAK LTD
Revenue,Adult Services,5105657207,28.10.2015,Westminster House,Consumable Cleaning Materials,20.30,BETA PAK LTD
Revenue,Adult Services,5105657188,28.10.2015,Westminster House,Consumable Cleaning Materials,67.72,BETA PAK LTD
Revenue,Adult Services,5105657193,28.10.2015,Westminster House,Consumable Cleaning Materials,55.16,BETA PAK LTD
Revenue,Adult Services,5105657194,28.10.2015,Westminster House,Consumable Cleaning Materials,-55.16,BETA PAK LTD
Revenue,Adult Services,5105657195,28.10.2015,Westminster House,Consumable Cleaning Materials,51.92,BETA PAK LTD
Revenue,Adult Services,5105653777,07.10.2015,31 Carter Avenue,Operational Equipment,4.56,BETA PAK LTD
Revenue,Adult Services,5105654213,09.10.2015,31 Carter Avenue,Operational Equipment,26.93,BETA PAK LTD
Revenue,Adult Services,5105652574,02.10.2015,Seagulls,Operational Equipment,35.88,BETA PAK LTD
Revenue,Adult Services,5105652581,02.10.2015,Seagulls,Operational Equipment,21.41,BETA PAK LTD
Revenue,Adult Services,5105652583,02.10.2015,Seagulls,Operational Equipment,7.69,BETA PAK LTD
Revenue,Adult Services,5105652569,02.10.2015,Seagulls,Operational Equipment,119.68,BETA PAK LTD
Revenue,Adult Services,5105655693,16.10.2015,40 Venner Avenue,Operational Equipment,12.85,BETA PAK LTD
Revenue,Adult Services,5105655162,16.10.2015,40 Venner Avenue,Operational Equipment,9.99,BETA PAK LTD
Revenue,Adult Services,5105654221,16.10.2015,40 Venner Avenue,Operational Equipment,22.66,BETA PAK LTD
Revenue,Adult Services,5105654245,16.10.2015,40 Venner Avenue,Operational Equipment,15.74,BETA PAK LTD
Revenue,Adult Services,5105654240,16.10.2015,40 Venner Avenue,Operational Equipment,167.21,BETA PAK LTD
Revenue,Adult Services,5105654435,16.10.2015,40 Venner Avenue,Operational Equipment,2.79,BETA PAK LTD
Revenue,Adult Services,5105653821,09.10.2015,40 Venner Avenue,Operational Equipment,57.88,BETA PAK LTD
Revenue,Adult Services,5105653822,09.10.2015,40 Venner Avenue,Operational Equipment,11.03,BETA PAK LTD
Revenue,Adult Services,5105656705,23.10.2015,40 Venner Avenue,Operational Equipment,68.91,BETA PAK LTD
Revenue,Adult Services,5105656180,23.10.2015,40 Venner Avenue,Operational Equipment,-68.91,BETA PAK LTD
Revenue,Adult Services,5400002052,17.04.2015,Seagulls,Operational Equipment,-0.03,BETA PAK LTD
Revenue,Adult Services,5105653749,09.10.2015,Seagulls,Operational Equipment,119.17,BETA PAK LTD
Revenue,Adult Services,5105652579,02.10.2015,Seagulls,Operational Equipment,133.50,BETA PAK LTD
Revenue,Adult Services,5105652577,02.10.2015,Seagulls,Operational Equipment,22.00,BETA PAK LTD
Revenue,Adult Services,5105652576,02.10.2015,Seagulls,Operational Equipment,102.44,BETA PAK LTD
Revenue,Adult Services,5105655990,21.10.2015,Adelaide Resource Centre,Clothing & Laundry,-46.56,BETA PAK LTD
Revenue,Adult Services,5105653873,09.10.2015,Adelaide Resource Centre,Clothing & Laundry,17.98,BETA PAK LTD
Revenue,Adult Services,5105654207,09.10.2015,Adelaide Resource Centre,Clothing & Laundry,86.86,BETA PAK LTD
Revenue,Adult Services,5105657213,28.10.2015,Mental Health Day Services,Fixtures and Fittings,362.99,BETA PAK LTD
Revenue,Adult Services,5105654091,09.10.2015,The Laurels,Operational Equipment,32.99,BETA PAK LTD
Revenue,Adult Services,5105652743,07.10.2015,The Laurels,Operational Equipment,12.84,BETA PAK LTD
Revenue,Adult Services,5105651905,07.10.2015,The Laurels,Operational Equipment,426.60,BETA PAK LTD
Revenue,Adult Services,5105653752,07.10.2015,Adelaide Resource Centre,Consumable Cleaning Materials,14.43,BETA PAK LTD
Revenue,Adult Services,5105654218,09.10.2015,Adelaide Resource Centre,Consumable Cleaning Materials,691.54,BETA PAK LTD
Revenue,Adult Services,5105656661,23.10.2015,Adelaide Resource Centre,Consumable Cleaning Materials,6.59,BETA PAK LTD
Revenue,Adult Services,5105656711,23.10.2015,Adelaide Resource Centre,Consumable Cleaning Materials,458.70,BETA PAK LTD
Revenue,Adult Services,5105657599,30.10.2015,Adelaide Resource Centre,Prop Svs only - Day to day mtce,50.00,BETA PAK LTD
Revenue,Adult Services,5105654090,09.10.2015,Adelaide Resource Centre,Catering Equipment,94.50,BETA PAK LTD
Revenue,Place,5105653630,07.10.2015,Downside Community & Learning Centre,Consumable Cleaning Materials,8.16,BETA PAK LTD
Revenue,Place,5105653631,07.10.2015,Downside Community & Learning Centre,Consumable Cleaning Materials,11.21,BETA PAK LTD
Revenue,Place,5105653631,07.10.2015,Downside Community & Learning Centre,Consumable Cleaning Materials,19.95,BETA PAK LTD
Revenue,Place,5105653631,07.10.2015,Downside Community & Learning Centre,Consumable Cleaning Materials,26.84,BETA PAK LTD
Revenue,Place,5105653631,07.10.2015,Downside Community & Learning Centre,Consumable Cleaning Materials,8.16,BETA PAK LTD
Revenue,Place,5105654214,09.10.2015,Downside Community & Learning Centre,Consumable Cleaning Materials,11.21,BETA PAK LTD
Revenue,Place,5105654214,09.10.2015,Downside Community & Learning Centre,Consumable Cleaning Materials,8.16,BETA PAK LTD
Revenue,Place,5105654214,09.10.2015,Downside Community & Learning Centre,Consumable Cleaning Materials,13.42,BETA PAK LTD
Revenue,Place,5105654214,09.10.2015,Downside Community & Learning Centre,Consumable Cleaning Materials,19.95,BETA PAK LTD
Revenue,Adult Services,5105654583,14.10.2015,Overbrook,Operational Equipment,89.72,BETA PAK LTD
Revenue,Adult Services,5105652795,30.10.2015,Overbrook,Operational Equipment,13.32,BETA PAK LTD
Revenue,Adult Services,5105655059,14.10.2015,Physical Disability Homecare,Charges from Independent Providers,30.56,BETTER AT HOME IOW LTD
Revenue,Adult Services,5105655059,14.10.2015,Physical Disability Homecare,Charges from Independent Providers,"3,033.08",BETTER AT HOME IOW LTD
Revenue,Adult Services,5105655065,14.10.2015,Physical Disability Homecare,Charges from Independent Providers,351.44,BETTER AT HOME IOW LTD
Revenue,Adult Services,5105655063,14.10.2015,Physical Disability Homecare,Regular Respite Care,122.24,BETTER AT HOME IOW LTD
Revenue,Adult Services,5105655063,14.10.2015,Physical Disability Homecare,Regular Respite Care,30.56,BETTER AT HOME IOW LTD
Revenue,Adult Services,5105655063,14.10.2015,Physical Disability Homecare,Regular Respite Care,122.24,BETTER AT HOME IOW LTD
Revenue,Adult Services,5105655070,14.10.2015,Physical Disability Homecare,Charges from Independent Providers,171.90,BETTER AT HOME IOW LTD
Revenue,Adult Services,5105655044,14.10.2015,Physical Disability Homecare,Charges from Independent Providers,320.88,BETTER AT HOME IOW LTD
Revenue,Adult Services,5105655230,16.10.2015,Physical Disability Homecare,Charges from Independent Providers,962.64,BETTER AT HOME IOW LTD
Revenue,Adult Services,5105655061,14.10.2015,Elderly Frail Homecare,Charges from Independent Providers,844.22,BETTER AT HOME IOW LTD
Revenue,Adult Services,5105655075,14.10.2015,Elderly Frail Homecare,Charges from Independent Providers,137.52,BETTER AT HOME IOW LTD
Revenue,Adult Services,5105655075,14.10.2015,Elderly Frail Homecare,Charges from Independent Providers,336.16,BETTER AT HOME IOW LTD
Revenue,Adult Services,5105655067,14.10.2015,Elderly Frail Homecare,Charges from Independent Providers,741.08,BETTER AT HOME IOW LTD
Revenue,Adult Services,5105655028,14.10.2015,Mental Health Homecare,Charges from Independent Providers,336.16,BETTER AT HOME IOW LTD
Revenue,Adult Services,5105655055,14.10.2015,Physical Disability Homecare,Charges from Independent Providers,286.50,BETTER AT HOME IOW LTD
Revenue,Adult Services,5105655046,14.10.2015,Elderly Frail Homecare,Charges from Independent Providers,309.42,BETTER AT HOME IOW LTD
Revenue,Adult Services,5105655068,14.10.2015,Elderly Frail Homecare,Charges from Independent Providers,886.24,BETTER AT HOME IOW LTD
Revenue,Adult Services,5105655032,14.10.2015,Elderly Frail Homecare,Charges from Independent Providers,488.96,BETTER AT HOME IOW LTD
Revenue,Adult Services,5105655231,16.10.2015,Elderly Frail Homecare,Charges from Independent Providers,634.12,BETTER AT HOME IOW LTD
Revenue,Adult Services,5105655064,14.10.2015,Elderly Frail Homecare,Charges from Independent Providers,401.10,BETTER AT HOME IOW LTD
Revenue,Adult Services,5105655797,21.10.2015,Elderly Frail Homecare,Charges from Independent Providers,985.56,BETTER AT HOME IOW LTD
Revenue,Adult Services,5105655072,14.10.2015,Elderly Frail Homecare,Charges from Independent Providers,95.50,BETTER AT HOME IOW LTD
Revenue,Adult Services,5105655233,16.10.2015,Elderly Frail Homecare,Charges from Independent Providers,855.68,BETTER AT HOME IOW LTD
Revenue,Adult Services,5105655232,16.10.2015,Elderly Frail Homecare,Charges from Independent Providers,160.44,BETTER AT HOME IOW LTD
Revenue,Adult Services,5105655060,14.10.2015,Elderly Frail Homecare,Charges from Independent Providers,427.84,BETTER AT HOME IOW LTD
Revenue,Adult Services,5105655078,14.10.2015,Elderly Frail Homecare,Charges from Independent Providers,7.64,BETTER AT HOME IOW LTD
Revenue,Adult Services,5105655048,14.10.2015,Elderly Frail Homecare,Regular Respite Care,244.48,BETTER AT HOME IOW LTD
Revenue,Adult Services,5105655036,14.10.2015,Elderly Frail Homecare,Regular Respite Care,122.24,BETTER AT HOME IOW LTD
Revenue,Adult Services,5105655058,14.10.2015,Elderly Frail Homecare,Regular Respite Care,366.72,BETTER AT HOME IOW LTD
Revenue,Adult Services,5105655226,16.10.2015,Elderly Frail Homecare,Regular Respite Care,122.24,BETTER AT HOME IOW LTD
Revenue,Adult Services,5105655052,14.10.2015,Elderly Frail Homecare,Regular Respite Care,122.24,BETTER AT HOME IOW LTD
Revenue,Adult Services,5105655027,14.10.2015,Elderly Frail Homecare,Charges from Independent Providers,"1,039.04",BETTER AT HOME IOW LTD
Revenue,Adult Services,5105655024,14.10.2015,Elderly Frail Homecare,Charges from Independent Providers,710.52,BETTER AT HOME IOW LTD
Revenue,Adult Services,5105655025,14.10.2015,Elderly Frail Homecare,Charges from Independent Providers,"1,497.44",BETTER AT HOME IOW LTD
Revenue,Adult Services,5105655222,16.10.2015,Elderly Frail Homecare,Charges from Independent Providers,427.84,BETTER AT HOME IOW LTD
Revenue,Adult Services,5105655026,14.10.2015,Elderly Frail Homecare,Charges from Independent Providers,"1,069.60",BETTER AT HOME IOW LTD
Revenue,Adult Services,5105655051,14.10.2015,Elderly Frail Homecare,Charges from Independent Providers,320.88,BETTER AT HOME IOW LTD
Revenue,Adult Services,5105655041,14.10.2015,Elderly Frail Homecare,Charges from Independent Providers,427.84,BETTER AT HOME IOW LTD
Revenue,Adult Services,5105655043,14.10.2015,Elderly Frail Homecare,Charges from Independent Providers,427.84,BETTER AT HOME IOW LTD
Revenue,Adult Services,5105655227,16.10.2015,Elderly Frail Homecare,Charges from Independent Providers,427.84,BETTER AT HOME IOW LTD
Revenue,Adult Services,5105655054,14.10.2015,Elderly Frail Homecare,Charges from Independent Providers,"1,497.44",BETTER AT HOME IOW LTD
Revenue,Adult Services,5105655069,14.10.2015,Elderly Frail Homecare,Regular Respite Care,244.48,BETTER AT HOME IOW LTD
Revenue,Adult Services,5105655066,14.10.2015,Elderly Frail Homecare,Charges from Independent Providers,473.68,BETTER AT HOME IOW LTD
Revenue,Adult Services,5105655076,14.10.2015,Elderly Frail Homecare,Charges from Independent Providers,271.22,BETTER AT HOME IOW LTD
Revenue,Adult Services,5105655076,14.10.2015,Elderly Frail Homecare,Charges from Independent Providers,634.12,BETTER AT HOME IOW LTD
Revenue,Adult Services,5105655077,14.10.2015,Elderly Frail Homecare,Charges from Independent Providers,53.48,BETTER AT HOME IOW LTD
Revenue,Adult Services,5105655223,16.10.2015,Elderly Frail Homecare,Charges from Independent Providers,427.84,BETTER AT HOME IOW LTD
Revenue,Adult Services,5105655224,16.10.2015,Elderly Frail Homecare,Charges from Independent Providers,893.88,BETTER AT HOME IOW LTD
Revenue,Adult Services,5105655031,14.10.2015,Elderly Frail Homecare,Charges from Independent Providers,61.12,BETTER AT HOME IOW LTD
Revenue,Adult Services,5105655037,14.10.2015,Elderly Frail Homecare,Charges from Independent Providers,427.84,BETTER AT HOME IOW LTD
Revenue,Adult Services,5105655225,16.10.2015,Elderly Frail Homecare,Charges from Independent Providers,435.48,BETTER AT HOME IOW LTD
Revenue,Adult Services,5105655035,14.10.2015,Elderly Frail Homecare,Charges from Independent Providers,240.66,BETTER AT HOME IOW LTD
Revenue,Adult Services,5105655030,14.10.2015,Elderly Frail Homecare,Charges from Independent Providers,473.68,BETTER AT HOME IOW LTD
Revenue,Adult Services,5105655057,14.10.2015,Elderly Frail Homecare,Charges from Independent Providers,183.36,BETTER AT HOME IOW LTD
Revenue,Adult Services,5105655050,14.10.2015,Elderly Frail Homecare,Charges from Independent Providers,427.84,BETTER AT HOME IOW LTD
Revenue,Adult Services,5105655062,14.10.2015,Elderly Frail Homecare,Charges from Independent Providers,641.76,BETTER AT HOME IOW LTD
Revenue,Adult Services,5105655038,14.10.2015,Elderly Frail Homecare,Charges from Independent Providers,817.48,BETTER AT HOME IOW LTD
Revenue,Adult Services,5105655039,14.10.2015,Elderly Frail Homecare,Charges from Independent Providers,213.92,BETTER AT HOME IOW LTD
Revenue,Adult Services,5105655228,16.10.2015,Elderly Frail Homecare,Charges from Independent Providers,168.08,BETTER AT HOME IOW LTD
Revenue,Adult Services,5105655229,16.10.2015,Elderly Frail Homecare,Charges from Independent Providers,122.24,BETTER AT HOME IOW LTD
Revenue,Adult Services,5105655796,21.10.2015,Elderly Frail Homecare,Charges from Independent Providers,607.38,BETTER AT HOME IOW LTD
Revenue,Adult Services,5105655074,14.10.2015,Elderly Frail Homecare,Charges from Independent Providers,76.40,BETTER AT HOME IOW LTD
Revenue,Adult Services,5105655056,14.10.2015,Elderly Frail Homecare,Charges from Independent Providers,"2,353.12",BETTER AT HOME IOW LTD
Revenue,Adult Services,5105655073,14.10.2015,Elderly Frail Homecare,Charges from Independent Providers,527.16,BETTER AT HOME IOW LTD
Revenue,Adult Services,5105655071,14.10.2015,Elderly Frail Homecare,Charges from Independent Providers,664.68,BETTER AT HOME IOW LTD
Revenue,Adult Services,5105655029,14.10.2015,Elderly Frail Homecare,Charges from Independent Providers,756.36,BETTER AT HOME IOW LTD
Revenue,Adult Services,5105655033,14.10.2015,Elderly Frail Homecare,Charges from Independent Providers,137.52,BETTER AT HOME IOW LTD
Revenue,Adult Services,5105655034,14.10.2015,Elderly Frail Homecare,Charges from Independent Providers,855.68,BETTER AT HOME IOW LTD
Revenue,Adult Services,5105655053,14.10.2015,Elderly Mentally Ill Homecare,Charges from Independent Providers,962.64,BETTER AT HOME IOW LTD
Revenue,Adult Services,5105655040,14.10.2015,Elderly Mentally Ill Homecare,Charges from Independent Providers,672.32,BETTER AT HOME IOW LTD
Revenue,Childrens Services,5105652632,02.10.2015,Core Programmes,Training,750.00,BEVAN YOUNG ASSOCIATES
Revenue,Place,5105655894,21.10.2015,Medina Leisure Centre,Stock Purchases,28.73,3663 (BFS GROUP LTD)
Revenue,Place,5105655895,21.10.2015,Medina Leisure Centre,Stock Purchases,102.22,3663 (BFS GROUP LTD)
Revenue,Place,5105656761,28.10.2015,Medina Leisure Centre,Stock Purchases,117.25,3663 (BFS GROUP LTD)
Revenue,Place,5105652649,07.10.2015,Medina Leisure Centre,Stock Purchases,53.93,3663 (BFS GROUP LTD)
Revenue,Place,5105652657,07.10.2015,Medina Leisure Centre,Stock Purchases,199.69,3663 (BFS GROUP LTD)
Revenue,Adult Services,5105653756,07.10.2015,Westminster House,Catering Purchases,114.33,3663 (BFS GROUP LTD)
Revenue,Adult Services,5105653753,07.10.2015,Westminster House,Catering Purchases,98.42,3663 (BFS GROUP LTD)
Revenue,Adult Services,5105653747,07.10.2015,Westminster House,Catering Purchases,94.34,3663 (BFS GROUP LTD)
Revenue,Adult Services,5105657527,30.10.2015,Westminster House,Catering Purchases,43.99,3663 (BFS GROUP LTD)
Revenue,Adult Services,5105657467,30.10.2015,Westminster House,Catering Purchases,56.69,3663 (BFS GROUP LTD)
Revenue,Adult Services,5105657467,30.10.2015,Westminster House,Catering Purchases,21.29,3663 (BFS GROUP LTD)
Revenue,Adult Services,5105656305,23.10.2015,Westminster House,Catering Purchases,148.59,3663 (BFS GROUP LTD)
Revenue,Adult Services,5105656203,21.10.2015,Westminster House,Catering Purchases,71.24,3663 (BFS GROUP LTD)
Revenue,Adult Services,5105656602,23.10.2015,Westminster House,Catering Purchases,56.77,3663 (BFS GROUP LTD)
Revenue,Adult Services,5105657209,28.10.2015,Gouldings Resource Centre,Catering Purchases,507.57,3663 (BFS GROUP LTD)
Revenue,Adult Services,5105657209,28.10.2015,Gouldings Resource Centre,Catering Purchases,19.37,3663 (BFS GROUP LTD)
Revenue,Adult Services,5105654312,14.10.2015,Gouldings Resource Centre,Catering Purchases,274.85,3663 (BFS GROUP LTD)
Revenue,Adult Services,5105654312,14.10.2015,Gouldings Resource Centre,Catering Purchases,17.97,3663 (BFS GROUP LTD)
Revenue,Adult Services,5105653710,07.10.2015,Gouldings Resource Centre,Catering Purchases,774.12,3663 (BFS GROUP LTD)
Revenue,Adult Services,5105653710,07.10.2015,Gouldings Resource Centre,Catering Purchases,4.89,3663 (BFS GROUP LTD)
Revenue,Adult Services,5105655902,21.10.2015,Gouldings Resource Centre,Catering Purchases,465.71,3663 (BFS GROUP LTD)
Revenue,Adult Services,5105655902,21.10.2015,Gouldings Resource Centre,Catering Purchases,14.67,3663 (BFS GROUP LTD)
Revenue,Place,5105656302,23.10.2015,Westridge Squash Courts,Stock Purchases,224.46,3663 (BFS GROUP LTD)
Revenue,Place,5105653735,07.10.2015,The Heights,Stock Purchases,199.42,3663 (BFS GROUP LTD)
Revenue,Place,5105653741,07.10.2015,The Heights,Stock Purchases,203.94,3663 (BFS GROUP LTD)
Revenue,Place,5105653809,07.10.2015,The Heights,Stock Purchases,36.41,3663 (BFS GROUP LTD)
Revenue,Place,5105653810,07.10.2015,The Heights,Stock Purchases,138.80,3663 (BFS GROUP LTD)
Revenue,Place,5105653810,07.10.2015,The Heights,Stock Purchases,259.42,3663 (BFS GROUP LTD)
Revenue,Place,5105653809,07.10.2015,The Heights,Stock Purchases,67.46,3663 (BFS GROUP LTD)
Revenue,Place,5105656911,28.10.2015,The Heights,Stock Purchases,222.08,3663 (BFS GROUP LTD)
Revenue,Place,5105656912,28.10.2015,The Heights,Stock Purchases,51.15,3663 (BFS GROUP LTD)
Revenue,Place,5105656914,28.10.2015,The Heights,Stock Purchases,197.51,3663 (BFS GROUP LTD)
Revenue,Place,5105656912,28.10.2015,The Heights,Stock Purchases,14.22,3663 (BFS GROUP LTD)
Revenue,Place,5105656308,23.10.2015,The Heights,Stock Purchases,280.99,3663 (BFS GROUP LTD)
Revenue,Place,5105656307,23.10.2015,The Heights,Stock Purchases,97.33,3663 (BFS GROUP LTD)
Revenue,Place,5105656307,23.10.2015,The Heights,Stock Purchases,24.96,3663 (BFS GROUP LTD)
Revenue,Place,5105653726,07.10.2015,Fairway Sports Complex,Stock Purchases,363.11,3663 (BFS GROUP LTD)
Revenue,Adult Services,5105657218,28.10.2015,Adelaide Resource Centre,Catering Purchases,197.30,3663 (BFS GROUP LTD)
Revenue,Adult Services,5105657210,28.10.2015,Adelaide Resource Centre,Catering Purchases,102.30,3663 (BFS GROUP LTD)
Revenue,Adult Services,5105657210,28.10.2015,Adelaide Resource Centre,Catering Purchases,17.65,3663 (BFS GROUP LTD)
Revenue,Adult Services,5105656025,21.10.2015,Adelaide Resource Centre,Catering Purchases,285.59,3663 (BFS GROUP LTD)
Revenue,Adult Services,5105656023,21.10.2015,Adelaide Resource Centre,Catering Purchases,83.15,3663 (BFS GROUP LTD)
Revenue,Adult Services,5105656023,21.10.2015,Adelaide Resource Centre,Catering Purchases,5.15,3663 (BFS GROUP LTD)
Revenue,Adult Services,5105656025,21.10.2015,Adelaide Resource Centre,Catering Purchases,31.33,3663 (BFS GROUP LTD)
Revenue,Adult Services,5105656678,23.10.2015,Adelaide Resource Centre,Catering Purchases,38.01,3663 (BFS GROUP LTD)
Revenue,Adult Services,5105656680,23.10.2015,Adelaide Resource Centre,Catering Purchases,275.71,3663 (BFS GROUP LTD)
Revenue,Adult Services,5105655993,21.10.2015,Adelaide Resource Centre,Catering Purchases,360.92,3663 (BFS GROUP LTD)
Revenue,Adult Services,5105655996,21.10.2015,Adelaide Resource Centre,Catering Purchases,-13.62,3663 (BFS GROUP LTD)
Revenue,Adult Services,5105656170,21.10.2015,Adelaide Resource Centre,Catering Purchases,109.92,3663 (BFS GROUP LTD)
Revenue,Adult Services,5105656170,21.10.2015,Adelaide Resource Centre,Catering Purchases,2.57,3663 (BFS GROUP LTD)
Revenue,Adult Services,5105655993,21.10.2015,Adelaide Resource Centre,Catering Purchases,18.01,3663 (BFS GROUP LTD)
Revenue,Adult Services,5105656680,23.10.2015,Adelaide Resource Centre,Catering Purchases,48.55,3663 (BFS GROUP LTD)
Revenue,Adult Services,5105654193,09.10.2015,Adelaide Resource Centre,Catering Purchases,38.47,3663 (BFS GROUP LTD)
Revenue,Adult Services,5105654190,09.10.2015,Adelaide Resource Centre,Catering Purchases,160.78,3663 (BFS GROUP LTD)
Revenue,Adult Services,5105654191,09.10.2015,Adelaide Resource Centre,Catering Purchases,133.24,3663 (BFS GROUP LTD)
Revenue,Adult Services,5105654188,09.10.2015,Adelaide Resource Centre,Catering Purchases,421.89,3663 (BFS GROUP LTD)
Revenue,Adult Services,5105654189,09.10.2015,Adelaide Resource Centre,Catering Purchases,92.83,3663 (BFS GROUP LTD)
Revenue,Adult Services,5105654189,09.10.2015,Adelaide Resource Centre,Catering Purchases,5.14,3663 (BFS GROUP LTD)
Revenue,Adult Services,5105654188,09.10.2015,Adelaide Resource Centre,Catering Purchases,24.85,3663 (BFS GROUP LTD)
Revenue,Adult Services,5105654191,09.10.2015,Adelaide Resource Centre,Catering Purchases,16.98,3663 (BFS GROUP LTD)
Revenue,Adult Services,5105654190,09.10.2015,Adelaide Resource Centre,Catering Purchases,13.70,3663 (BFS GROUP LTD)
Revenue,Place,5105654083,23.10.2015,Public Libraries Central,Computer Maintenance,"2,892.24",BIBLIOTHECA LTD
Revenue,Place,5105654083,23.10.2015,Public Libraries Central,Computer Maintenance,396.00,BIBLIOTHECA LTD
Revenue,Place,5105652623,07.10.2015,Public Libraries Central,Stationery,130.20,BIBLIOTHECA LTD
Revenue,Place,5105657598,30.10.2015,Public Libraries Central,Stationery,121.10,BIBLIOTHECA LTD
Revenue,Adult Services,5105654222,23.10.2015,Gouldings Resource Centre,"Refuse Collection, Disposal and Recycling Costs",355.20,BIFFA WASTE SERVICES LTD
Revenue,Adult Services,5105654125,14.10.2015,Gouldings Resource Centre,"Refuse Collection, Disposal and Recycling Costs",114.50,BIFFA WASTE SERVICES LTD
Revenue,Place,5105654113,09.10.2015,Rights of Way Operations,Clothing & Laundry,99.50,BIG WIGHT T-SHIRT CO
Revenue,Place,5105654302,14.10.2015,Play Development,Operational Equipment,79.80,BIG WIGHT T-SHIRT CO
Revenue,Place,5105656916,28.10.2015,Play Development,Operational Equipment,19.96,BISHOP SPORTS & LEISURE LTD
Revenue,Place,5105656916,28.10.2015,Play Development,Operational Equipment,11.13,BISHOP SPORTS & LEISURE LTD
Revenue,Resources,5105656354,23.10.2015,Staff Benefits,Payment to Private Contractors,189.15,BLACKBERRY LANE PRE-SCHOOL
Revenue,Resources,5105656354,23.10.2015,Staff Benefits,Payment to Private Contractors,20.00,BLACKBERRY LANE PRE-SCHOOL
Revenue,Childrens Services,5105655515,16.10.2015,Short Breaks,Charges from Independent Providers,520.00,BODSTER EQUINE ASSISTED LEARN CIC
Revenue,Adult Services,5105652209,02.10.2015,Plean Dene,Catering Purchases,12.44,BOOKER CASH & CARRY LTD
Revenue,Adult Services,5105652599,02.10.2015,Plean Dene,Catering Purchases,140.04,BOOKER CASH & CARRY LTD
Revenue,Adult Services,5105652600,02.10.2015,Plean Dene,Catering Purchases,12.24,BOOKER CASH & CARRY LTD
Revenue,Adult Services,5105652554,02.10.2015,Plean Dene,Catering Purchases,7.98,BOOKER CASH & CARRY LTD
Revenue,Adult Services,5105652599,02.10.2015,Plean Dene,Catering Purchases,15.99,BOOKER CASH & CARRY LTD
Revenue,Adult Services,5105653779,07.10.2015,Plean Dene,Catering Purchases,28.20,BOOKER CASH & CARRY LTD
Revenue,Adult Services,5105653762,07.10.2015,Plean Dene,Catering Purchases,146.25,BOOKER CASH & CARRY LTD
Revenue,Adult Services,5105653649,07.10.2015,Plean Dene,Catering Purchases,16.60,BOOKER CASH & CARRY LTD
Revenue,Adult Services,5105653762,07.10.2015,Plean Dene,Catering Purchases,13.94,BOOKER CASH & CARRY LTD
Revenue,Adult Services,5105656729,23.10.2015,Plean Dene,Catering Purchases,28.29,BOOKER CASH & CARRY LTD
Revenue,Adult Services,5105656772,28.10.2015,Plean Dene,Catering Purchases,13.49,BOOKER CASH & CARRY LTD
Revenue,Adult Services,5105656782,28.10.2015,Plean Dene,Catering Purchases,7.78,BOOKER CASH & CARRY LTD
Revenue,Adult Services,5105656873,28.10.2015,Plean Dene,Catering Purchases,5.59,BOOKER CASH & CARRY LTD
Revenue,Adult Services,5105656787,28.10.2015,Plean Dene,Catering Purchases,8.26,BOOKER CASH & CARRY LTD
Revenue,Adult Services,5105656794,28.10.2015,Plean Dene,Catering Purchases,160.11,BOOKER CASH & CARRY LTD
Revenue,Adult Services,5105656794,28.10.2015,Plean Dene,Catering Purchases,7.99,BOOKER CASH & CARRY LTD
Revenue,Adult Services,5105656787,28.10.2015,Plean Dene,Catering Purchases,3.55,BOOKER CASH & CARRY LTD
Revenue,Adult Services,5105656873,28.10.2015,Plean Dene,Catering Purchases,18.99,BOOKER CASH & CARRY LTD
Revenue,Adult Services,5105655887,21.10.2015,Plean Dene,Catering Purchases,123.68,BOOKER CASH & CARRY LTD
Revenue,Adult Services,5105655903,21.10.2015,Plean Dene,Catering Purchases,25.42,BOOKER CASH & CARRY LTD
Revenue,Adult Services,5105655200,16.10.2015,Plean Dene,Catering Purchases,4.58,BOOKER CASH & CARRY LTD
Revenue,Adult Services,5105655887,21.10.2015,Plean Dene,Catering Purchases,32.25,BOOKER CASH & CARRY LTD
Revenue,Adult Services,5105654282,14.10.2015,Plean Dene,Catering Purchases,5.58,BOOKER CASH & CARRY LTD
Revenue,Adult Services,5105654358,21.10.2015,Plean Dene,Catering Purchases,7.65,BOOKER CASH & CARRY LTD
Revenue,Adult Services,5105654359,21.10.2015,Plean Dene,Catering Purchases,5.03,BOOKER CASH & CARRY LTD
Revenue,Adult Services,5105654360,23.10.2015,Plean Dene,Catering Purchases,21.41,BOOKER CASH & CARRY LTD
Revenue,Adult Services,5105654425,21.10.2015,Plean Dene,Catering Purchases,15.28,BOOKER CASH & CARRY LTD
Revenue,Adult Services,5105654427,21.10.2015,Plean Dene,Catering Purchases,156.73,BOOKER CASH & CARRY LTD
Revenue,Adult Services,5105654427,21.10.2015,Plean Dene,Catering Purchases,6.98,BOOKER CASH & CARRY LTD
Revenue,Adult Services,5105656919,28.10.2015,Overbrook,Catering Purchases,10.42,BOOKER CASH & CARRY LTD
Revenue,Public Health,5105655979,21.10.2015,Contraception,Payment to Private Contractors,365.50,BOOTS THE CHEMIST LTD (Ryde)
Revenue,Public Health,5105655979,21.10.2015,Contraception,Payment to Private Contractors,67.60,BOOTS THE CHEMIST LTD (Ryde)
Revenue,Public Health,5105655979,21.10.2015,Contraception,Payment to Private Contractors,56.20,BOOTS THE CHEMIST LTD (Ryde)
Revenue,Public Health,5105657026,30.10.2015,Drug Misuse - Adults,Payment to Private Contractors,"1,600.00",BOOTS THE CHEMIST LTD (Ryde)
Revenue,Public Health,5105655979,21.10.2015,Drug Misuse - Adults,Payment to Private Contractors,402.50,BOOTS THE CHEMIST LTD (Ryde)
Revenue,Public Health,5105655979,21.10.2015,Drug Misuse - Adults,Payment to Private Contractors,704.00,BOOTS THE CHEMIST LTD (Ryde)
Revenue,Public Health,5105655979,21.10.2015,Drug Misuse - Adults,Payment to Private Contractors,30.00,BOOTS THE CHEMIST LTD (Ryde)
Revenue,Public Health,5105656071,21.10.2015,Drug Misuse - Adults,Payment to Private Contractors,122.50,BOOTS UK LTD (107 HIGH ST SANDOWN)
Revenue,Public Health,5105656071,21.10.2015,Drug Misuse - Adults,Payment to Private Contractors,232.00,BOOTS UK LTD (107 HIGH ST SANDOWN)
Revenue,Public Health,5105656071,21.10.2015,Drug Misuse - Adults,Payment to Private Contractors,30.00,BOOTS UK LTD (107 HIGH ST SANDOWN)
Revenue,Public Health,5105656072,21.10.2015,Contraception,Payment to Private Contractors,28.10,BOOTS UK LTD (COWES)
Revenue,Public Health,5105656072,21.10.2015,Contraception,Payment to Private Contractors,64.50,BOOTS UK LTD (COWES)
Revenue,Public Health,5105656072,21.10.2015,Contraception,Payment to Private Contractors,5.20,BOOTS UK LTD (COWES)
Revenue,Public Health,5105656072,21.10.2015,Drug Misuse - Adults,Payment to Private Contractors,30.00,BOOTS UK LTD (COWES)
Revenue,Public Health,5105656074,21.10.2015,Contraception,Payment to Private Contractors,21.50,BOOTS UK LTD (FRESHWATER)
Revenue,Public Health,5105656074,21.10.2015,Contraception,Payment to Private Contractors,5.20,BOOTS UK LTD (FRESHWATER)
Revenue,Public Health,5105656074,21.10.2015,Drug Misuse - Adults,Payment to Private Contractors,30.00,BOOTS UK LTD (FRESHWATER)
Revenue,Public Health,5105656063,21.10.2015,Contraception,Payment to Private Contractors,42.15,BOOTS UK LTD (NEWPORT)
Revenue,Public Health,5105656063,21.10.2015,Contraception,Payment to Private Contractors,62.40,BOOTS UK LTD (NEWPORT)
Revenue,Public Health,5105656063,21.10.2015,Contraception,Payment to Private Contractors,322.50,BOOTS UK LTD (NEWPORT)
Revenue,Public Health,5105656063,21.10.2015,Drug Misuse - Adults,Payment to Private Contractors,30.00,BOOTS UK LTD (NEWPORT)
Revenue,Public Health,5105656063,21.10.2015,Drug Misuse - Adults,Payment to Private Contractors,666.00,BOOTS UK LTD (NEWPORT)
Revenue,Public Health,5105656162,21.10.2015,Contraception,Payment to Private Contractors,129.00,BOOTS UK LTD (SANDOWN LARGE STORE)
Revenue,Public Health,5105656162,21.10.2015,Contraception,Payment to Private Contractors,10.40,BOOTS UK LTD (SANDOWN LARGE STORE)
Revenue,Public Health,5105656162,21.10.2015,Contraception,Payment to Private Contractors,56.20,BOOTS UK LTD (SANDOWN LARGE STORE)
Revenue,Public Health,5105656162,21.10.2015,Drug Misuse - Adults,Payment to Private Contractors,66.50,BOOTS UK LTD (SANDOWN LARGE STORE)
Revenue,Public Health,5105656162,21.10.2015,Drug Misuse - Adults,Payment to Private Contractors,222.00,BOOTS UK LTD (SANDOWN LARGE STORE)
Revenue,Public Health,5105656162,21.10.2015,Drug Misuse - Adults,Payment to Private Contractors,30.00,BOOTS UK LTD (SANDOWN LARGE STORE)
Revenue,Public Health,5105656064,21.10.2015,Contraception,Payment to Private Contractors,107.50,BOOTS UK LTD (SHANKLIN)
Revenue,Public Health,5105656064,21.10.2015,Contraception,Payment to Private Contractors,10.40,BOOTS UK LTD (SHANKLIN)
Revenue,Public Health,5105656064,21.10.2015,Contraception,Payment to Private Contractors,42.15,BOOTS UK LTD (SHANKLIN)
Revenue,Public Health,5105656064,21.10.2015,Drug Misuse - Adults,Payment to Private Contractors,98.00,BOOTS UK LTD (SHANKLIN)
Revenue,Public Health,5105656064,21.10.2015,Drug Misuse - Adults,Payment to Private Contractors,30.00,BOOTS UK LTD (SHANKLIN)
Revenue,Public Health,5105656073,21.10.2015,Contraception,Payment to Private Contractors,5.20,BOOTS UK LTD (TOWER HOUSE)
Revenue,Public Health,5105656073,21.10.2015,Contraception,Payment to Private Contractors,43.00,BOOTS UK LTD (TOWER HOUSE)
Revenue,Public Health,5105656073,21.10.2015,Contraception,Payment to Private Contractors,14.05,BOOTS UK LTD (TOWER HOUSE)
Revenue,Public Health,5105656073,21.10.2015,Drug Misuse - Adults,Payment to Private Contractors,30.00,BOOTS UK LTD (TOWER HOUSE)
Revenue,Public Health,5105656073,21.10.2015,Drug Misuse - Adults,Payment to Private Contractors,84.00,BOOTS UK LTD (TOWER HOUSE)
Revenue,Public Health,5105656073,21.10.2015,Drug Misuse - Adults,Payment to Private Contractors,108.50,BOOTS UK LTD (TOWER HOUSE)
Revenue,Public Health,5105656062,21.10.2015,Drug Misuse - Adults,Payment to Private Contractors,30.00,BOOTS UK LTD
Revenue,Public Health,5105656046,21.10.2015,Contraception,Payment to Private Contractors,21.50,BOOTS UK LTD (YLB BEMBRIDGE)
Revenue,Public Health,5105656046,21.10.2015,Contraception,Payment to Private Contractors,14.05,BOOTS UK LTD (YLB BEMBRIDGE)
Revenue,Public Health,5105656046,21.10.2015,Drug Misuse - Adults,Payment to Private Contractors,30.00,BOOTS UK LTD (YLB BEMBRIDGE)
Revenue,Place,5105653769,07.10.2015,The Heights,Stock Purchases,90.57,BRAKE BROS LTD
Revenue,Place,5105656934,28.10.2015,The Heights,Stock Purchases,152.27,BRAKE BROS LTD
Revenue,Place,5105654477,28.10.2015,The Heights,Stock Purchases,-17.98,BRAKE BROS LTD
Revenue,Place,5105654478,28.10.2015,The Heights,Stock Purchases,-17.98,BRAKE BROS LTD
Revenue,Place,5105656346,23.10.2015,Leaseholds by LA,Accommodation Costs - Leaseholder Payments,746.81,BRAMBLE LETTINGS
Revenue,Place,5105656346,23.10.2015,Leaseholds by LA,Accommodation Costs - Leaseholder Payments,588.38,BRAMBLE LETTINGS
Revenue,Place,5105656346,23.10.2015,Leaseholds by LA,Accommodation Costs - Leaseholder Payments,746.81,BRAMBLE LETTINGS
Revenue,Place,5105656346,23.10.2015,Leaseholds by LA,Accommodation Costs - Leaseholder Payments,588.38,BRAMBLE LETTINGS
Revenue,Place,5105656346,23.10.2015,Leaseholds by LA,Accommodation Costs - Leaseholder Payments,588.38,BRAMBLE LETTINGS
Revenue,Place,5105656346,23.10.2015,Leaseholds by LA,Accommodation Costs - Leaseholder Payments,588.38,BRAMBLE LETTINGS
Revenue,Place,5105656346,23.10.2015,Leaseholds by LA,Accommodation Costs - Leaseholder Payments,588.38,BRAMBLE LETTINGS
Revenue,Place,5105656346,23.10.2015,Leaseholds by LA,Accommodation Costs - Leaseholder Payments,746.81,BRAMBLE LETTINGS
Revenue,Place,5105656346,23.10.2015,Leaseholds by LA,Accommodation Costs - Leaseholder Payments,746.81,BRAMBLE LETTINGS
Revenue,Place,5105656346,23.10.2015,Leaseholds by LA,Accommodation Costs - Leaseholder Payments,746.81,BRAMBLE LETTINGS
Revenue,Place,5105656346,23.10.2015,Leaseholds by LA,Accommodation Costs - Leaseholder Payments,588.38,BRAMBLE LETTINGS
Revenue,Place,5105656346,23.10.2015,Leaseholds by LA,Accommodation Costs - Leaseholder Payments,216.66,BRAMBLE LETTINGS
Revenue,Place,5105656346,23.10.2015,Leaseholds by LA,Accommodation Costs - Leaseholder Payments,281.66,BRAMBLE LETTINGS
Revenue,Place,5105656346,23.10.2015,Leaseholds by LA,Accommodation Costs - Leaseholder Payments,746.81,BRAMBLE LETTINGS
Revenue,Place,5105656346,23.10.2015,Leaseholds by LA,Accommodation Costs - Leaseholder Payments,746.81,BRAMBLE LETTINGS
Revenue,Place,5105656346,23.10.2015,Leaseholds by LA,Accommodation Costs - Leaseholder Payments,746.81,BRAMBLE LETTINGS
Revenue,Place,5105656346,23.10.2015,Leaseholds by LA,Accommodation Costs - Leaseholder Payments,746.81,BRAMBLE LETTINGS
Revenue,Place,5105656346,23.10.2015,Leaseholds by LA,Accommodation Costs - Leaseholder Payments,746.81,BRAMBLE LETTINGS
Revenue,Place,5105656346,23.10.2015,Leaseholds by LA,Accommodation Costs - Leaseholder Payments,746.81,BRAMBLE LETTINGS
Revenue,Place,5105656346,23.10.2015,Leaseholds by LA,Accommodation Costs - Leaseholder Payments,746.81,BRAMBLE LETTINGS
Revenue,Place,5105656346,23.10.2015,Leaseholds by LA,Accommodation Costs - Leaseholder Payments,746.81,BRAMBLE LETTINGS
Revenue,Place,5105656346,23.10.2015,Leaseholds by LA,Accommodation Costs - Leaseholder Payments,769.43,BRAMBLE LETTINGS
Revenue,Place,5105656346,23.10.2015,Leaseholds by LA,Accommodation Costs - Leaseholder Payments,746.81,BRAMBLE LETTINGS
Revenue,Place,5105656346,23.10.2015,Leaseholds by LA,Accommodation Costs - Leaseholder Payments,746.81,BRAMBLE LETTINGS
Revenue,Adult Services,5105652858,07.10.2015,Elderly Mentally Ill Residential Care,Charges from Independent Providers,"1,781.36",BRIGHSTONE CARE LTD
Revenue,Adult Services,5105652858,07.10.2015,Elderly Frail Residential Care,Charges from Independent Providers,"1,700.44",BRIGHSTONE CARE LTD
Revenue,Adult Services,5105652858,07.10.2015,Elderly Frail Residential Care,Charges from Independent Providers,"2,093.84",BRIGHSTONE CARE LTD
Revenue,Adult Services,5105655741,21.10.2015,Plean Dene,Grounds Maintenance,387.49,BRIGHSTONE LANDSCAPING LTD
Revenue,Adult Services,5105653656,07.10.2015,Plean Dene,Grounds Maintenance,100.00,BRIGHSTONE LANDSCAPING LTD
Revenue,Adult Services,5105655741,21.10.2015,Saxonbury,Grounds Maintenance,48.00,BRIGHSTONE LANDSCAPING LTD
Revenue,Adult Services,5105655741,21.10.2015,Westminster House,Grounds Maintenance,48.00,BRIGHSTONE LANDSCAPING LTD
Revenue,Adult Services,5105655741,21.10.2015,Highmead,Grounds Maintenance,126.00,BRIGHSTONE LANDSCAPING LTD
Revenue,Place,5105657181,28.10.2015,Play Areas Health & Safety work,Payment to Private Contractors,305.00,BRIGHSTONE LANDSCAPING LTD
Revenue,Place,5105657182,28.10.2015,Beach Safety & Inspection / Beach Awards,Payment to Private Contractors,"1,800.00",BRIGHSTONE LANDSCAPING LTD
Revenue,Place,5105657157,28.10.2015,Beach Cleaning,Payment to Private Contractors,65.00,BRIGHSTONE LANDSCAPING LTD
Revenue,Place,5105657163,28.10.2015,Beach Cleaning,Payment to Private Contractors,105.00,BRIGHSTONE LANDSCAPING LTD
Revenue,Place,5105656038,21.10.2015,Beach Cleaning,Payment to Private Contractors,50.00,BRIGHSTONE LANDSCAPING LTD
Revenue,Place,5105655915,21.10.2015,Beach Cleaning,Payment to Private Contractors,75.00,BRIGHSTONE LANDSCAPING LTD
Revenue,Place,5105655983,21.10.2015,Beach Cleaning,Payment to Private Contractors,420.00,BRIGHSTONE LANDSCAPING LTD
Revenue,Place,5105652662,07.10.2015,Beach Cleaning,Payment to Private Contractors,165.00,BRIGHSTONE LANDSCAPING LTD
Revenue,Place,5105652555,02.10.2015,Beach Cleaning,Payment to Private Contractors,55.00,BRIGHSTONE LANDSCAPING LTD
Revenue,Place,5105652690,07.10.2015,Beach Cleaning,Payment to Private Contractors,210.00,BRIGHSTONE LANDSCAPING LTD
Revenue,Place,5105657126,28.10.2015,Beach Cleaning,Payment to Private Contractors,882.35,BRIGHSTONE LANDSCAPING LTD
Revenue,Place,5105655529,16.10.2015,Beach Cleaning,Beach Cleansing Contractors,"14,806.77",BRIGHSTONE LANDSCAPING LTD
Revenue,Place,5105652556,02.10.2015,Public Shelters - Ryde,Payment to Private Contractors,30.00,BRIGHSTONE LANDSCAPING LTD
Revenue,Place,5105655554,16.10.2015,Fire Operations,Grounds Maintenance,806.25,BRIGHSTONE LANDSCAPING LTD
Revenue,Adult Services,5105655741,21.10.2015,40 Venner Avenue,Grounds Maintenance,48.00,BRIGHSTONE LANDSCAPING LTD
Revenue,Adult Services,5105655741,21.10.2015,Seagulls,Grounds Maintenance,48.00,BRIGHSTONE LANDSCAPING LTD
Revenue,Place,5105654423,14.10.2015,Misc dinghy parks,Payment to Private Contractors,215.00,BRIGHSTONE LANDSCAPING LTD
Revenue,Place,5105655552,16.10.2015,Coast Protection,Payment to Private Contractors,400.00,BRIGHSTONE LANDSCAPING LTD
Revenue,Place,5105657141,28.10.2015,Ventnor Haven - General,Payment to Private Contractors,120.00,BRIGHSTONE LANDSCAPING LTD
Revenue,Childrens Services,5105654381,14.10.2015,HCC Property Services SLA,Payment to Private Contractors,"2,290.00",BRIGHSTONE LANDSCAPING LTD
Revenue,Childrens Services,5105654391,14.10.2015,HCC Property Services SLA,Payment to Private Contractors,"1,596.00",BRIGHSTONE LANDSCAPING LTD
Revenue,Adult Services,5105655741,21.10.2015,The Laurels,Grounds Maintenance,126.00,BRIGHSTONE LANDSCAPING LTD
Revenue,Adult Services,5105655741,21.10.2015,Overbrook,Grounds Maintenance,48.00,BRIGHSTONE LANDSCAPING LTD
Revenue,Place,5105653624,07.10.2015,Cycling festival - cycle the wight,Professional Services,810.00,BRITISH RED CROSS SOCIETY
Revenue,Place,5105653624,07.10.2015,IW Festival of Cycling,Professional Services,245.00,BRITISH RED CROSS SOCIETY
Revenue,Place,5105653624,07.10.2015,Cycling festival - The hills killer,Professional Services,247.50,BRITISH RED CROSS SOCIETY
Revenue,Place,5105655555,28.10.2015,Fire Technical Support,Vehicle Fuel Costs,112.94,BROADWAY GARAGE
Revenue,Place,5105655705,16.10.2015,Transport Fleet Administration,Vehicle Fuel Costs,410.21,BROADWAY GARAGE
Revenue,Public Health,5105657567,30.10.2015,NHS Health Check Programme,Payment to Private Contractors,97.00,BROOKSIDE HEALTH CENTRE
Revenue,Public Health,5105657261,30.10.2015,Contraception,Payment to Private Contractors,35.00,BROOKSIDE HEALTH CENTRE
Revenue,Resources,5105656008,21.10.2015,Litigation Costs,Legal Fees - Other Parties,40.00,BT CONFERENCING
Revenue,Resources,5105657450,30.10.2015,Telephones,Fixed Telephones,629.30,BT FINANCE
Revenue,Place,5105657144,28.10.2015,Business Support  - Fire,Professional Subscriptions,"1,779.00",BUCKINGHAMSHIRE & MILTON KEYNES
Revenue,Adult Services,5105652878,07.10.2015,REDACTED PERSONAL DATA,Order Settlement to Bal Sht GL,"1,781.36",BUCKLAND CARE LTD
Revenue,Adult Services,5105652878,07.10.2015,Elderly Mentally Ill Residential Care,Charges from Independent Providers,"2,093.84",BUCKLAND CARE LTD
Revenue,Adult Services,5105652878,07.10.2015,Elderly Mentally Ill Residential Care,Charges from Independent Providers,"2,093.84",BUCKLAND CARE LTD
Revenue,Adult Services,5105652878,07.10.2015,Elderly Mentally Ill Residential Care,Charges from Independent Providers,"1,781.36",BUCKLAND CARE LTD
Revenue,Adult Services,5105652878,07.10.2015,Elderly Mentally Ill Residential Care,Charges from Independent Providers,"2,093.84",BUCKLAND CARE LTD
Revenue,Adult Services,5105652878,07.10.2015,Elderly Mentally Ill Residential Care,Charges from Independent Providers,"2,093.84",BUCKLAND CARE LTD
Revenue,Adult Services,5105652878,07.10.2015,Elderly Mentally Ill Residential Care,Charges from Independent Providers,"1,781.36",BUCKLAND CARE LTD
Revenue,Adult Services,5105652878,07.10.2015,Elderly Mentally Ill Residential Care,Charges from Independent Providers,"2,093.84",BUCKLAND CARE LTD
Revenue,Adult Services,5105652878,07.10.2015,Elderly Mentally Ill Residential Care,Charges from Independent Providers,"2,093.84",BUCKLAND CARE LTD
Revenue,Adult Services,5105652878,07.10.2015,Elderly Mentally Ill Residential Care,Charges from Independent Providers,"1,781.36",BUCKLAND CARE LTD
Revenue,Adult Services,5105653718,07.10.2015,Elderly Frail Residential Care,Charges from Independent Providers,"1,495.60",BUCKLAND CARE LTD
Revenue,Adult Services,5105656649,23.10.2015,Elderly Frail Residential Care,Charges from Independent Providers,"1,761.17",BUCKLAND CARE LTD
Revenue,Adult Services,5105656198,23.10.2015,Elderly Frail Residential Care,Charges from Independent Providers,"1,882.63",BUCKLAND CARE LTD
Revenue,Adult Services,5105656357,23.10.2015,Elderly Frail Residential Care,Charges from Independent Providers,"1,457.52",BUCKLAND CARE LTD
Revenue,Adult Services,5105652878,07.10.2015,Elderly Frail Residential Care,Charges from Independent Providers,"1,700.44",BUCKLAND CARE LTD
Revenue,Adult Services,5105652878,07.10.2015,Elderly Frail Residential Care,Charges from Independent Providers,"1,700.44",BUCKLAND CARE LTD
Revenue,Adult Services,5105652878,07.10.2015,Elderly Frail Residential Care,Charges from Independent Providers,"2,093.84",BUCKLAND CARE LTD
Revenue,Adult Services,5105652878,07.10.2015,Elderly Frail Residential Care,Charges from Independent Providers,"1,700.44",BUCKLAND CARE LTD
Revenue,Adult Services,5105652878,07.10.2015,Elderly Frail Residential Care,Charges from Independent Providers,822.58,BUCKLAND CARE LTD
Revenue,Adult Services,5105652878,07.10.2015,Elderly Frail Residential Care,Charges from Independent Providers,"2,093.84",BUCKLAND CARE LTD
Revenue,Adult Services,5105652878,07.10.2015,Elderly Frail Residential Care,Charges from Independent Providers,"2,093.84",BUCKLAND CARE LTD
Revenue,Adult Services,5105652878,07.10.2015,Elderly Frail Residential Care,Charges from Independent Providers,"2,093.84",BUCKLAND CARE LTD
Revenue,Adult Services,5105652878,07.10.2015,Elderly Frail Residential Care,Charges from Independent Providers,"2,093.84",BUCKLAND CARE LTD
Revenue,Adult Services,5105652864,07.10.2015,Elderly Mentally Ill Nursing Island,Charges from Independent Providers,"2,784.60",BUCKLAND CARE LTD
Revenue,Adult Services,5105652864,07.10.2015,Elderly Mentally Ill Nursing Island,Charges from Independent Providers,"2,784.60",BUCKLAND CARE LTD
Revenue,Adult Services,5105652864,07.10.2015,Elderly Mentally Ill Nursing Island,Charges from Independent Providers,"2,784.60",BUCKLAND CARE LTD
Revenue,Adult Services,5105653613,07.10.2015,Elderly Mentally Ill Nursing Island,Charges from Independent Providers,"2,784.60",BUCKLAND CARE LTD
Revenue,Adult Services,5105652864,07.10.2015,Elderly Mentally Ill Nursing Island,Charges from Independent Providers,"2,784.60",BUCKLAND CARE LTD
Revenue,Adult Services,5105653613,07.10.2015,Elderly Mentally Ill Nursing Island,Charges from Independent Providers,994.50,BUCKLAND CARE LTD
Revenue,Adult Services,5105653613,07.10.2015,Elderly Mentally Ill Nursing Island,Charges from Independent Providers,"2,784.60",BUCKLAND CARE LTD
Revenue,Adult Services,5105652864,07.10.2015,Elderly Mentally Ill Nursing Island,Charges from Independent Providers,"2,784.60",BUCKLAND CARE LTD
Revenue,Adult Services,5105652864,07.10.2015,Elderly Mentally Ill Nursing Island,Regular Respite Care,"2,784.60",BUCKLAND CARE LTD
Revenue,Adult Services,5105652864,07.10.2015,REDACTED PERSONAL DATA,Order Settlement to Bal Sht GL,"2,336.60",BUCKLAND CARE LTD
Revenue,Adult Services,5105652864,07.10.2015,REDACTED PERSONAL DATA,Order Settlement to Bal Sht GL,"2,336.60",BUCKLAND CARE LTD
Revenue,Adult Services,5105652864,07.10.2015,Funded Nursing Care Island,Charges from Independent Providers,448.00,BUCKLAND CARE LTD
Revenue,Adult Services,5105652864,07.10.2015,Funded Nursing Care Island,Charges from Independent Providers,448.00,BUCKLAND CARE LTD
Revenue,Adult Services,5105652864,07.10.2015,Funded Nursing Care Island,Charges from Independent Providers,448.00,BUCKLAND CARE LTD
Revenue,Adult Services,5105652864,07.10.2015,Funded Nursing Care Island,Charges from Independent Providers,448.00,BUCKLAND CARE LTD
Revenue,Adult Services,5105652864,07.10.2015,Funded Nursing Care Island,Charges from Independent Providers,448.00,BUCKLAND CARE LTD
Revenue,Adult Services,5105653897,09.10.2015,Funded Nursing Care Island,Charges from Independent Providers,624.00,BUCKLAND CARE LTD
Revenue,Adult Services,5105652864,07.10.2015,Funded Nursing Care Island,Charges from Independent Providers,448.00,BUCKLAND CARE LTD
Revenue,Adult Services,5105652864,07.10.2015,Funded Nursing Care Island,Charges from Independent Providers,448.00,BUCKLAND CARE LTD
Revenue,Adult Services,5105652864,07.10.2015,Funded Nursing Care Island,Charges from Independent Providers,448.00,BUCKLAND CARE LTD
Revenue,Adult Services,5105652864,07.10.2015,Funded Nursing Care Island,Charges from Independent Providers,448.00,BUCKLAND CARE LTD
Revenue,Adult Services,5105652864,07.10.2015,Funded Nursing Care Island,Charges from Independent Providers,448.00,BUCKLAND CARE LTD
Revenue,Adult Services,5105652864,07.10.2015,Funded Nursing Care Island,Charges from Independent Providers,448.00,BUCKLAND CARE LTD
Revenue,Adult Services,5105652864,07.10.2015,Funded Nursing Care Island,Charges from Independent Providers,448.00,BUCKLAND CARE LTD
Revenue,Adult Services,5105652864,07.10.2015,Funded Nursing Care Island,Charges from Independent Providers,448.00,BUCKLAND CARE LTD
Revenue,Adult Services,5105652864,07.10.2015,Physical Disability Nursing Island,Charges from Independent Providers,"2,784.60",BUCKLAND CARE LTD
Revenue,Adult Services,5105652864,07.10.2015,Elderly Frail Nursing Island,Charges from Independent Providers,"2,784.60",BUCKLAND CARE LTD
Revenue,Adult Services,5105652864,07.10.2015,Elderly Frail Nursing Island,Charges from Independent Providers,"2,784.60",BUCKLAND CARE LTD
Revenue,Adult Services,5105652864,07.10.2015,Elderly Frail Nursing Island,Charges from Independent Providers,"2,784.60",BUCKLAND CARE LTD
Revenue,Adult Services,5105652864,07.10.2015,Elderly Frail Nursing Island,Charges from Independent Providers,"2,784.60",BUCKLAND CARE LTD
Revenue,Adult Services,5105652864,07.10.2015,Elderly Frail Nursing Island,Charges from Independent Providers,"2,784.60",BUCKLAND CARE LTD
Revenue,Adult Services,5105655324,16.10.2015,Elderly Frail Nursing Island,Charges from Independent Providers,"12,232.35",BUCKLAND CARE LTD
Revenue,Adult Services,5105652864,07.10.2015,Elderly Frail Nursing Island,Charges from Independent Providers,"2,784.60",BUCKLAND CARE LTD
Revenue,Adult Services,5105654158,23.10.2015,Plean Dene,Consumable Cleaning Materials,96.10,BUNZL CLEANING & HYGIENE SUPPLIES LTD
Revenue,Adult Services,5105653683,07.10.2015,Plean Dene,Consumable Cleaning Materials,76.42,BUNZL CLEANING & HYGIENE SUPPLIES LTD
Revenue,Adult Services,5105656251,21.10.2015,Plean Dene,Consumable Cleaning Materials,156.50,BUNZL CLEANING & HYGIENE SUPPLIES LTD
Revenue,Adult Services,5105653162,07.10.2015,Elderly Frail Nursing Mainland,Charges from Independent Providers,"1,961.68",BUPA CARE HOME (BNH) LTD
Revenue,Adult Services,5105653476,07.10.2015,Mental Health Residential Care,Charges from Independent Providers,"2,006.76",BUPA CARE HOMES LTD
Capital,Place,5105656157,21.10.2015,Cowes Floating Brdge,Payment to Contractors - Capital,"20,237.07",BURNESS CORLETT
Revenue,Resources,5105653627,07.10.2015,ICT Refresh Programme,Computer Purchase & Rental,39.14,BUY IT DIRECT
Revenue,Resources,5105653627,07.10.2015,ICT Refresh Programme,Computer Purchase & Rental,8.29,BUY IT DIRECT
Revenue,Place,5105653811,07.10.2015,SOREC Project ERDF,Grants to External Bodies,"7,735.29",BVD MARINE LTD
Revenue,Place,5105653804,09.10.2015,"Enterprise House, Newport",Grounds Maintenance,45.00,C & J GROUND MAINTENANCE
Revenue,Place,5105653550,28.10.2015,"Enterprise House, Newport",Grounds Maintenance,240.00,C & J GROUND MAINTENANCE
Revenue,Place,5105653840,30.10.2015,Shared Ownership,Grounds Maintenance,225.00,C & J GROUND MAINTENANCE
Revenue,Place,5105655985,30.10.2015,Shared Ownership,Grounds Maintenance,"1,372.00",C & J GROUND MAINTENANCE
Revenue,Place,5105653796,14.10.2015,Church View Ventnor,Grounds Maintenance,607.00,C & J GROUND MAINTENANCE
Revenue,Adult Services,5105653806,14.10.2015,31 Carter Avenue,Minor Works,275.00,C & J GROUND MAINTENANCE
Revenue,Place,5105653560,09.10.2015,17 Fairlee Road,Grounds Maintenance,162.00,C & J GROUND MAINTENANCE
Revenue,Place,5105656193,21.10.2015,Properties  - Other Properties,Grounds Maintenance,100.00,C & J GROUND MAINTENANCE
Revenue,Place,5105653699,07.10.2015,Properties  - Other Properties,Grounds Maintenance,90.00,C & J GROUND MAINTENANCE
Revenue,Place,5105653690,07.10.2015,Properties  - Other Properties,Grounds Maintenance,100.00,C & J GROUND MAINTENANCE
Revenue,Place,5105654171,14.10.2015,Properties  - Other Properties,Grounds Maintenance,"5,142.15",C & J GROUND MAINTENANCE
Revenue,Place,5105653808,07.10.2015,Properties  - Other Properties,Grounds Maintenance,110.00,C & J GROUND MAINTENANCE
Revenue,Place,5105653558,09.10.2015,Properties  - Other Properties,Grounds Maintenance,30.00,C & J GROUND MAINTENANCE
Revenue,Place,5105653566,07.10.2015,Properties  - Other Properties,Grounds Maintenance,225.00,C & J GROUND MAINTENANCE
Revenue,Place,5105653847,09.10.2015,"Westridge, Ryde",Grounds Maintenance,680.00,C & J GROUND MAINTENANCE
Revenue,Childrens Services,5105653580,09.10.2015,Workshop Initiative Support in Education,Grounds Maintenance,165.00,C & J GROUND MAINTENANCE
Revenue,Place,5105653557,16.10.2015,Somerton Industrial Park,Grounds Maintenance,530.40,C & J GROUND MAINTENANCE
Revenue,Childrens Services,5105652447,02.10.2015,Children placed with Family&Friends,Boarding Out Allowances,164.30,REDACTED PERSONAL DATA
Revenue,Childrens Services,5105652447,02.10.2015,Children placed with Family&Friends,Boarding Out Allowances,116.25,REDACTED PERSONAL DATA
Revenue,Childrens Services,5105655403,16.10.2015,Children placed with Family&Friends,Boarding Out Allowances,116.25,REDACTED PERSONAL DATA
Revenue,Childrens Services,5105655403,16.10.2015,Children placed with Family&Friends,Boarding Out Allowances,164.30,REDACTED PERSONAL DATA
Revenue,Childrens Services,5105653973,09.10.2015,Children placed with Family&Friends,Boarding Out Allowances,116.25,REDACTED PERSONAL DATA
Revenue,Childrens Services,5105653973,09.10.2015,Children placed with Family&Friends,Boarding Out Allowances,164.30,REDACTED PERSONAL DATA
Revenue,Childrens Services,5105657367,30.10.2015,Children placed with Family&Friends,Boarding Out Allowances,116.25,REDACTED PERSONAL DATA
Revenue,Childrens Services,5105657367,30.10.2015,Children placed with Family&Friends,Boarding Out Allowances,164.30,REDACTED PERSONAL DATA
Revenue,Childrens Services,5105656461,23.10.2015,Children placed with Family&Friends,Boarding Out Allowances,116.25,REDACTED PERSONAL DATA
Revenue,Childrens Services,5105656461,23.10.2015,Children placed with Family&Friends,Boarding Out Allowances,164.30,REDACTED PERSONAL DATA
Revenue,Childrens Services,5105656416,23.10.2015,Special Guardianship Order Costs,Support Children,125.79,REDACTED PERSONAL DATA
Revenue,Childrens Services,5105657348,30.10.2015,Special Guardianship Order Costs,Support Children,125.79,REDACTED PERSONAL DATA
Revenue,Childrens Services,5105653953,09.10.2015,Special Guardianship Order Costs,Support Children,125.79,REDACTED PERSONAL DATA
Revenue,Childrens Services,5105652426,02.10.2015,Special Guardianship Order Costs,Support Children,125.79,REDACTED PERSONAL DATA
Revenue,Childrens Services,5105655384,16.10.2015,Special Guardianship Order Costs,Support Children,125.79,REDACTED PERSONAL DATA
Capital,Place,5105655858,21.10.2015,Fire Capital Projects,Payment to Contractors - Capital,27.58,C BREWER & SONS LTD
Capital,Place,5105655859,21.10.2015,Fire Capital Projects,Payment to Contractors - Capital,50.10,C BREWER & SONS LTD
Capital,Place,5105655208,21.10.2015,Fire Capital Projects,Payment to Contractors - Capital,-24.91,C BREWER & SONS LTD
Revenue,Childrens Services,5105652474,02.10.2015,Children placed with Family&Friends,Boarding Out Allowances,142.86,REDACTED PERSONAL DATA
Revenue,Childrens Services,5105655429,16.10.2015,Children placed with Family&Friends,Boarding Out Allowances,142.86,REDACTED PERSONAL DATA
Revenue,Childrens Services,5105654000,09.10.2015,Children placed with Family&Friends,Boarding Out Allowances,142.86,REDACTED PERSONAL DATA
Revenue,Childrens Services,5105656492,23.10.2015,Children placed with Family&Friends,Boarding Out Allowances,142.86,REDACTED PERSONAL DATA
Revenue,Childrens Services,5105657392,30.10.2015,Children placed with Family&Friends,Boarding Out Allowances,142.86,REDACTED PERSONAL DATA
Revenue,Childrens Services,5105657377,30.10.2015,Adoption Costs,Support Children,125.79,REDACTED PERSONAL DATA
Revenue,Childrens Services,5105657377,30.10.2015,Adoption Costs,Support Children,132.69,REDACTED PERSONAL DATA
Revenue,Childrens Services,5105653983,09.10.2015,Adoption Costs,Support Children,125.79,REDACTED PERSONAL DATA
Revenue,Childrens Services,5105653983,09.10.2015,Adoption Costs,Support Children,132.69,REDACTED PERSONAL DATA
Revenue,Childrens Services,5105652457,02.10.2015,Adoption Costs,Support Children,132.69,REDACTED PERSONAL DATA
Revenue,Childrens Services,5105652457,02.10.2015,Adoption Costs,Support Children,125.79,REDACTED PERSONAL DATA
Revenue,Childrens Services,5105656473,23.10.2015,Adoption Costs,Support Children,125.79,REDACTED PERSONAL DATA
Revenue,Childrens Services,5105656473,23.10.2015,Adoption Costs,Support Children,132.69,REDACTED PERSONAL DATA
Revenue,Childrens Services,5105655413,16.10.2015,Adoption Costs,Support Children,125.79,REDACTED PERSONAL DATA
Revenue,Childrens Services,5105655413,16.10.2015,Adoption Costs,Support Children,132.69,REDACTED PERSONAL DATA
Revenue,Resources,5105656460,23.10.2015,Staff Benefits,Payment to Private Contractors,166.50,REDACTED PERSONAL DATA
Revenue,Childrens Services,5105657360,30.10.2015,Special Guardianship Order Costs,Support Children,125.79,REDACTED PERSONAL DATA
Revenue,Childrens Services,5105656453,23.10.2015,Special Guardianship Order Costs,Support Children,125.79,REDACTED PERSONAL DATA
Revenue,Childrens Services,5105652440,02.10.2015,Special Guardianship Order Costs,Support Children,125.79,REDACTED PERSONAL DATA
Revenue,Childrens Services,5105653966,09.10.2015,Special Guardianship Order Costs,Support Children,125.79,REDACTED PERSONAL DATA
Revenue,Childrens Services,5105655396,16.10.2015,Special Guardianship Order Costs,Support Children,125.79,REDACTED PERSONAL DATA
Revenue,Childrens Services,5105656487,23.10.2015,In-house Fostering,Boarding Out Allowances,202.58,REDACTED PERSONAL DATA
Revenue,Childrens Services,5105656487,23.10.2015,In-house Fostering,Boarding Out Allowances,162.73,REDACTED PERSONAL DATA
Revenue,Childrens Services,5105655425,16.10.2015,In-house Fostering,Boarding Out Allowances,202.58,REDACTED PERSONAL DATA
Revenue,Childrens Services,5105655425,16.10.2015,In-house Fostering,Boarding Out Allowances,162.73,REDACTED PERSONAL DATA
Revenue,Childrens Services,5105657388,30.10.2015,In-house Fostering,Boarding Out Allowances,202.58,REDACTED PERSONAL DATA
Revenue,Childrens Services,5105657388,30.10.2015,In-house Fostering,Boarding Out Allowances,162.73,REDACTED PERSONAL DATA
Revenue,Childrens Services,5105653996,09.10.2015,In-house Fostering,Boarding Out Allowances,202.58,REDACTED PERSONAL DATA
Revenue,Childrens Services,5105653996,09.10.2015,In-house Fostering,Boarding Out Allowances,162.73,REDACTED PERSONAL DATA
Revenue,Childrens Services,5105652470,02.10.2015,In-house Fostering,Boarding Out Allowances,202.58,REDACTED PERSONAL DATA
Revenue,Childrens Services,5105652470,02.10.2015,In-house Fostering,Boarding Out Allowances,162.73,REDACTED PERSONAL DATA
Revenue,Childrens Services,5105657350,30.10.2015,Adoption Costs,Support Children,168.39,REDACTED PERSONAL DATA
Revenue,Childrens Services,5105657350,30.10.2015,Adoption Costs,Support Children,207.73,REDACTED PERSONAL DATA
Revenue,Childrens Services,5105656418,23.10.2015,Adoption Costs,Support Children,168.39,REDACTED PERSONAL DATA
Revenue,Childrens Services,5105656418,23.10.2015,Adoption Costs,Support Children,207.73,REDACTED PERSONAL DATA
Revenue,Childrens Services,5105653955,09.10.2015,Adoption Costs,Support Children,168.39,REDACTED PERSONAL DATA
Revenue,Childrens Services,5105653955,09.10.2015,Adoption Costs,Support Children,207.73,REDACTED PERSONAL DATA
Revenue,Childrens Services,5105652428,02.10.2015,Adoption Costs,Support Children,207.73,REDACTED PERSONAL DATA
Revenue,Childrens Services,5105652428,02.10.2015,Adoption Costs,Support Children,168.39,REDACTED PERSONAL DATA
Revenue,Childrens Services,5105655386,16.10.2015,Adoption Costs,Support Children,168.39,REDACTED PERSONAL DATA
Revenue,Childrens Services,5105655386,16.10.2015,Adoption Costs,Support Children,207.73,REDACTED PERSONAL DATA
Revenue,Childrens Services,5105657409,30.10.2015,Special Guardianship Order Costs,Support Children,116.80,REDACTED PERSONAL DATA
Revenue,Childrens Services,5105656509,23.10.2015,Special Guardianship Order Costs,Support Children,116.80,REDACTED PERSONAL DATA
Revenue,Childrens Services,5105652491,02.10.2015,Special Guardianship Order Costs,Support Children,116.80,REDACTED PERSONAL DATA
Revenue,Childrens Services,5105655446,16.10.2015,Special Guardianship Order Costs,Support Children,116.80,REDACTED PERSONAL DATA
Revenue,Childrens Services,5105654017,09.10.2015,Special Guardianship Order Costs,Support Children,116.80,REDACTED PERSONAL DATA
Revenue,Childrens Services,5105656413,23.10.2015,In-house Fostering,Boarding Out Allowances,246.44,REDACTED PERSONAL DATA
Revenue,Childrens Services,5105656413,23.10.2015,In-house Fostering,Boarding Out Allowances,295.00,REDACTED PERSONAL DATA
Revenue,Childrens Services,5105656413,23.10.2015,In-house Fostering,Boarding Out Allowances,10.00,REDACTED PERSONAL DATA
Revenue,Childrens Services,5105657345,30.10.2015,In-house Fostering,Boarding Out Allowances,246.44,REDACTED PERSONAL DATA
Revenue,Childrens Services,5105657345,30.10.2015,In-house Fostering,Boarding Out Allowances,295.00,REDACTED PERSONAL DATA
Revenue,Childrens Services,5105657345,30.10.2015,In-house Fostering,Boarding Out Allowances,10.00,REDACTED PERSONAL DATA
Revenue,Childrens Services,5105653950,09.10.2015,In-house Fostering,Boarding Out Allowances,246.44,REDACTED PERSONAL DATA
Revenue,Childrens Services,5105653950,09.10.2015,In-house Fostering,Boarding Out Allowances,295.00,REDACTED PERSONAL DATA
Revenue,Childrens Services,5105653950,09.10.2015,In-house Fostering,Boarding Out Allowances,10.00,REDACTED PERSONAL DATA
Revenue,Childrens Services,5105655381,16.10.2015,In-house Fostering,Boarding Out Allowances,246.44,REDACTED PERSONAL DATA
Revenue,Childrens Services,5105655381,16.10.2015,In-house Fostering,Boarding Out Allowances,295.00,REDACTED PERSONAL DATA
Revenue,Childrens Services,5105655381,16.10.2015,In-house Fostering,Boarding Out Allowances,10.00,REDACTED PERSONAL DATA
Revenue,Childrens Services,5105652423,02.10.2015,In-house Fostering,Boarding Out Allowances,246.44,REDACTED PERSONAL DATA
Revenue,Childrens Services,5105652423,02.10.2015,In-house Fostering,Boarding Out Allowances,295.00,REDACTED PERSONAL DATA
Revenue,Childrens Services,5105652423,02.10.2015,In-house Fostering,Boarding Out Allowances,10.00,REDACTED PERSONAL DATA
Revenue,Childrens Services,5105657323,30.10.2015,In-house Fostering,Boarding Out Allowances,142.86,REDACTED PERSONAL DATA
Revenue,Childrens Services,5105657323,30.10.2015,In-house Fostering,Boarding Out Allowances,120.89,REDACTED PERSONAL DATA
Revenue,Childrens Services,5105657323,30.10.2015,In-house Fostering,Boarding Out Allowances,68.50,REDACTED PERSONAL DATA
Revenue,Childrens Services,5105656391,23.10.2015,In-house Fostering,Boarding Out Allowances,142.86,REDACTED PERSONAL DATA
Revenue,Childrens Services,5105656391,23.10.2015,In-house Fostering,Boarding Out Allowances,120.89,REDACTED PERSONAL DATA
Revenue,Childrens Services,5105656391,23.10.2015,In-house Fostering,Boarding Out Allowances,68.50,REDACTED PERSONAL DATA
Revenue,Childrens Services,5105656391,23.10.2015,In-house Fostering,Boarding Out Allowances,246.44,REDACTED PERSONAL DATA
Revenue,Childrens Services,5105656391,23.10.2015,In-house Fostering,Boarding Out Allowances,15.00,REDACTED PERSONAL DATA
Revenue,Childrens Services,5105655359,16.10.2015,In-house Fostering,Boarding Out Allowances,15.00,REDACTED PERSONAL DATA
Revenue,Childrens Services,5105655359,16.10.2015,In-house Fostering,Boarding Out Allowances,142.86,REDACTED PERSONAL DATA
Revenue,Childrens Services,5105655359,16.10.2015,In-house Fostering,Boarding Out Allowances,120.89,REDACTED PERSONAL DATA
Revenue,Childrens Services,5105655359,16.10.2015,In-house Fostering,Boarding Out Allowances,68.50,REDACTED PERSONAL DATA
Revenue,Childrens Services,5105657323,30.10.2015,In-house Fostering,Boarding Out Allowances,246.44,REDACTED PERSONAL DATA
Revenue,Childrens Services,5105657323,30.10.2015,In-house Fostering,Boarding Out Allowances,15.00,REDACTED PERSONAL DATA
Revenue,Childrens Services,5105653928,09.10.2015,In-house Fostering,Boarding Out Allowances,246.44,REDACTED PERSONAL DATA
Revenue,Childrens Services,5105653928,09.10.2015,In-house Fostering,Boarding Out Allowances,15.00,REDACTED PERSONAL DATA
Revenue,Childrens Services,5105653928,09.10.2015,In-house Fostering,Boarding Out Allowances,142.86,REDACTED PERSONAL DATA
Revenue,Childrens Services,5105653928,09.10.2015,In-house Fostering,Boarding Out Allowances,120.89,REDACTED PERSONAL DATA
Revenue,Childrens Services,5105653928,09.10.2015,In-house Fostering,Boarding Out Allowances,68.50,REDACTED PERSONAL DATA
Revenue,Childrens Services,5105655359,16.10.2015,In-house Fostering,Boarding Out Allowances,246.44,REDACTED PERSONAL DATA
Revenue,Childrens Services,5105652401,02.10.2015,In-house Fostering,Boarding Out Allowances,68.50,REDACTED PERSONAL DATA
Revenue,Childrens Services,5105652401,02.10.2015,In-house Fostering,Boarding Out Allowances,120.89,REDACTED PERSONAL DATA
Revenue,Childrens Services,5105652401,02.10.2015,In-house Fostering,Boarding Out Allowances,142.86,REDACTED PERSONAL DATA
Revenue,Childrens Services,5105652401,02.10.2015,In-house Fostering,Boarding Out Allowances,246.44,REDACTED PERSONAL DATA
Revenue,Childrens Services,5105652401,02.10.2015,In-house Fostering,Boarding Out Allowances,15.00,REDACTED PERSONAL DATA
Revenue,Childrens Services,5105652418,02.10.2015,Children placed with Family&Friends,Boarding Out Allowances,135.00,REDACTED PERSONAL DATA
Revenue,Childrens Services,5105652418,02.10.2015,Children placed with Family&Friends,Boarding Out Allowances,246.44,REDACTED PERSONAL DATA
Revenue,Childrens Services,5105655376,16.10.2015,Children placed with Family&Friends,Boarding Out Allowances,246.44,REDACTED PERSONAL DATA
Revenue,Childrens Services,5105655376,16.10.2015,Children placed with Family&Friends,Boarding Out Allowances,135.00,REDACTED PERSONAL DATA
Revenue,Childrens Services,5105653945,09.10.2015,Children placed with Family&Friends,Boarding Out Allowances,246.44,REDACTED PERSONAL DATA
Revenue,Childrens Services,5105653945,09.10.2015,Children placed with Family&Friends,Boarding Out Allowances,135.00,REDACTED PERSONAL DATA
Revenue,Childrens Services,5105656408,23.10.2015,Children placed with Family&Friends,Boarding Out Allowances,246.44,REDACTED PERSONAL DATA
Revenue,Childrens Services,5105656408,23.10.2015,Children placed with Family&Friends,Boarding Out Allowances,135.00,REDACTED PERSONAL DATA
Revenue,Childrens Services,5105657340,30.10.2015,Children placed with Family&Friends,Boarding Out Allowances,246.44,REDACTED PERSONAL DATA
Revenue,Childrens Services,5105657340,30.10.2015,Children placed with Family&Friends,Boarding Out Allowances,135.00,REDACTED PERSONAL DATA
Revenue,Place,5105655160,14.10.2015,Slipways & Steps (Beaches),Payment to Private Contractors,285.26,C N SERVICES
Revenue,Place,5105655160,14.10.2015,Slipways & Steps (Beaches),Payment to Private Contractors,80.25,C N SERVICES
Revenue,Place,5105655185,16.10.2015,IOW Festival Costs,Payment to Private Contractors,435.00,C N SERVICES
Capital,Place,5105655157,14.10.2015,Rights Of Way Capital Programme,Payment to Contractors - Capital,140.00,C N SERVICES
Revenue,Place,5105655186,16.10.2015,Play Areas Health & Safety work,Payment to Private Contractors,433.00,C N SERVICES
Revenue,Place,5105655160,14.10.2015,Beach Safety & Inspection / Beach Awards,Payment to Private Contractors,30.00,C N SERVICES
Revenue,Place,5105655209,16.10.2015,Other Grounds Maintenance,Payment to Private Contractors,190.00,C N SERVICES
Revenue,Place,5400002063,17.04.2015,Parks Mtce Miscellaneous,Payment to Private Contractors,0.01,C N SERVICES
Revenue,Place,5105655158,16.10.2015,Coast Protection,Payment to Private Contractors,444.00,C N SERVICES
Revenue,Place,5105655156,16.10.2015,Coast Protection,Payment to Private Contractors,205.00,C N SERVICES
Revenue,Place,5105655212,16.10.2015,Coast Protection,Payment to Private Contractors,90.00,C N SERVICES
Revenue,Childrens Services,5105656465,23.10.2015,Special Guardianship Order Costs,Support Children,161.49,REDACTED PERSONAL DATA
Revenue,Childrens Services,5105657371,30.10.2015,Special Guardianship Order Costs,Support Children,161.49,REDACTED PERSONAL DATA
Revenue,Childrens Services,5105653977,09.10.2015,Special Guardianship Order Costs,Support Children,161.49,REDACTED PERSONAL DATA
Revenue,Childrens Services,5105652451,02.10.2015,Special Guardianship Order Costs,Support Children,161.49,REDACTED PERSONAL DATA
Revenue,Childrens Services,5105655407,16.10.2015,Special Guardianship Order Costs,Support Children,161.49,REDACTED PERSONAL DATA
Revenue,Adult Services,5105652823,07.10.2015,Learning Disability Residential Care,Charges from Independent Providers,"1,894.76",REDACTED PERSONAL DATA
Revenue,Childrens Services,5105656414,23.10.2015,Adoption Costs,Support Children,132.69,REDACTED PERSONAL DATA
Revenue,Childrens Services,5105657346,30.10.2015,Adoption Costs,Support Children,132.69,REDACTED PERSONAL DATA
Revenue,Childrens Services,5105655382,16.10.2015,Adoption Costs,Support Children,132.69,REDACTED PERSONAL DATA
Revenue,Childrens Services,5105653951,09.10.2015,Adoption Costs,Support Children,132.69,REDACTED PERSONAL DATA
Revenue,Childrens Services,5105652424,02.10.2015,Adoption Costs,Support Children,132.69,REDACTED PERSONAL DATA
Revenue,Childrens Services,5105656029,23.10.2015,LSCB (Local Safeguarding Childrens Board),Professional Services,137.50,CHILDREN ACT ENTERPRISES LTD
Revenue,Childrens Services,5105656960,28.10.2015,LSCB (Local Safeguarding Childrens Board),Professional Services,550.00,CHILDREN ACT ENTERPRISES LTD
Revenue,Place,5105657475,30.10.2015,Public Libraries Central,Publications,150.00,CALIBRE AUDIO LIBRARY
Revenue,Place,5105657476,30.10.2015,Public Libraries Central,Publications,75.00,CALIBRE AUDIO LIBRARY
Revenue,Place,5105654163,09.10.2015,Coroner,Professional Services,150.00,CAMERON LAMB LTD
Revenue,Place,5105656978,30.10.2015,Coroner,Professional Services,75.00,CAMERON LAMB LTD
Revenue,Place,5105657011,30.10.2015,Coroner,Professional Services,75.00,CAMERON LAMB LTD
Revenue,Place,5105657032,30.10.2015,Coroner,Professional Services,75.00,CAMERON LAMB LTD
Revenue,Place,5105657031,30.10.2015,Coroner,Professional Services,150.00,CAMERON LAMB LTD
Revenue,Place,5105657030,30.10.2015,Coroner,Professional Services,375.00,CAMERON LAMB LTD
Revenue,Place,5105657030,30.10.2015,Coroner,Professional Services,25.00,CAMERON LAMB LTD
Revenue,Resources,5105657281,30.10.2015,Litigation Costs,Legal Fees - Other Parties,50.00,CAMERON LAMB LTD
Revenue,Place,5105653570,07.10.2015,Cowes Library,Cleaning Contracts,1.04,CANNON HYGIENE
Revenue,Place,5105657587,30.10.2015,Cowes Library,Cleaning Contracts,1.04,CANNON HYGIENE
Revenue,Place,5105657587,30.10.2015,Ryde Library,Cleaning Contracts,5.29,CANNON HYGIENE
Revenue,Childrens Services,5105653570,07.10.2015,Learning & Development Running Costs,Cleaning Contracts,5.20,CANNON HYGIENE
Revenue,Childrens Services,5105657587,30.10.2015,Learning & Development Running Costs,Cleaning Contracts,5.20,CANNON HYGIENE
Revenue,Place,5105657587,30.10.2015,Medina Leisure Centre,Cleaning Contracts,38.91,CANNON HYGIENE
Revenue,Place,5105653570,07.10.2015,Medina Leisure Centre,Cleaning Contracts,38.91,CANNON HYGIENE
Revenue,Adult Services,5105653570,07.10.2015,Saxonbury,Cleaning Contracts,120.26,CANNON HYGIENE
Revenue,Adult Services,5105657587,30.10.2015,Saxonbury,Cleaning Contracts,120.25,CANNON HYGIENE
Revenue,Adult Services,5105656118,30.10.2015,Saxonbury,Cleaning Contracts,9.60,CANNON HYGIENE
Revenue,Place,5105653570,07.10.2015,"Enterprise House, Newport",Cleaning Contracts,12.09,CANNON HYGIENE
Revenue,Place,5105657587,30.10.2015,"Enterprise House, Newport",Cleaning Contracts,12.09,CANNON HYGIENE
Revenue,Adult Services,5105653570,07.10.2015,S75 Integrated Community Equipment Store,Cleaning Contracts,1.04,CANNON HYGIENE
Revenue,Adult Services,5105657587,30.10.2015,S75 Integrated Community Equipment Store,Cleaning Contracts,1.04,CANNON HYGIENE
Revenue,Adult Services,5105657587,30.10.2015,Plean Dene,Cleaning Contracts,109.03,CANNON HYGIENE
Revenue,Adult Services,5105653570,07.10.2015,Plean Dene,Cleaning Contracts,109.03,CANNON HYGIENE
Revenue,Adult Services,5105657587,30.10.2015,Westminster House,Cleaning Contracts,49.23,CANNON HYGIENE
Revenue,Adult Services,5105653570,07.10.2015,Westminster House,Cleaning Contracts,49.22,CANNON HYGIENE
Revenue,Adult Services,5105653570,07.10.2015,31 Carter Avenue,Cleaning Contracts,1.04,CANNON HYGIENE
Revenue,Adult Services,5105656118,30.10.2015,31 Carter Avenue,Cleaning Contracts,16.00,CANNON HYGIENE
Revenue,Adult Services,5105657587,30.10.2015,31 Carter Avenue,Cleaning Contracts,1.04,CANNON HYGIENE
Revenue,Adult Services,5105657587,30.10.2015,Highmead,Cleaning Contracts,30.12,CANNON HYGIENE
Revenue,Adult Services,5105653570,07.10.2015,Highmead,Cleaning Contracts,30.11,CANNON HYGIENE
Revenue,Place,5105657587,30.10.2015,"Barrack Block, Sandown",Cleaning Contracts,4.16,CANNON HYGIENE
Revenue,Place,5105653570,07.10.2015,"Barrack Block, Sandown",Cleaning Contracts,4.16,CANNON HYGIENE
Revenue,Place,5105653570,07.10.2015,"Westridge, Ryde",Cleaning Contracts,5.20,CANNON HYGIENE
Revenue,Place,5105657587,30.10.2015,"Westridge, Ryde",Cleaning Contracts,5.20,CANNON HYGIENE
Revenue,Place,5105653570,07.10.2015,Planning Business Support,Cleaning Contracts,22.41,CANNON HYGIENE
Revenue,Place,5105657587,30.10.2015,Planning Business Support,Cleaning Contracts,22.40,CANNON HYGIENE
Revenue,Place,5105657587,30.10.2015,Fire Technical Support,Cleaning Contracts,1.04,CANNON HYGIENE
Revenue,Place,5105657587,30.10.2015,Fire Technical Support,Cleaning Contracts,5.20,CANNON HYGIENE
Revenue,Place,5105657587,30.10.2015,Fire Technical Support,Cleaning Contracts,1.04,CANNON HYGIENE
Revenue,Place,5105657587,30.10.2015,Fire Technical Support,Cleaning Contracts,3.12,CANNON HYGIENE
Revenue,Place,5105653570,07.10.2015,Fire Technical Support,Cleaning Contracts,1.04,CANNON HYGIENE
Revenue,Place,5105653570,07.10.2015,Fire Technical Support,Cleaning Contracts,1.04,CANNON HYGIENE
Revenue,Place,5105653570,07.10.2015,Fire Technical Support,Cleaning Contracts,5.20,CANNON HYGIENE
Revenue,Place,5105653570,07.10.2015,Fire Technical Support,Cleaning Contracts,2.08,CANNON HYGIENE
Revenue,Place,5105657587,30.10.2015,Fire Technical Support,Cleaning Contracts,1.04,CANNON HYGIENE
Revenue,Place,5105657587,30.10.2015,Fire Technical Support,Cleaning Contracts,1.04,CANNON HYGIENE
Revenue,Place,5105657587,30.10.2015,Fire Technical Support,Cleaning Contracts,2.08,CANNON HYGIENE
Revenue,Place,5105653570,07.10.2015,Fire Technical Support,Cleaning Contracts,1.04,CANNON HYGIENE
Revenue,Place,5105653570,07.10.2015,Fire Technical Support,Cleaning Contracts,1.04,CANNON HYGIENE
Revenue,Place,5105653570,07.10.2015,Fire Technical Support,Cleaning Contracts,3.12,CANNON HYGIENE
Revenue,Childrens Services,5105653570,07.10.2015,Beaulieu House,Cleaning Contracts,156.30,CANNON HYGIENE
Revenue,Childrens Services,5105657587,30.10.2015,Beaulieu House,Cleaning Contracts,156.30,CANNON HYGIENE
Revenue,Childrens Services,5105653570,07.10.2015,Contact Team,Cleaning Contracts,8.41,CANNON HYGIENE
Revenue,Childrens Services,5105657587,30.10.2015,Contact Team,Cleaning Contracts,8.41,CANNON HYGIENE
Revenue,Place,5105657587,30.10.2015,Freshwater West Wight Library,Cleaning Contracts,1.04,CANNON HYGIENE
Revenue,Place,5105653570,07.10.2015,Freshwater West Wight Library,Cleaning Contracts,1.04,CANNON HYGIENE
Revenue,Place,5105653570,07.10.2015,Newport Library,Cleaning Contracts,10.96,CANNON HYGIENE
Revenue,Place,5105657587,30.10.2015,Newport Library,Cleaning Contracts,10.96,CANNON HYGIENE
Revenue,Place,5105657587,30.10.2015,Ventnor Library,Cleaning Contracts,1.04,CANNON HYGIENE
Revenue,Place,5105653570,07.10.2015,Ventnor Library,Cleaning Contracts,1.04,CANNON HYGIENE
Revenue,Childrens Services,5105653570,07.10.2015,Branstone Farm Studies Centre,Cleaning Contracts,3.12,CANNON HYGIENE
Revenue,Childrens Services,5105657587,30.10.2015,Branstone Farm Studies Centre,Cleaning Contracts,3.12,CANNON HYGIENE
Revenue,Place,5105657587,30.10.2015,Fort Victoria,Cleaning Contracts,4.51,CANNON HYGIENE
Revenue,Place,5105653570,07.10.2015,Fort Victoria,Cleaning Contracts,4.51,CANNON HYGIENE
Revenue,Place,5105657587,30.10.2015,Regulatory Management & Admin Support,Cleaning Contracts,3.12,CANNON HYGIENE
Revenue,Place,5105653570,07.10.2015,Regulatory Management & Admin Support,Cleaning Contracts,3.12,CANNON HYGIENE
Revenue,Childrens Services,5105653570,07.10.2015,Workshop Initiative Support in Education,Cleaning Contracts,2.08,CANNON HYGIENE
Revenue,Childrens Services,5105657587,30.10.2015,Workshop Initiative Support in Education,Cleaning Contracts,2.08,CANNON HYGIENE
Revenue,Childrens Services,5105653596,07.10.2015,Island Learning Centre,Cleaning Contracts,18.72,CANNON HYGIENE
Revenue,Childrens Services,5105653570,07.10.2015,Island Learning Centre,Cleaning Contracts,7.28,CANNON HYGIENE
Revenue,Place,5105653570,07.10.2015,Westridge Squash Courts,Cleaning Contracts,4.16,CANNON HYGIENE
Revenue,Place,5105657587,30.10.2015,Westridge Squash Courts,Cleaning Contracts,4.16,CANNON HYGIENE
Revenue,Place,5105653570,07.10.2015,Sandown Library,Cleaning Contracts,1.04,CANNON HYGIENE
Revenue,Place,5105657587,30.10.2015,Sandown Library,Cleaning Contracts,1.04,CANNON HYGIENE
Revenue,Adult Services,5105653570,07.10.2015,40 Venner Avenue,Cleaning Contracts,8.31,CANNON HYGIENE
Revenue,Adult Services,5105653596,07.10.2015,40 Venner Avenue,Cleaning Contracts,131.82,CANNON HYGIENE
Revenue,Adult Services,5105657587,30.10.2015,40 Venner Avenue,Cleaning Contracts,0.01,CANNON HYGIENE
Revenue,Place,5105653570,07.10.2015,"County Hall,Newport",Cleaning Contracts,105.73,CANNON HYGIENE
Revenue,Place,5105657587,30.10.2015,"Bugle House,Newport",Cleaning Contracts,4.16,CANNON HYGIENE
Revenue,Place,5105653570,07.10.2015,"Bugle House,Newport",Cleaning Contracts,4.16,CANNON HYGIENE
Revenue,Adult Services,5105653570,07.10.2015,Seagulls,Cleaning Contracts,1.04,CANNON HYGIENE
Revenue,Adult Services,5105657587,30.10.2015,Seagulls,Cleaning Contracts,1.04,CANNON HYGIENE
Revenue,Adult Services,5105656118,30.10.2015,Seagulls,Cleaning Contracts,16.00,CANNON HYGIENE
Revenue,Place,5105657587,30.10.2015,"County Hall,Newport",Cleaning Contracts,105.73,CANNON HYGIENE
Revenue,Place,5105657587,30.10.2015,Crematorium,Cleaning Contracts,3.12,CANNON HYGIENE
Revenue,Place,5105653570,07.10.2015,Crematorium,Cleaning Contracts,3.12,CANNON HYGIENE
Revenue,Childrens Services,5105653570,07.10.2015,Specialist Service Business Admin,Cleaning Contracts,13.13,CANNON HYGIENE
Revenue,Childrens Services,5105657587,30.10.2015,Specialist Service Business Admin,Cleaning Contracts,13.13,CANNON HYGIENE
Revenue,Place,5105657587,30.10.2015,The Heights,Cleaning Contracts,78.35,CANNON HYGIENE
Revenue,Place,5105653570,07.10.2015,The Heights,Cleaning Contracts,78.35,CANNON HYGIENE
Revenue,Place,5105653570,07.10.2015,Library HQ,Cleaning Contracts,1.04,CANNON HYGIENE
Revenue,Place,5105657587,30.10.2015,Library HQ,Cleaning Contracts,1.04,CANNON HYGIENE
Revenue,Place,5105653570,07.10.2015,Guildhall Museum,Cleaning Contracts,1.04,CANNON HYGIENE
Revenue,Place,5105657587,30.10.2015,Guildhall Museum,Cleaning Contracts,1.04,CANNON HYGIENE
Revenue,Place,5105653570,07.10.2015,Dinosaur Isle Museum (Sandown Geology),Cleaning Contracts,11.53,CANNON HYGIENE
Revenue,Place,5105657587,30.10.2015,Dinosaur Isle Museum (Sandown Geology),Cleaning Contracts,11.53,CANNON HYGIENE
Revenue,Adult Services,5105653570,07.10.2015,Mental Health Day Services,Cleaning Contracts,4.16,CANNON HYGIENE
Revenue,Adult Services,5105653570,07.10.2015,Mental Health Day Services,Cleaning Contracts,2.08,CANNON HYGIENE
Revenue,Adult Services,5105657587,30.10.2015,Mental Health Day Services,Cleaning Contracts,4.16,CANNON HYGIENE
Revenue,Adult Services,5105657587,30.10.2015,Mental Health Day Services,Cleaning Contracts,2.08,CANNON HYGIENE
Revenue,Adult Services,5105653570,07.10.2015,The Laurels,Cleaning Contracts,30.12,CANNON HYGIENE
Revenue,Adult Services,5105657587,30.10.2015,The Laurels,Cleaning Contracts,30.11,CANNON HYGIENE
Revenue,Adult Services,5105657587,30.10.2015,Adelaide Resource Centre,Cleaning Contracts,35.01,CANNON HYGIENE
Revenue,Adult Services,5105653570,07.10.2015,Adelaide Resource Centre,Cleaning Contracts,35.01,CANNON HYGIENE
Revenue,Place,5105653570,07.10.2015,Downside Community & Learning Centre,Cleaning Contracts,12.35,CANNON HYGIENE
Revenue,Place,5105657587,30.10.2015,Downside Community & Learning Centre,Cleaning Contracts,12.35,CANNON HYGIENE
Revenue,Adult Services,5105653570,07.10.2015,Overbrook,Cleaning Contracts,42.90,CANNON HYGIENE
Revenue,Adult Services,5105657587,30.10.2015,Overbrook,Cleaning Contracts,42.90,CANNON HYGIENE
Revenue,Place,5105653570,07.10.2015,"Civic Centre,Sandown",Cleaning Contracts,11.05,CANNON HYGIENE
Revenue,Place,5105657587,30.10.2015,"Civic Centre,Sandown",Cleaning Contracts,11.05,CANNON HYGIENE
Revenue,Place,5105652116,02.10.2015,Print Unit,Photocopying Costs,497.51,CANON (UK) LTD
Revenue,Corporate Items,5105657462,30.10.2015,Miscellaneous Non-rechargeable,Professional Services,"-1,731.32",CAPACITY GRID T/A LIBERATA UK LTD
Revenue,Corporate Items,5105652766,30.10.2015,Miscellaneous Non-rechargeable,Professional Services,"2,349.65",CAPACITY GRID T/A LIBERATA UK LTD
Revenue,Childrens Services,5105657262,30.10.2015,Education Welfare Service,Bought in Prof Services - Curriculum (Schools),800.00,CAPITA EDUCATION SERVICES
Revenue,Childrens Services,5105652042,02.10.2015,Short Breaks,Grants to External Bodies,"1,913.00",CARE CONNECT IOW CIC
Revenue,Childrens Services,5105655962,21.10.2015,Short Breaks,Grants to External Bodies,837.00,CARE CONNECT IOW CIC
Revenue,Adult Services,5105654986,14.10.2015,Physical Disability Homecare,Charges from Independent Providers,137.52,CARE FIRST IW LTD
Revenue,Adult Services,5105655001,14.10.2015,Physical Disability Homecare,Charges from Independent Providers,122.24,CARE FIRST IW LTD
Revenue,Adult Services,5105655018,14.10.2015,Elderly Frail Homecare,Charges from Independent Providers,213.92,CARE FIRST IW LTD
Revenue,Adult Services,5105655021,14.10.2015,Elderly Frail Homecare,Charges from Independent Providers,443.12,CARE FIRST IW LTD
Revenue,Adult Services,5105655022,14.10.2015,Elderly Frail Homecare,Charges from Independent Providers,343.80,CARE FIRST IW LTD
Revenue,Adult Services,5105654976,14.10.2015,Mental Health Homecare,Charges from Independent Providers,213.92,CARE FIRST IW LTD
Revenue,Adult Services,5105655007,14.10.2015,Mental Health Homecare,Charges from Independent Providers,985.56,CARE FIRST IW LTD
Revenue,Adult Services,5105655009,14.10.2015,Physical Disability Homecare,Charges from Independent Providers,122.24,CARE FIRST IW LTD
Revenue,Adult Services,5105654989,14.10.2015,Elderly Frail Homecare,Charges from Independent Providers,"2,108.64",CARE FIRST IW LTD
Revenue,Adult Services,5105654987,14.10.2015,Elderly Frail Homecare,Charges from Independent Providers,641.76,CARE FIRST IW LTD
Revenue,Adult Services,5105655015,14.10.2015,Elderly Frail Homecare,Charges from Independent Providers,427.84,CARE FIRST IW LTD
Revenue,Adult Services,5105655023,14.10.2015,Elderly Frail Homecare,Charges from Independent Providers,7.64,CARE FIRST IW LTD
Revenue,Adult Services,5105655016,14.10.2015,Elderly Frail Homecare,Charges from Independent Providers,160.44,CARE FIRST IW LTD
Revenue,Adult Services,5105655011,14.10.2015,Elderly Frail Homecare,Regular Respite Care,122.24,CARE FIRST IW LTD
Revenue,Adult Services,5105655019,14.10.2015,Elderly Frail Homecare,Regular Respite Care,122.24,CARE FIRST IW LTD
Revenue,Adult Services,5105655014,14.10.2015,Elderly Frail Homecare,Regular Respite Care,61.12,CARE FIRST IW LTD
Revenue,Adult Services,5105655004,14.10.2015,Elderly Frail Homecare,Regular Respite Care,122.24,CARE FIRST IW LTD
Revenue,Adult Services,5105654994,14.10.2015,Elderly Frail Homecare,Regular Respite Care,336.16,CARE FIRST IW LTD
Revenue,Adult Services,5105654992,14.10.2015,Elderly Frail Homecare,Charges from Independent Providers,641.76,CARE FIRST IW LTD
Revenue,Adult Services,5105655795,21.10.2015,Elderly Frail Homecare,Charges from Independent Providers,187.18,CARE FIRST IW LTD
Revenue,Adult Services,5105654991,14.10.2015,Elderly Frail Homecare,Charges from Independent Providers,955.00,CARE FIRST IW LTD
Revenue,Adult Services,5105654990,14.10.2015,Elderly Frail Homecare,Charges from Independent Providers,855.68,CARE FIRST IW LTD
Revenue,Adult Services,5105655013,14.10.2015,Elderly Frail Homecare,Charges from Independent Providers,61.12,CARE FIRST IW LTD
Revenue,Adult Services,5105654980,14.10.2015,Elderly Frail Homecare,Charges from Independent Providers,91.68,CARE FIRST IW LTD
Revenue,Adult Services,5105654998,14.10.2015,Elderly Frail Homecare,Charges from Independent Providers,103.14,CARE FIRST IW LTD
Revenue,Adult Services,5105654995,14.10.2015,Elderly Frail Homecare,Charges from Independent Providers,427.84,CARE FIRST IW LTD
Revenue,Adult Services,5105654996,14.10.2015,Elderly Frail Homecare,Charges from Independent Providers,160.44,CARE FIRST IW LTD
Revenue,Adult Services,5105654993,14.10.2015,Elderly Frail Homecare,Charges from Independent Providers,152.80,CARE FIRST IW LTD
Revenue,Adult Services,5105654988,14.10.2015,Elderly Frail Homecare,Charges from Independent Providers,"1,283.52",CARE FIRST IW LTD
Revenue,Adult Services,5105654997,14.10.2015,Elderly Frail Homecare,Charges from Independent Providers,"2,307.28",CARE FIRST IW LTD
Revenue,Adult Services,5105655020,14.10.2015,Elderly Frail Homecare,Regular Respite Care,137.52,CARE FIRST IW LTD
Revenue,Adult Services,5105654999,14.10.2015,Elderly Frail Homecare,Regular Respite Care,122.24,CARE FIRST IW LTD
Revenue,Adult Services,5105655002,14.10.2015,Elderly Frail Homecare,Regular Respite Care,122.24,CARE FIRST IW LTD
Revenue,Adult Services,5105655003,14.10.2015,Elderly Frail Homecare,Charges from Independent Providers,"1,054.32",CARE FIRST IW LTD
Revenue,Adult Services,5105654983,14.10.2015,Elderly Frail Homecare,Charges from Independent Providers,61.12,CARE FIRST IW LTD
Revenue,Adult Services,5105654981,14.10.2015,Elderly Frail Homecare,Charges from Independent Providers,183.36,CARE FIRST IW LTD
Revenue,Adult Services,5105654977,14.10.2015,Elderly Frail Homecare,Charges from Independent Providers,534.80,CARE FIRST IW LTD
Revenue,Adult Services,5105654985,14.10.2015,Elderly Frail Homecare,Charges from Independent Providers,534.80,CARE FIRST IW LTD
Revenue,Adult Services,5105654979,14.10.2015,Elderly Frail Homecare,Charges from Independent Providers,523.34,CARE FIRST IW LTD
Revenue,Adult Services,5105654978,14.10.2015,Elderly Frail Homecare,Charges from Independent Providers,641.76,CARE FIRST IW LTD
Revenue,Adult Services,5105653891,09.10.2015,Elderly Frail Homecare,Charges from Independent Providers,160.44,CARE FIRST IW LTD
Revenue,Adult Services,5105655000,14.10.2015,Elderly Frail Homecare,Charges from Independent Providers,76.40,CARE FIRST IW LTD
Revenue,Adult Services,5105655006,14.10.2015,Elderly Frail Homecare,Charges from Independent Providers,"1,031.40",CARE FIRST IW LTD
Revenue,Adult Services,5105655008,14.10.2015,Elderly Frail Homecare,Charges from Independent Providers,855.68,CARE FIRST IW LTD
Revenue,Adult Services,5105655010,14.10.2015,Elderly Frail Homecare,Charges from Independent Providers,15.28,CARE FIRST IW LTD
Revenue,Adult Services,5105654982,14.10.2015,Elderly Frail Homecare,Charges from Independent Providers,401.10,CARE FIRST IW LTD
Revenue,Adult Services,5105654984,14.10.2015,Elderly Mentally Ill Homecare,Charges from Independent Providers,481.32,CARE FIRST IW LTD
Revenue,Adult Services,5105655005,14.10.2015,Elderly Mentally Ill Homecare,Charges from Independent Providers,427.84,CARE FIRST IW LTD
Revenue,Adult Services,5105655012,14.10.2015,Elderly Mentally Ill Homecare,Regular Respite Care,366.72,CARE FIRST IW LTD
Revenue,Adult Services,5105655017,14.10.2015,Elderly Mentally Ill Homecare,Regular Respite Care,366.72,CARE FIRST IW LTD
Revenue,Adult Services,5105654753,14.10.2015,Physical Disability Homecare,Charges from Independent Providers,"1,390.48",CAREWATCH (SOUTHAMPTON NEW FOREST & IOW)
Revenue,Adult Services,5105654784,14.10.2015,Physical Disability Homecare,Charges from Independent Providers,"1,283.52",CAREWATCH (SOUTHAMPTON NEW FOREST & IOW)
Revenue,Adult Services,5105654837,14.10.2015,Physical Disability Homecare,Charges from Independent Providers,64.94,CAREWATCH (SOUTHAMPTON NEW FOREST & IOW)
Revenue,Adult Services,5105654799,14.10.2015,Physical Disability Homecare,Charges from Independent Providers,783.10,CAREWATCH (SOUTHAMPTON NEW FOREST & IOW)
Revenue,Adult Services,5105654786,14.10.2015,Physical Disability Homecare,Regular Respite Care,397.28,CAREWATCH (SOUTHAMPTON NEW FOREST & IOW)
Revenue,Adult Services,5105654489,14.10.2015,Elderly Frail Homecare,Charges from Independent Providers,80.22,CAREWATCH (SOUTHAMPTON NEW FOREST & IOW)
Revenue,Adult Services,5105654840,14.10.2015,Elderly Frail Homecare,Charges from Independent Providers,427.84,CAREWATCH (SOUTHAMPTON NEW FOREST & IOW)
Revenue,Adult Services,5105654841,14.10.2015,Elderly Frail Homecare,Charges from Independent Providers,213.92,CAREWATCH (SOUTHAMPTON NEW FOREST & IOW)
Revenue,Adult Services,5105654839,14.10.2015,Elderly Frail Homecare,Charges from Independent Providers,366.72,CAREWATCH (SOUTHAMPTON NEW FOREST & IOW)
Revenue,Adult Services,5105654843,14.10.2015,Elderly Frail Homecare,Charges from Independent Providers,30.56,CAREWATCH (SOUTHAMPTON NEW FOREST & IOW)
Revenue,Adult Services,5105654835,14.10.2015,Elderly Frail Homecare,Charges from Independent Providers,748.72,CAREWATCH (SOUTHAMPTON NEW FOREST & IOW)
Revenue,Adult Services,5105654759,14.10.2015,Mental Health Homecare,Charges from Independent Providers,91.68,CAREWATCH (SOUTHAMPTON NEW FOREST & IOW)
Revenue,Adult Services,5105654770,14.10.2015,Mental Health Homecare,Charges from Independent Providers,213.92,CAREWATCH (SOUTHAMPTON NEW FOREST & IOW)
Revenue,Adult Services,5105654747,14.10.2015,Mental Health Homecare,Charges from Independent Providers,91.68,CAREWATCH (SOUTHAMPTON NEW FOREST & IOW)
Revenue,Adult Services,5105654780,14.10.2015,Mental Health Homecare,Charges from Independent Providers,"1,795.40",CAREWATCH (SOUTHAMPTON NEW FOREST & IOW)
Revenue,Adult Services,5105654842,14.10.2015,Mental Health Homecare,Charges from Independent Providers,687.60,CAREWATCH (SOUTHAMPTON NEW FOREST & IOW)
Revenue,Adult Services,5105654831,14.10.2015,Mental Health Homecare,Charges from Independent Providers,427.84,CAREWATCH (SOUTHAMPTON NEW FOREST & IOW)
Revenue,Adult Services,5105654782,14.10.2015,Physical Disability Homecare,Charges from Independent Providers,320.88,CAREWATCH (SOUTHAMPTON NEW FOREST & IOW)
Revenue,Adult Services,5105654762,14.10.2015,Physical Disability Homecare,Charges from Independent Providers,106.96,CAREWATCH (SOUTHAMPTON NEW FOREST & IOW)
Revenue,Adult Services,5105654761,14.10.2015,Physical Disability Homecare,Charges from Independent Providers,"1,027.58",CAREWATCH (SOUTHAMPTON NEW FOREST & IOW)
Revenue,Adult Services,5105654768,14.10.2015,Physical Disability Homecare,Charges from Independent Providers,"2,139.20",CAREWATCH (SOUTHAMPTON NEW FOREST & IOW)
Revenue,Adult Services,5105654775,14.10.2015,Physical Disability Homecare,Charges from Independent Providers,588.28,CAREWATCH (SOUTHAMPTON NEW FOREST & IOW)
Revenue,Adult Services,5105653714,07.10.2015,Physical Disability Homecare,Charges from Independent Providers,61.12,CAREWATCH (SOUTHAMPTON NEW FOREST & IOW)
Revenue,Adult Services,5105654794,14.10.2015,Physical Disability Homecare,Charges from Independent Providers,244.48,CAREWATCH (SOUTHAMPTON NEW FOREST & IOW)
Revenue,Adult Services,5105654787,14.10.2015,Physical Disability Homecare,Charges from Independent Providers,977.92,CAREWATCH (SOUTHAMPTON NEW FOREST & IOW)
Revenue,Adult Services,5105655758,21.10.2015,Elderly Frail Homecare,Charges from Independent Providers,91.68,CAREWATCH (SOUTHAMPTON NEW FOREST & IOW)
Revenue,Adult Services,5105654491,14.10.2015,Elderly Frail Homecare,Charges from Independent Providers,122.24,CAREWATCH (SOUTHAMPTON NEW FOREST & IOW)
Revenue,Adult Services,5105654844,14.10.2015,Elderly Frail Homecare,Charges from Independent Providers,466.04,CAREWATCH (SOUTHAMPTON NEW FOREST & IOW)
Revenue,Adult Services,5105654846,14.10.2015,Elderly Frail Homecare,Charges from Independent Providers,91.68,CAREWATCH (SOUTHAMPTON NEW FOREST & IOW)
Revenue,Adult Services,5105655753,21.10.2015,Elderly Frail Homecare,Charges from Independent Providers,221.56,CAREWATCH (SOUTHAMPTON NEW FOREST & IOW)
Revenue,Adult Services,5105654845,14.10.2015,Elderly Frail Homecare,Charges from Independent Providers,297.96,CAREWATCH (SOUTHAMPTON NEW FOREST & IOW)
Revenue,Adult Services,5105654813,14.10.2015,Elderly Frail Homecare,Charges from Independent Providers,832.76,CAREWATCH (SOUTHAMPTON NEW FOREST & IOW)
Revenue,Adult Services,5105654820,14.10.2015,Elderly Frail Homecare,Regular Respite Care,122.24,CAREWATCH (SOUTHAMPTON NEW FOREST & IOW)
Revenue,Adult Services,5105654758,14.10.2015,Elderly Frail Homecare,Regular Respite Care,61.12,CAREWATCH (SOUTHAMPTON NEW FOREST & IOW)
Revenue,Adult Services,5105654772,14.10.2015,Elderly Frail Homecare,Regular Respite Care,91.68,CAREWATCH (SOUTHAMPTON NEW FOREST & IOW)
Revenue,Adult Services,5105654766,14.10.2015,Elderly Frail Homecare,Regular Respite Care,91.68,CAREWATCH (SOUTHAMPTON NEW FOREST & IOW)
Revenue,Adult Services,5105654763,14.10.2015,Elderly Frail Homecare,Regular Respite Care,366.72,CAREWATCH (SOUTHAMPTON NEW FOREST & IOW)
Revenue,Adult Services,5105654767,14.10.2015,Elderly Frail Homecare,Regular Respite Care,336.16,CAREWATCH (SOUTHAMPTON NEW FOREST & IOW)
Revenue,Adult Services,5105654826,14.10.2015,Elderly Frail Homecare,Regular Respite Care,91.68,CAREWATCH (SOUTHAMPTON NEW FOREST & IOW)
Revenue,Adult Services,5105654774,14.10.2015,Elderly Frail Homecare,Regular Respite Care,305.60,CAREWATCH (SOUTHAMPTON NEW FOREST & IOW)
Revenue,Adult Services,5105654777,14.10.2015,Elderly Frail Homecare,Regular Respite Care,110.78,CAREWATCH (SOUTHAMPTON NEW FOREST & IOW)
Revenue,Adult Services,5105655759,21.10.2015,Elderly Frail Homecare,Charges from Independent Providers,347.62,CAREWATCH (SOUTHAMPTON NEW FOREST & IOW)
Revenue,Adult Services,5105654755,14.10.2015,Elderly Frail Homecare,Charges from Independent Providers,576.82,CAREWATCH (SOUTHAMPTON NEW FOREST & IOW)
Revenue,Adult Services,5105654795,14.10.2015,Elderly Frail Homecare,Charges from Independent Providers,641.76,CAREWATCH (SOUTHAMPTON NEW FOREST & IOW)
Revenue,Adult Services,5105654487,14.10.2015,Elderly Frail Homecare,Charges from Independent Providers,15.28,CAREWATCH (SOUTHAMPTON NEW FOREST & IOW)
Revenue,Adult Services,5105654798,14.10.2015,Elderly Frail Homecare,Charges from Independent Providers,61.12,CAREWATCH (SOUTHAMPTON NEW FOREST & IOW)
Revenue,Adult Services,5105654802,14.10.2015,Elderly Frail Homecare,Charges from Independent Providers,"1,069.60",CAREWATCH (SOUTHAMPTON NEW FOREST & IOW)
Revenue,Adult Services,5105654803,14.10.2015,Elderly Frail Homecare,Charges from Independent Providers,91.68,CAREWATCH (SOUTHAMPTON NEW FOREST & IOW)
Revenue,Adult Services,5105654819,14.10.2015,Elderly Frail Homecare,Charges from Independent Providers,427.84,CAREWATCH (SOUTHAMPTON NEW FOREST & IOW)
Revenue,Adult Services,5105654785,14.10.2015,Elderly Frail Homecare,Charges from Independent Providers,641.76,CAREWATCH (SOUTHAMPTON NEW FOREST & IOW)
Revenue,Adult Services,5105654781,14.10.2015,Elderly Frail Homecare,Charges from Independent Providers,320.88,CAREWATCH (SOUTHAMPTON NEW FOREST & IOW)
Revenue,Adult Services,5105654815,14.10.2015,Elderly Frail Homecare,Charges from Independent Providers,508.06,CAREWATCH (SOUTHAMPTON NEW FOREST & IOW)
Revenue,Adult Services,5105654790,14.10.2015,Elderly Frail Homecare,Charges from Independent Providers,309.42,CAREWATCH (SOUTHAMPTON NEW FOREST & IOW)
Revenue,Adult Services,5105654792,14.10.2015,Elderly Frail Homecare,Charges from Independent Providers,"1,096.34",CAREWATCH (SOUTHAMPTON NEW FOREST & IOW)
Revenue,Adult Services,5105654811,14.10.2015,Elderly Frail Homecare,Regular Respite Care,114.60,CAREWATCH (SOUTHAMPTON NEW FOREST & IOW)
Revenue,Adult Services,5105654810,14.10.2015,Elderly Frail Homecare,Regular Respite Care,122.24,CAREWATCH (SOUTHAMPTON NEW FOREST & IOW)
Revenue,Adult Services,5105654488,14.10.2015,Elderly Frail Homecare,Regular Respite Care,30.56,CAREWATCH (SOUTHAMPTON NEW FOREST & IOW)
Revenue,Adult Services,5105654817,14.10.2015,Elderly Frail Homecare,Regular Respite Care,122.24,CAREWATCH (SOUTHAMPTON NEW FOREST & IOW)
Revenue,Adult Services,5105654821,14.10.2015,Elderly Frail Homecare,Regular Respite Care,122.24,CAREWATCH (SOUTHAMPTON NEW FOREST & IOW)
Revenue,Adult Services,5105654814,14.10.2015,Elderly Frail Homecare,Charges from Independent Providers,641.76,CAREWATCH (SOUTHAMPTON NEW FOREST & IOW)
Revenue,Adult Services,5105654748,14.10.2015,Elderly Frail Homecare,Charges from Independent Providers,19.10,CAREWATCH (SOUTHAMPTON NEW FOREST & IOW)
Revenue,Adult Services,5105654486,14.10.2015,Elderly Frail Homecare,Charges from Independent Providers,118.42,CAREWATCH (SOUTHAMPTON NEW FOREST & IOW)
Revenue,Adult Services,5105654754,14.10.2015,Elderly Frail Homecare,Charges from Independent Providers,947.36,CAREWATCH (SOUTHAMPTON NEW FOREST & IOW)
Revenue,Adult Services,5105654773,14.10.2015,Elderly Frail Homecare,Charges from Independent Providers,427.84,CAREWATCH (SOUTHAMPTON NEW FOREST & IOW)
Revenue,Adult Services,5105654765,14.10.2015,Elderly Frail Homecare,Charges from Independent Providers,320.88,CAREWATCH (SOUTHAMPTON NEW FOREST & IOW)
Revenue,Adult Services,5105654764,14.10.2015,Elderly Frail Homecare,Charges from Independent Providers,"1,115.44",CAREWATCH (SOUTHAMPTON NEW FOREST & IOW)
Revenue,Adult Services,5105654812,14.10.2015,Elderly Frail Homecare,Charges from Independent Providers,825.12,CAREWATCH (SOUTHAMPTON NEW FOREST & IOW)
Revenue,Adult Services,5105654807,14.10.2015,Elderly Frail Homecare,Charges from Independent Providers,122.24,CAREWATCH (SOUTHAMPTON NEW FOREST & IOW)
Revenue,Adult Services,5105654805,14.10.2015,Elderly Frail Homecare,Charges from Independent Providers,"1,497.44",CAREWATCH (SOUTHAMPTON NEW FOREST & IOW)
Revenue,Adult Services,5105654771,14.10.2015,Elderly Frail Homecare,Charges from Independent Providers,462.22,CAREWATCH (SOUTHAMPTON NEW FOREST & IOW)
Revenue,Adult Services,5105654783,14.10.2015,Elderly Frail Homecare,Charges from Independent Providers,213.92,CAREWATCH (SOUTHAMPTON NEW FOREST & IOW)
Revenue,Adult Services,5105654490,14.10.2015,Elderly Frail Homecare,Charges from Independent Providers,68.76,CAREWATCH (SOUTHAMPTON NEW FOREST & IOW)
Revenue,Adult Services,5105654818,14.10.2015,Elderly Frail Homecare,Charges from Independent Providers,488.96,CAREWATCH (SOUTHAMPTON NEW FOREST & IOW)
Revenue,Adult Services,5105654816,14.10.2015,Elderly Frail Homecare,Charges from Independent Providers,641.76,CAREWATCH (SOUTHAMPTON NEW FOREST & IOW)
Revenue,Adult Services,5105655754,21.10.2015,Elderly Frail Homecare,Charges from Independent Providers,"2,246.16",CAREWATCH (SOUTHAMPTON NEW FOREST & IOW)
Revenue,Adult Services,5105654829,14.10.2015,Elderly Frail Homecare,Charges from Independent Providers,122.24,CAREWATCH (SOUTHAMPTON NEW FOREST & IOW)
